Ref No,Fund Type,Dept,Cost Centre Description    ,Description    ,Creditor Name    ,GL Code Net Amount,Payment date        
2,Revenue,CCHD,Bed Purchasing - South,Permanent Nursing,.,1508.80, 25-Nov-2014
3,Revenue,CCHD,18-25 Year Olds,Permanent Residential,1 St Georges House,109337.81, 25-Nov-2014
4,Revenue,CCHD,Home Care - Elderly - South,Other Small Contracts,3 Trees Community Support Ltd,196.68, 17-Nov-2014
5,Revenue,CCHD,Home Care - Elderly - North,Day Care / Social Activities,3 Trees Community Support Ltd,1524.27, 17-Nov-2014
6,Revenue,CCHD,Home Care - Elderly - North,Other Small Contracts,3 Trees Community Support Ltd,1931.04, 17-Nov-2014
7,Revenue,CCHD,Home Care - Elderly - North,Supported Living,3 Trees Community Support Ltd,8310.01, 17-Nov-2014
8,Revenue,CCHD,Home Care - Elderly - South,Other Small Contracts,3 Trees Community Support Ltd,196.68, 17-Nov-2014
9,Revenue,CCHD,Home Care - Elderly - North,Day Care / Social Activities,3 Trees Community Support Ltd,1533.21, 17-Nov-2014
10,Revenue,CCHD,Home Care - Elderly - North,Other Small Contracts,3 Trees Community Support Ltd,1367.82, 17-Nov-2014
11,Revenue,CCHD,Home Care - Elderly - North,Supported Living,3 Trees Community Support Ltd,8657.69, 17-Nov-2014
12,Revenue,CCHD,Supported Living - North,Private & Voluntary Home Care,3 Trees Community Support Ltd,7711.72, 03-Nov-2014
13,Revenue,CCHD,Supported Living - North,Private & Voluntary Home Care,3 Trees Community Support Ltd,7632.80, 03-Nov-2014
14,Revenue,CCHD,Supported Living - North,Private & Voluntary Home Care,3 Trees Community Support Ltd,7598.48, 03-Nov-2014
15,Revenue,CCHD,Purchase of Non-Res Care - North,Day Care / Social Activities,3 Trees Community Support Ltd,1687.73, 05-Nov-2014
16,Revenue,CCHD,Supported Living - North,Private & Voluntary Home Care,3 Trees Community Support Ltd,1899.62, 21-Nov-2014
17,Revenue,CCHD,Supported Living - North,Private & Voluntary Home Care,3 Trees Community Support Ltd,1927.93, 28-Nov-2014
18,Revenue,CCHD,Supported Living - North,Private & Voluntary Home Care,3 Trees Community Support Ltd,1908.20, 21-Nov-2014
19,Revenue,CCHD,Bed Purchasing - South,Permanent Residential,5Th Floor Harlech Court,16062.20, 25-Nov-2014
20,Revenue,CCHD,Bed Purchasing - South,Permanent Residential,5Th Floor Harlech Court,127560.35, 25-Nov-2014
21,Revenue,CCHD,18-25 Year Olds,Permanent Residential,5Th Floor Harlech Court,106090.37, 25-Nov-2014
22,Revenue,CCHD,Bed purchasing - Under 65s PWLD - North,Permanent Residential,5Th Floor Harlech Court,150162.22, 25-Nov-2014
23,Revenue,CCHD,18-25 Year Olds,Permanent Residential,5Th Floor Harlech Court,13689.08, 25-Nov-2014
24,Revenue,CCHD,18-25 Year Olds,Permanent Residential,5Th Floor Harlech Court,13962.28, 25-Nov-2014
25,Revenue,CCHD,18-25 Year Olds,Permanent Residential,5Th Floor Harlech Court,110216.47, 25-Nov-2014
26,Revenue,CCHD,18-25 Year Olds,Permanent Residential,5Th Floor Harlech Court,12849.84, 25-Nov-2014
27,Revenue,CCHD,18-25 Year Olds,Permanent Residential,5Th Floor Harlech Court,33590.71, 25-Nov-2014
28,Revenue,CCHD,Bed Purchasing - North,Permanent Residential,5Th Floor Harlech Court,16589.72, 25-Nov-2014
29,Revenue,CCHD,Bed Purchasing - North,Permanent Residential,5Th Floor Harlech Court,131382.03, 25-Nov-2014
30,Revenue,CCHD,18-25 Year Olds,Permanent Residential,5Th Floor Harlech Court,15754.12, 25-Nov-2014
31,Revenue,CCHD,18-25 Year Olds,Permanent Residential,5Th Floor Harlech Court,124733.15, 25-Nov-2014
32,Revenue,CCHD,Bed Purchasing - South,Permanent Residential,5Th Floor Harlech Court,9301.84, 25-Nov-2014
33,Revenue,CCHD,Bed purchasing - S28A Under 65 - South,Permanent Residential,5Th Floor Harlech Court,10570.16, 25-Nov-2014
34,Revenue,CCHD,Bed purchasing - S28A Under 65 - South,Permanent Residential,5Th Floor Harlech Court,12355.24, 25-Nov-2014
35,Revenue,CCHD,Bed Purchasing - Under 65s PWLD - South,Permanent Nursing,5Th Floor Harlech Court,10240.88, 25-Nov-2014
36,Revenue,CCHD,Bed Purchasing - North,Permanent Nursing,ABI Development Limited,6970.24, 25-Nov-2014
37,Revenue,CCHD,Day Care - South,Day Care / Social Activities,About Me Care and Support Limited,1435.33, 14-Nov-2014
38,Revenue,CCHD,Day Care - South,Day Care / Social Activities,About Me Care and Support Limited,759.63, 14-Nov-2014
39,Revenue,CCHD,Home Care - Elderly - South,Other Small Contracts,Agincare Chippenham,1360.40, 05-Nov-2014
40,Revenue,CCHD,Home Care - Elderly - South,Other Small Contracts,Agincare Chippenham,1345.20, 12-Nov-2014
41,Revenue,CCHD,Home Care - Elderly - South,Other Small Contracts,Agincare Chippenham,1360.40, 24-Nov-2014
42,Revenue,CCHD,Home Care - Elderly - South,Other Small Contracts,Agincare UK Limited,543.40, 07-Nov-2014
43,Revenue,CCHD,Home Care - Elderly - North,Other Small Contracts,Agincare UK Limited,114.00, 07-Nov-2014
44,Revenue,CCHD,Elderly MH Day Care North,Day Care / Social Activities,Agincare UK Limited,49.40, 07-Nov-2014
45,Revenue,CCHD,Home Care - Elderly - South,Other Small Contracts,Agincare UK Limited,505.40, 12-Nov-2014
46,Revenue,CCHD,Home Care - Elderly - North,Other Small Contracts,Agincare UK Limited,114.00, 12-Nov-2014
47,Revenue,CCHD,Elderly MH Day Care North,Day Care / Social Activities,Agincare UK Limited,57.00, 12-Nov-2014
48,Revenue,CCHD,Home Care - Elderly - South,Other Small Contracts,Agincare UK Limited,554.80, 24-Nov-2014
49,Revenue,CCHD,Home Care - Elderly - North,Other Small Contracts,Agincare UK Limited,106.40, 24-Nov-2014
50,Revenue,CCHD,Elderly MH Day Care North,Day Care / Social Activities,Agincare UK Limited,57.00, 24-Nov-2014
51,Revenue,CCHD,Home Care - Elderly - North,Other Small Contracts,Agincare UK Nutfield,1303.40, 05-Nov-2014
52,Revenue,CCHD,Home Care - Elderly - North,Other Small Contracts,Agincare UK Nutfield,1425.00, 12-Nov-2014
53,Revenue,CCHD,Home Care - Elderly - North,Other Small Contracts,Agincare UK Nutfield,1580.80, 18-Nov-2014
54,Revenue,CCHD,S117 Placements PCT,Permanent Residential,Alexandra House,6977.40, 25-Nov-2014
55,Revenue,CCHD,18-25 Year Olds,Permanent Residential,Alexandra House,56964.30, 25-Nov-2014
56,Revenue,CCHD,Section 117 Placements MH Younger,Permanent Residential,Alexandra House,6495.60, 25-Nov-2014
57,Revenue,CCHD,Home Care - Elderly - South,Other Small Contracts,AliMo Care Ltd,1224.51, 05-Nov-2014
58,Revenue,CCHD,Home Care - Elderly - North,Other Small Contracts,AliMo Care Ltd,497.63, 05-Nov-2014
59,Revenue,CCHD,Home Care - Elderly - South,Other Small Contracts,AliMo Care Ltd,1117.13, 13-Nov-2014
60,Revenue,CCHD,Home Care - Elderly - North,Other Small Contracts,AliMo Care Ltd,497.63, 13-Nov-2014
61,Revenue,CCHD,Home Care - Elderly - South,Other Small Contracts,AliMo Care Ltd,1121.26, 19-Nov-2014
62,Revenue,CCHD,Home Care - Elderly - North,Other Small Contracts,AliMo Care Ltd,497.63, 19-Nov-2014
63,Revenue,CCHD,Home Care - Elderly - South,Other Small Contracts,AliMo Care Ltd,615.37, 26-Nov-2014
64,Revenue,CCHD,Home Care - Elderly - North,Other Small Contracts,AliMo Care Ltd,995.25, 26-Nov-2014
65,Revenue,CCHD,Sexual Health,Other Small Contracts,Almondsbury Surgery,609.10, 24-Nov-2014
66,Revenue,CCHD,Bed Purchasing - Southmead Hospital,Permanent Nursing,Ambleside Nusing Ho!,1443.84, 25-Nov-2014
67,Revenue,CCHD,Bed Purchasing - North,Permanent Residential,Ark Care Homes Ltd,92728.45, 25-Nov-2014
68,Revenue,CCHD,Mental Capacity Act - Advocacy,Other Supplies & Services,Armadillo Youth Venue & Cafe,728.00, 21-Nov-2014
69,Revenue,CCHD,NHS Health Checks & Tobacco Control,Drugs & Medical Supplies,Asda Stores Limited,1049.28, 04-Nov-2014
70,Revenue,CCHD,Bed Purchasing - South,Permanent Residential,Ashbourne House Care Home Limited,1122.44, 25-Nov-2014
71,Revenue,CCHD,Home Care - Elderly - South,Other Small Contracts,Ashley Commercial Finance Ltd,543.89, 11-Nov-2014
72,Revenue,CCHD,Home Care - Elderly - North,Other Small Contracts,Ashley Commercial Finance Ltd,3521.39, 11-Nov-2014
73,Revenue,CCHD,Bed Purchasing - North,Permanent Residential,Aspects 2 Limited,58111.70, 25-Nov-2014
74,Revenue,CCHD,Purchase of Non-Res Care - North,Day Care / Social Activities,Aspirations Support Bristol Limited,716.57, 03-Nov-2014
75,Revenue,CCHD,Electronic Home Care Monitoring,Independent Living,Aspirations Support Bristol Limited,42168.00, 14-Nov-2014
76,Revenue,CCHD,Purchase of Non-Res Care - South,Day Care / Social Activities,Aspirations Support Bristol Limited,2499.48, 05-Nov-2014
77,Revenue,CCHD,Purchase of Non-Res Care - South,Day Care / Social Activities,Aspirations Support Bristol Limited,3124.35, 05-Nov-2014
78,Revenue,CCHD,Supported Living - South,Private & Voluntary Home Care,Aspirations Support Bristol Limited,596.44, 05-Nov-2014
79,Revenue,CCHD,Bed Purchasing - South,Permanent Residential,Autism Specialised Care Homes,52175.95, 25-Nov-2014
80,Revenue,CCHD,Purchase of Non-Res Care - North,Day Care / Social Activities,Avon Autistic Foundation Limited,3378.04, 03-Nov-2014
81,Revenue,CCHD,S75 CCG Interim Beds,Permanent Nursing,Avon Lodge Care Centre,10200.00, 14-Nov-2014
82,Revenue,CCHD,Day Care - North,Day Care / Social Activities,Avonedge Limited,1200.00, 04-Nov-2014
83,Revenue,CCHD,Children & Young People�s Health,Other Supplies & Services,Barnardos,5000.00, 21-Nov-2014
84,Revenue,CCHD,Purchase of RAC places,Other L.A.'s - General,Bath & North East Somerset Dist Council,7569.70, 28-Nov-2014
85,Revenue,CCHD,Bed Purchasing - Southmead Hospital,Permanent Nursing,Bayview Nursing & Residential Home,1482.40, 25-Nov-2014
86,Revenue,CCHD,Bed Purchasing - North,Permanent Nursing,Beaufort Grange Care Home,4464.20, 25-Nov-2014
87,Revenue,CCHD,Bed Purchasing - North,Permanent Nursing,Beaufort Grange Care Home,2869.84, 25-Nov-2014
88,Revenue,CCHD,Bed Purchasing - Elderly S117- North,Permanent Nursing,Beaufort Grange Care Home,4156.44, 25-Nov-2014
89,Revenue,CCHD,South Glos Users in South Glos Homes,Permanent Nursing,Beaufort Grange Care Home,2867.30, 25-Nov-2014
90,Revenue,CCHD,Bed Purchasing - North,Permanent Nursing,Beaufort Grange Care Home,1171.00, 25-Nov-2014
91,Revenue,CCHD,Bed Purchasing - North,Permanent Residential,Beaufort House,1900.32, 25-Nov-2014
92,Revenue,CCHD,Bed Purchasing - North,Permanent Residential,Beaufort House,1674.72, 25-Nov-2014
93,Revenue,CCHD,Bed Purchasing - North,Permanent Residential,Beaufort House,1824.20, 25-Nov-2014
94,Revenue,CCHD,Bed Purchasing - North,Permanent Residential,Beaufort House,10968.28, 25-Nov-2014
95,Revenue,CCHD,Bed Purchasing - North,Permanent Residential,Beaufort House,1390.40, 25-Nov-2014
96,Revenue,CCHD,Bed Purchasing - South,Permanent Residential,Beaufort House,1434.24, 25-Nov-2014
97,Revenue,CCHD,Bed Purchasing - North,Permanent Residential,Beaufort House,1800.08, 25-Nov-2014
98,Revenue,CCHD,Bed Purchasing - North,Permanent Residential,Beaufort House,1607.22, 25-Nov-2014
99,Revenue,CCHD,Bed Purchasing - Southmead Hospital,Permanent Residential,Beaufort House,2320.00, 25-Nov-2014
100,Revenue,CCHD,Bed Purchasing - Southmead Hospital,Permanent Residential,Beaufort House,2320.00, 25-Nov-2014
101,Revenue,CCHD,Bed Purchasing - North,Permanent Residential,Beaufort House,1860.64, 25-Nov-2014
102,Revenue,CCHD,Bed Purchasing - North,Respite Planned - Residential,Beaufort House,600.00, 25-Nov-2014
103,Revenue,CCHD,Bed Purchasing - North,Permanent Residential,Beaufort House,1755.08, 25-Nov-2014
104,Revenue,CCHD,Bed Purchasing - South,Respite Emergency - Residential,Beaufort House,1242.86, 25-Nov-2014
105,Revenue,CCHD,Bed Purchasing - North,Permanent Residential,Beaufort House,1706.44, 25-Nov-2014
106,Revenue,CCHD,Bed Purchasing - North,Permanent Residential,Beaufort House,17236.31, 25-Nov-2014
107,Revenue,CCHD,Bed Purchasing - South,Permanent Residential,Bedrock Lodge,3151.80, 25-Nov-2014
108,Revenue,CCHD,Bed Purchasing - South,Permanent Residential,Bedrock Lodge,29433.05, 25-Nov-2014
109,Revenue,CCHD,Section 117 Placements MH Younger,Permanent Residential,Bedrock Lodge,1864.88, 25-Nov-2014
110,Revenue,CCHD,Bed Purchasing - North,Permanent Nursing,Beech House,2378.48, 25-Nov-2014
111,Revenue,CCHD,Bed Purchasing - North,Permanent Nursing,Beech House,1320.20, 25-Nov-2014
112,Revenue,CCHD,Bed purchasing - Elderly MH - North,Permanent Nursing,Beech House,1653.80, 25-Nov-2014
113,Revenue,CCHD,Bed Purchasing - North,Permanent Nursing,Beech House,1352.20, 25-Nov-2014
114,Revenue,CCHD,Bed Purchasing - North,Permanent Residential,Beech House,1379.66, 25-Nov-2014
115,Revenue,CCHD,Bed Purchasing - North,Permanent Residential,Beech House,2162.82, 25-Nov-2014
116,Revenue,CCHD,Bed Purchasing - North,Permanent Nursing,Beech House,879.56, 25-Nov-2014
117,Revenue,CCHD,Bed Purchasing - North,Permanent Residential,Beech House,1911.24, 25-Nov-2014
118,Revenue,CCHD,Bed Purchasing - North,Permanent Nursing,Beech House,2127.20, 25-Nov-2014
119,Revenue,CCHD,Bed Purchasing - North,Permanent Residential,Beech House,1394.08, 25-Nov-2014
120,Revenue,CCHD,Bed Purchasing - Elderly S117- North,Permanent Nursing,Blossom Field,1992.00, 25-Nov-2014
121,Revenue,CCHD,South Glos Users in South Glos Homes,Permanent Nursing,Blossom Field,2328.69, 25-Nov-2014
122,Revenue,CCHD,Bed Purchasing - North,Permanent Nursing,Blossom Field,1935.64, 25-Nov-2014
123,Revenue,CCHD,South Glos Users in South Glos Homes,Permanent Nursing,Blossom Field,9094.46, 25-Nov-2014
124,Revenue,CCHD,South Glos Users in South Glos Homes,Permanent Nursing,Blossom Field,1394.05, 25-Nov-2014
125,Revenue,CCHD,Bed Purchasing - North,Permanent Nursing,Blossom Field,2337.00, 25-Nov-2014
126,Revenue,CCHD,Bed Purchasing - North,Permanent Nursing,Blossom Field,2697.08, 25-Nov-2014
127,Revenue,CCHD,South Glos Users in South Glos Homes,Permanent Nursing,Blossom Field,1599.98, 25-Nov-2014
128,Revenue,CCHD,Bed Purchasing - North,Permanent Nursing,Blossom Field,1425.12, 25-Nov-2014
129,Revenue,CCHD,Bed Purchasing - South,Permanent Nursing,Blossom Field,1909.84, 25-Nov-2014
130,Revenue,CCHD,Bed Purchasing - Southmead Hospital,Permanent Nursing,Blossom Field,2545.44, 25-Nov-2014
131,Revenue,CCHD,South Glos Users in South Glos Homes,Permanent Nursing,Blossom Field,1980.18, 25-Nov-2014
132,Revenue,CCHD,Bed Purchasing - North,Permanent Nursing,Blossom Fields,2588.96, 25-Nov-2014
133,Revenue,CCHD,Bed Purchasing - Southmead Hospital,Permanent Nursing,Blossom Fields,2093.16, 25-Nov-2014
134,Revenue,CCHD,Bed Purchasing - North,Permanent Nursing,Blossom Fields,2588.96, 25-Nov-2014
135,Revenue,CCHD,Training - Adult Services,Training Expenses,Individual,775.00, 17-Nov-2014
136,Revenue,CCHD,NHS Health Checks & Tobacco Control,Drugs & Medical Supplies,Boots UK Ltd,1951.57, 04-Nov-2014
137,Revenue,CCHD,Bed purchasing - S28A Under 65 - South,Permanent Residential,Bradbury House,4322.88, 21-Nov-2014
138,Revenue,CCHD,18-25 Year Olds,Permanent Residential,Bradbury House,79729.70, 25-Nov-2014
139,Revenue,CCHD,Bed Purchasing - North,Permanent Residential,Bradley House,1533.80, 25-Nov-2014
140,Revenue,CCHD,Sexual Health,Other Small Contracts,Bradley Stoke Surgery,1249.16, 25-Nov-2014
141,Revenue,CCHD,Woodleaze,"Provisions (Food, etc)",Brake Bros,491.36, 05-Nov-2014
142,Revenue,CCHD,Woodleaze,"Provisions (Food, etc)",Brake Bros,520.31, 26-Nov-2014
143,Revenue,CCHD,South Glos Users in South Glos Homes,Permanent Nursing,Brandon Trust,5724.76, 25-Nov-2014
144,Revenue,CCHD,South Glos Users in South Glos Homes,Permanent Nursing,Brandon Trust,3659.97, 25-Nov-2014
145,Revenue,CCHD,Bed Purchasing - South,Permanent Nursing,Brandon Trust,5036.84, 25-Nov-2014
146,Revenue,CCHD,Bed Purchasing - South,Permanent Nursing,Brandon Trust,41510.86, 25-Nov-2014
147,Revenue,CCHD,Bed Purchasing - S28A - Over 65- North,Permanent Residential,Brandon Trust,3097.08, 25-Nov-2014
148,Revenue,CCHD,Bed Purchasing - South,Permanent Residential,Brandon Trust,10268.44, 25-Nov-2014
149,Revenue,CCHD,Bed Purchasing - South,Permanent Residential,Brandon Trust,82055.76, 25-Nov-2014
150,Revenue,CCHD,Bed Purchasing - South,Permanent Residential,Brandon Trust,4036.12, 25-Nov-2014
151,Revenue,CCHD,Bed Purchasing - South,Permanent Residential,Brandon Trust,33755.28, 25-Nov-2014
152,Revenue,CCHD,Bed Purchasing - South,Permanent Residential,Brandon Trust,3459.92, 25-Nov-2014
153,Revenue,CCHD,Bed Purchasing - LD S28A- Over 65- South,Permanent Nursing,Brandon Trust,4860.44, 25-Nov-2014
154,Revenue,CCHD,Bed Purchasing - South,Permanent Nursing,Brandon Trust,5036.84, 25-Nov-2014
155,Revenue,CCHD,Bed Purchasing - South,Permanent Nursing,Brandon Trust,41510.86, 25-Nov-2014
156,Revenue,CCHD,Bed purchasing - S28A Under 65 - South,Permanent Nursing,Brandon Trust,5359.12, 25-Nov-2014
157,Revenue,CCHD,Bed purchasing - S28A Under 65 - South,Permanent Residential,Brandon Trust,4901.16, 25-Nov-2014
158,Revenue,CCHD,Bed purchasing - S28A Under 65 - South,Permanent Nursing,Brandon Trust,5359.12, 25-Nov-2014
159,Revenue,CCHD,Bed Purchasing - LD S28A- Over 65- South,Permanent Nursing,Brandon Trust,5182.72, 25-Nov-2014
160,Revenue,CCHD,Bed Purchasing - LD S28A- Over 65- South,Permanent Nursing,Brandon Trust,4849.76, 25-Nov-2014
161,Revenue,CCHD,Bed Purchasing - South,Permanent Residential,Brandon Trust,3273.48, 25-Nov-2014
162,Revenue,CCHD,Bed Purchasing - S28A - Over 65- North,Permanent Nursing,Brandon Trust,4810.28, 25-Nov-2014
163,Revenue,CCHD,Bed purchasing - S28A Under 65 - South,Permanent Residential,Brandon Trust,5202.76, 25-Nov-2014
164,Revenue,CCHD,Bed purchasing - S28A Under 65 - South,Permanent Residential,Brandon Trust,5258.44, 25-Nov-2014
165,Revenue,CCHD,Bed purchasing - S28A Under 65 - South,Permanent Nursing,Brandon Trust,5399.12, 25-Nov-2014
166,Revenue,CCHD,Bed purchasing - S28A Under 65 - South,Permanent Nursing,Brandon Trust,5359.12, 25-Nov-2014
167,Revenue,CCHD,Bed purchasing -S28A  Under 65 - North,Permanent Nursing,Brandon Trust,4783.16, 25-Nov-2014
168,Revenue,CCHD,Bed purchasing - S28A Under 65 - South,Permanent Residential,Brandon Trust,5258.44, 25-Nov-2014
169,Revenue,CCHD,Bed Purchasing - LD S28A- Over 65- South,Permanent Residential,Brandon Trust,4748.20, 25-Nov-2014
170,Revenue,CCHD,Bed Purchasing - South,Permanent Residential,Brandon Trust,4006.72, 25-Nov-2014
171,Revenue,CCHD,Bed Purchasing - North,Permanent Residential,Bridge House Care Home,1513.00, 25-Nov-2014
172,Revenue,CCHD,Bed Purchasing - North,Permanent Residential,Bridge House Care Home,1167.32, 25-Nov-2014
173,Revenue,CCHD,Bed Purchasing - South,Permanent Residential,Bridge House Care Home,1444.60, 25-Nov-2014
174,Revenue,CCHD,Bed Purchasing - North,Respite Planned - Residential,Bridge House Care Home,2320.00, 25-Nov-2014
175,Revenue,CCHD,Training - Adult Services,Training Expenses,Individual,750.00, 25-Nov-2014
176,Revenue,CCHD,Bed Purchasing - South,Permanent Residential,Brightbow,2095.28, 25-Nov-2014
177,Revenue,CCHD,Bed Purchasing - South,Permanent Residential,Brightbow,20080.87, 25-Nov-2014
178,Revenue,CCHD,MH Purchasing - Younger,Permanent Residential,Brightbow,1493.96, 25-Nov-2014
179,Revenue,CCHD,Purchase of RAC places,Other L.A.'s - General,Bristol City Council,9377.10, 17-Nov-2014
180,Revenue,CCHD,Purchase of RAC places,Other L.A.'s - General,Bristol City Council,3451.38, 17-Nov-2014
181,Revenue,CCHD,Supported Living - North,Private & Voluntary Home Care,Bristol Houses UK Limited,1056.60, 07-Nov-2014
182,Revenue,CCHD,Supported Living - North,Private & Voluntary Home Care,Bristol Houses UK Limited,545.04, 07-Nov-2014
183,Revenue,CCHD,Supported Living - North,Private & Voluntary Home Care,Bristol Houses UK Limited,938.68, 07-Nov-2014
184,Revenue,CCHD,Bed and Breakfast,Bed & Breakfast,Bristol Housing & Support Limited,1120.00, 03-Nov-2014
185,Revenue,CCHD,Bed and Breakfast,Bed & Breakfast,Bristol Housing & Support Limited,1800.00, 03-Nov-2014
186,Revenue,CCHD,Purchase of Non-Res Care - North,Day Care / Social Activities,Bristol Water Plc,7916.87, 24-Nov-2014
187,Revenue,CCHD,Home Care - Elderly - North,Day Care / Social Activities,Britannia House,914.88, 25-Nov-2014
188,Revenue,CCHD,Home Care - Elderly - South,Day Care / Social Activities,Britannia House,914.88, 25-Nov-2014
189,Revenue,CCHD,Home Care - Elderly - North,Day Care / Social Activities,Britannia House,686.16, 25-Nov-2014
190,Revenue,CCHD,Home Care - Elderly - North,Day Care / Social Activities,Britannia House,914.88, 25-Nov-2014
191,Revenue,CCHD,Home Care - Elderly - South,Day Care / Social Activities,Britannia House,686.16, 25-Nov-2014
192,Revenue,CCHD,Home Care - Elderly - North,Day Care / Social Activities,Britannia House,914.88, 25-Nov-2014
193,Revenue,CCHD,Home Care - Elderly - South,Day Care / Social Activities,Britannia House,571.80, 25-Nov-2014
194,Revenue,CCHD,Home Care - Elderly - South,Day Care / Social Activities,Britannia House,1143.60, 25-Nov-2014
195,Revenue,CCHD,Home Care - Elderly - South,Day Care / Social Activities,Britannia House,686.16, 25-Nov-2014
196,Revenue,CCHD,Home Care - Elderly - South,Day Care / Social Activities,Britannia House,686.16, 25-Nov-2014
197,Revenue,CCHD,Home Care - Elderly - South,Day Care / Social Activities,Britannia House,686.16, 25-Nov-2014
198,Revenue,CCHD,Bed Purchasing - North,Permanent Nursing,Brunel Care  Saffron Gardens,631.52, 25-Nov-2014
199,Revenue,CCHD,Bed Purchasing - Southmead Hospital,Permanent Nursing,Brunel Care  Saffron Gardens,876.08, 25-Nov-2014
200,Revenue,CCHD,Bed Purchasing - Southmead Hospital,Permanent Nursing,Brunel Care  Saffron Gardens,2052.32, 25-Nov-2014
201,Revenue,CCHD,Bed Purchasing - Southmead Hospital,Permanent Residential,Brunel Care  Saffron Gardens,1270.68, 25-Nov-2014
202,Revenue,CCHD,Bed Purchasing - South,Permanent Nursing,Brunel Care  Saffron Gardens,2072.32, 25-Nov-2014
203,Revenue,CCHD,Bed Purchasing - South,Permanent Nursing,Brunel Care  Saffron Gardens,19902.93, 25-Nov-2014
204,Revenue,CCHD,Bed Purchasing - Southmead Hospital,Permanent Nursing,Brunel Care  Saffron Gardens,1391.72, 25-Nov-2014
205,Revenue,CCHD,Bed Purchasing - Southmead Hospital,Permanent Nursing,Brunel Care  Saffron Gardens,10286.43, 25-Nov-2014
206,Revenue,CCHD,Bed Purchasing - South,Permanent Residential,Brunel Care  Saffron Gardens,1296.84, 25-Nov-2014
207,Revenue,CCHD,Home Care - Elderly - North,Other Small Contracts,Brunel Care Community Services,41239.11, 14-Nov-2014
208,Revenue,CCHD,Home Care - Elderly - North,Private & Voluntary Home Care,Brunelcare,23160.00, 03-Nov-2014
209,Revenue,CCHD,Home Care - Elderly - North,Private & Voluntary Home Care,Brunelcare,23160.00, 10-Nov-2014
210,Revenue,CCHD,Home Care - Elderly - North,Private & Voluntary Home Care,Brunelcare,23160.00, 17-Nov-2014
211,Revenue,CCHD,Home Care - Elderly - North,Private & Voluntary Home Care,Brunelcare,23160.00, 24-Nov-2014
212,Revenue,CCHD,Bed Purchasing - Elderly MH - South,Permanent Nursing,Brunelcare,1875.51, 10-Nov-2014
213,Revenue,CCHD,Bed Purchasing - South,Permanent Nursing,Brunelcare,1918.46, 10-Nov-2014
214,Revenue,CCHD,Bed Purchasing - South,Permanent Nursing,Brunelcare,1564.59, 10-Nov-2014
215,Revenue,CCHD,Bed Purchasing - Elderly MH - South,Permanent Nursing,Brunelcare,1914.90, 10-Nov-2014
216,Revenue,CCHD,Bed Purchasing - South,Permanent Nursing,Brunelcare,1970.61, 10-Nov-2014
217,Revenue,CCHD,Bed Purchasing - South,Permanent Nursing,Brunelcare,1751.74, 10-Nov-2014
218,Revenue,CCHD,Bed Purchasing - Elderly MH - South,Permanent Nursing,Brunelcare,1955.83, 10-Nov-2014
219,Revenue,CCHD,Bed Purchasing - Elderly S117- North,Permanent Nursing,Brunelcare,2026.59, 10-Nov-2014
220,Revenue,CCHD,Bed Purchasing - Elderly S117- North,Permanent Nursing,Brunelcare,2501.83, 10-Nov-2014
221,Revenue,CCHD,Bed purchasing - Elderly S117 - South,Permanent Nursing,Brunelcare,2501.83, 10-Nov-2014
222,Revenue,CCHD,Bed Purchasing - Southmead Hospital,Permanent Nursing,Brunelcare,1680.73, 10-Nov-2014
223,Revenue,CCHD,Bed Purchasing - Southmead Hospital,Permanent Nursing,Brunelcare,884.49, 10-Nov-2014
224,Revenue,CCHD,Bed Purchasing - Southmead Hospital,Permanent Nursing,Brunelcare,1639.07, 10-Nov-2014
225,Revenue,CCHD,Bed Purchasing - South,Permanent Nursing,Brunelcare,1276.50, 10-Nov-2014
226,Revenue,CCHD,Bed Purchasing - South,Permanent Nursing,Brunelcare,1468.29, 10-Nov-2014
227,Revenue,CCHD,Bed Purchasing - South,Permanent Nursing,Brunelcare,1978.56, 10-Nov-2014
228,Revenue,CCHD,Bed Purchasing - Southmead Hospital,Permanent Nursing,Brunelcare,1110.90, 10-Nov-2014
229,Revenue,CCHD,Bed Purchasing - South,Permanent Nursing,Brunelcare,1970.61, 10-Nov-2014
230,Revenue,CCHD,Bed Purchasing - Southmead Hospital,Permanent Nursing,Brunelcare,1751.74, 10-Nov-2014
231,Revenue,CCHD,Bed Purchasing - South,Permanent Nursing,Brunelcare,1751.74, 10-Nov-2014
232,Revenue,CCHD,Bed Purchasing - North,Permanent Nursing,Brunelcare,1751.74, 10-Nov-2014
233,Revenue,CCHD,Bed Purchasing - Southmead Hospital,Permanent Nursing,Brunelcare,1751.74, 10-Nov-2014
234,Revenue,CCHD,Bed Purchasing - Southmead Hospital,Permanent Nursing,Brunelcare,1648.20, 10-Nov-2014
235,Revenue,CCHD,Bed Purchasing - Elderly S117- North,Permanent Nursing,Brunelcare,2501.83, 10-Nov-2014
236,Revenue,CCHD,Bed Purchasing - Southmead Hospital,Permanent Nursing,Brunelcare,1430.19, 10-Nov-2014
237,Revenue,CCHD,Bed Purchasing - North,Permanent Nursing,Brunelcare,681.71, 10-Nov-2014
238,Revenue,CCHD,Bed Purchasing - North,Permanent Nursing,Brunelcare,1598.07, 10-Nov-2014
239,Revenue,CCHD,South Glos Users in South Glos Homes,Permanent Nursing,Brunelcare,2186.12, 10-Nov-2014
240,Revenue,CCHD,Bed Purchasing - South,Permanent Nursing,Brunelcare,8274.60, 10-Nov-2014
241,Revenue,CCHD,Bed Purchasing - South,Permanent Nursing,Brunelcare,1751.74, 10-Nov-2014
242,Revenue,CCHD,Bed Purchasing - South,Permanent Nursing,Brunelcare,8164.22, 20-Nov-2014
243,Revenue,CCHD,S75 CCG Interim Beds,Permanent Nursing,Brunelcare,15200.00, 25-Nov-2014
244,Revenue,CCHD,Information Systems - Software,Computer Equipment - Purchase,BT Global Services Solutions,984.77, 07-Nov-2014
245,Revenue,CCHD,Bed Purchasing - Southmead Hospital,Permanent Nursing,Bupa Care Services  Bridge House,1902.40, 25-Nov-2014
246,Revenue,CCHD,Bed Purchasing - Southmead Hospital,Permanent Nursing,Bupa Care Services  Bridge House,1674.48, 25-Nov-2014
247,Revenue,CCHD,Bed Purchasing - North,Permanent Nursing,Bupa Care Services  Bridge House,5938.28, 25-Nov-2014
248,Revenue,CCHD,South Glos Users in all other LA Homes,Permanent Nursing,Bupa Care Services  Bridge House,610.44, 25-Nov-2014
249,Revenue,CCHD,Bed Purchasing - North,Permanent Residential,Bupa Care Services  Bridge House,17388.35, 25-Nov-2014
250,Revenue,CCHD,Supported Living - North,Private & Voluntary Home Care,Camphill Communities Thornbury Limited,998.40, 12-Nov-2014
251,Revenue,CCHD,Supported Living - North,Private & Voluntary Home Care,Camphill Communities Thornbury Limited,599.04, 12-Nov-2014
252,Revenue,CCHD,Supported Living - North,Private & Voluntary Home Care,Camphill Communities Thornbury Limited,599.04, 12-Nov-2014
253,Revenue,CCHD,Supported Living - North,Private & Voluntary Home Care,Camphill Communities Thornbury Limited,773.76, 12-Nov-2014
254,Revenue,CCHD,Supported Living - North,Private & Voluntary Home Care,Camphill Communities Thornbury Limited,1223.04, 12-Nov-2014
255,Revenue,CCHD,Supported Living - North,Private & Voluntary Home Care,Camphill Communities Thornbury Limited,511.68, 12-Nov-2014
256,Revenue,CCHD,Supported Living - North,Private & Voluntary Home Care,Camphill Communities Thornbury Limited,698.88, 12-Nov-2014
257,Revenue,CCHD,Day Care - North,Day Care / Social Activities,Camphill Communities Thornbury Limited,549.12, 12-Nov-2014
258,Revenue,CCHD,Supported Living - North,Private & Voluntary Home Care,Camphill Communities Thornbury Limited,1148.16, 12-Nov-2014
259,Revenue,CCHD,Bed Purchasing - Elderly S117- North,Permanent Residential,Individual,2334.04, 25-Nov-2014
260,Revenue,CCHD,Bed Purchasing - Elderly S117- North,Permanent Residential,Care Community Ltd,66919.30, 25-Nov-2014
261,Revenue,CCHD,Home Care - Elderly - North,Other Small Contracts,Care Horizons Limited,2148.97, 05-Nov-2014
262,Revenue,CCHD,Day Care - South,Day Care / Social Activities,Care Horizons Limited,275.90, 05-Nov-2014
263,Revenue,CCHD,Home Care - Elderly - North,Other Small Contracts,Care Horizons Limited,2148.97, 05-Nov-2014
264,Revenue,CCHD,Day Care - South,Day Care / Social Activities,Care Horizons Limited,249.20, 05-Nov-2014
265,Revenue,CCHD,Home Care - Elderly - North,Other Small Contracts,Care Horizons Limited,2148.97, 05-Nov-2014
266,Revenue,CCHD,Day Care - South,Day Care / Social Activities,Care Horizons Limited,249.20, 05-Nov-2014
267,Revenue,CCHD,Home Care - Elderly - North,Other Small Contracts,Care Horizons Limited,2123.80, 13-Nov-2014
268,Revenue,CCHD,Day Care - South,Day Care / Social Activities,Care Horizons Limited,235.85, 13-Nov-2014
269,Revenue,CCHD,Home Care - Elderly - North,Other Small Contracts,Care Horizons Limited,2148.97, 05-Nov-2014
270,Revenue,CCHD,Day Care - South,Day Care / Social Activities,Care Horizons Limited,244.75, 05-Nov-2014
271,Revenue,CCHD,Home Care - Elderly - North,Other Small Contracts,Care Horizons Limited,2073.45, 05-Nov-2014
272,Revenue,CCHD,Day Care - South,Day Care / Social Activities,Care Horizons Limited,249.20, 05-Nov-2014
273,Revenue,CCHD,Home Care - Elderly - North,Other Small Contracts,Care Horizons Limited,639.42, 05-Nov-2014
274,Revenue,CCHD,Day Care - South,Day Care / Social Activities,Care Horizons Limited,249.20, 05-Nov-2014
275,Revenue,CCHD,Supported Living - North,Private & Voluntary Home Care,Care Horizons Limited,5571.04, 06-Nov-2014
276,Revenue,CCHD,Purchase of Non-Res Care - North,Day Care / Social Activities,Care Horizons Limited,1214.47, 03-Nov-2014
277,Revenue,CCHD,Purchase of Non-Res Care - North,Day Care / Social Activities,Care Horizons Limited,1117.79, 03-Nov-2014
278,Revenue,CCHD,Purchase of Non-Res Care - North,Day Care / Social Activities,Care Horizons Limited,1084.48, 03-Nov-2014
279,Revenue,CCHD,Home Care - Elderly - North,Other Small Contracts,Care Horizons Limited,1253.79, 14-Nov-2014
280,Revenue,CCHD,Supported Living - North,Private & Voluntary Home Care,Care Horizons Limited,5453.31, 10-Nov-2014
281,Revenue,CCHD,Supported Living - North,Private & Voluntary Home Care,Care Horizons Limited,5938.58, 24-Nov-2014
282,Revenue,CCHD,Supported Living - South,Private & Voluntary Home Care,Care Horizons Limited,1900.05, 18-Nov-2014
283,Revenue,CCHD,Electronic Home Care Monitoring,Other Supplies & Services,Care Monitoring 2000 Limited,1310.00, 03-Nov-2014
284,Revenue,CCHD,Home Care - Elderly - South,Day Care / Social Activities,Care UK,196.00, 11-Nov-2014
285,Revenue,CCHD,Home Care - Elderly - South,Other Small Contracts,Care UK,4606.00, 11-Nov-2014
286,Revenue,CCHD,Home Care - Elderly - North,Day Care / Social Activities,Care UK,66.64, 11-Nov-2014
287,Revenue,CCHD,Home Care - Elderly - North,Other Small Contracts,Care UK,1132.88, 11-Nov-2014
288,Revenue,CCHD,Day Care - North,Day Care / Social Activities,Care UK,278.32, 11-Nov-2014
289,Revenue,CCHD,Home care - Elderly MH - North,Other Small Contracts,Care UK,509.60, 11-Nov-2014
290,Revenue,CCHD,Elderly MH Day Care North,Day Care / Social Activities,Care UK,133.28, 11-Nov-2014
291,Revenue,CCHD,Home Care - Elderly - South,Day Care / Social Activities,Care UK,196.00, 18-Nov-2014
292,Revenue,CCHD,Home Care - Elderly - South,Other Small Contracts,Care UK,4880.40, 18-Nov-2014
293,Revenue,CCHD,Home Care - Elderly - North,Day Care / Social Activities,Care UK,160.72, 18-Nov-2014
294,Revenue,CCHD,Home Care - Elderly - North,Other Small Contracts,Care UK,1179.92, 18-Nov-2014
295,Revenue,CCHD,Day Care - North,Day Care / Social Activities,Care UK,270.48, 18-Nov-2014
296,Revenue,CCHD,Home care - Elderly MH - North,Other Small Contracts,Care UK,509.60, 18-Nov-2014
297,Revenue,CCHD,Elderly MH Day Care North,Day Care / Social Activities,Care UK,141.12, 18-Nov-2014
298,Revenue,CCHD,Home Care - Elderly - South,Other Small Contracts,Carewatch (Bristol),344.25, 12-Nov-2014
299,Revenue,CCHD,Home Care - Elderly - North,Other Small Contracts,Carewatch (Bristol),777.75, 12-Nov-2014
300,Revenue,CCHD,Home Care - Elderly - South,Other Small Contracts,Carewatch (Bristol),386.75, 12-Nov-2014
301,Revenue,CCHD,Home Care - Elderly - North,Other Small Contracts,Carewatch (Bristol),552.50, 12-Nov-2014
302,Revenue,CCHD,Elderly MH Day Care South,Day Care / Social Activities,Caring Home Healthcare Group Limited,550.00, 19-Nov-2014
303,Revenue,CCHD,Bed Purchasing - Southmead Hospital,Permanent Residential,Cepen Lodge Care Home,1832.20, 25-Nov-2014
304,Revenue,CCHD,Bed Purchasing - North,Permanent Residential,Charlton House Residential Home,1071.28, 25-Nov-2014
305,Revenue,CCHD,Training - Adult Services,Training Expenses,Chartered Management Institute,834.00, 21-Nov-2014
306,Revenue,CCHD,Home Care - Elderly - South,Other Small Contracts,Cherish Able Care Limited,6984.75, 05-Nov-2014
307,Revenue,CCHD,Home Care - Elderly - North,Other Small Contracts,Cherish Able Care Limited,116.76, 05-Nov-2014
308,Revenue,CCHD,Home Care - Elderly - South,Other Small Contracts,Cherish Able Care Limited,6676.17, 17-Nov-2014
309,Revenue,CCHD,Home Care - Elderly - North,Other Small Contracts,Cherish Able Care Limited,116.76, 17-Nov-2014
310,Revenue,CCHD,Home Care - Elderly - South,Other Small Contracts,Cherish Able Care Limited,6238.32, 14-Nov-2014
311,Revenue,CCHD,Home Care - Elderly - North,Other Small Contracts,Cherish Able Care Limited,720.46, 14-Nov-2014
312,Revenue,CCHD,Home Care - Elderly - South,Other Small Contracts,Cherish Able Care Limited,6042.33, 21-Nov-2014
313,Revenue,CCHD,Home Care - Elderly - North,Other Small Contracts,Cherish Able Care Limited,849.49, 21-Nov-2014
314,Revenue,CCHD,Home Care - Elderly - South,Other Small Contracts,Cherish Able Care Limited,6063.18, 27-Nov-2014
315,Revenue,CCHD,Home Care - Elderly - North,Other Small Contracts,Cherish Able Care Limited,849.49, 27-Nov-2014
316,Revenue,CCHD,Bed purchasing -S28A  Under 65 - North,Permanent Residential,Chescombe Lodge,8697.00, 25-Nov-2014
317,Revenue,CCHD,Bed Purchasing - Southmead Hospital,Permanent Nursing,Cholwell House Nursing Home Ltd,1995.79, 25-Nov-2014
318,Revenue,CCHD,Bed Purchasing - North,Permanent Residential,Church House,10507.68, 25-Nov-2014
319,Revenue,CCHD,Bed Purchasing - North,Permanent Residential,Church House,81434.52, 25-Nov-2014
320,Revenue,CCHD,Bed Purchasing - North,Permanent Residential,Church House,5914.96, 25-Nov-2014
321,Revenue,CCHD,Section 117 Placements MH Younger,Permanent Residential,Church House,7567.32, 25-Nov-2014
322,Revenue,CCHD,Section 117 Placements MH Younger,Permanent Residential,Church House,7307.08, 25-Nov-2014
323,Revenue,CCHD,18-25 Year Olds,Permanent Residential,Citibase Watford,7012.00, 25-Nov-2014
324,Revenue,CCHD,Bed Purchasing - South,Permanent Residential,Citibase Watford,57421.30, 25-Nov-2014
325,Revenue,CCHD,18-25 Year Olds,Permanent Residential,Citibase Watford,57421.30, 25-Nov-2014
326,Revenue,CCHD,Bed Purchasing - Elderly S117- North,Permanent Residential,Citibase Watford,8932.12, 25-Nov-2014
327,Revenue,CCHD,Bed Purchasing - Elderly S117- North,Permanent Residential,Citibase Watford,69223.93, 25-Nov-2014
328,Revenue,CCHD,18-25 Year Olds,Permanent Residential,Citibase Watford,50806.40, 25-Nov-2014
329,Revenue,CCHD,Home Care - Elderly - South,Other Small Contracts,Cleeve Care Group,889.00, 11-Nov-2014
330,Revenue,CCHD,Home Care - Elderly - North,Other Small Contracts,Cleeve Care Group,521.50, 11-Nov-2014
331,Revenue,CCHD,Home Care - Elderly - South,Other Small Contracts,Cleeve Care Group,1050.00, 06-Nov-2014
332,Revenue,CCHD,Home Care - Elderly - North,Other Small Contracts,Cleeve Care Group,969.50, 06-Nov-2014
333,Revenue,CCHD,Bed Purchasing - Southmead Hospital,Permanent Residential,Cleeve Lodge,1457.16, 25-Nov-2014
334,Revenue,CCHD,Bed Purchasing - South,Respite Planned - Residential,Cleeve Lodge,1230.00, 25-Nov-2014
335,Revenue,CCHD,Bed Purchasing - North,Permanent Nursing,Cleeve Lodge,1874.24, 25-Nov-2014
336,Revenue,CCHD,Bed Purchasing - South,Respite Planned - Residential,Cleeve Lodge,1142.14, 25-Nov-2014
337,Revenue,CCHD,Bed Purchasing - South,Permanent Residential,Cleeve Lodge,1801.44, 25-Nov-2014
338,Revenue,CCHD,Bed Purchasing - South,Permanent Residential,Cleeve Lodge,2291.88, 25-Nov-2014
339,Revenue,CCHD,Bed Purchasing - North,Permanent Residential,Cleeve Lodge,1393.60, 25-Nov-2014
340,Revenue,CCHD,Bed Purchasing - South,Permanent Residential,Cleeve Lodge,1806.32, 25-Nov-2014
341,Revenue,CCHD,Bed Purchasing - South,Permanent Residential,Collingwood Residential Home,1427.48, 25-Nov-2014
342,Revenue,CCHD,Bed Purchasing - South,Permanent Residential,Collingwood Residential Home,1094.24, 25-Nov-2014
343,Revenue,CCHD,Bed Purchasing - South,Respite Planned - Residential,Collingwood Residential Home,1485.71, 25-Nov-2014
344,Revenue,CCHD,Bed Purchasing - South,Respite Planned - Residential,Collingwood Residential Home,817.14, 25-Nov-2014
345,Revenue,CCHD,Bed Purchasing - South,Permanent Residential,Collingwood Residential Home,1448.60, 25-Nov-2014
346,Revenue,CCHD,Bed Purchasing - South,Permanent Residential,Collingwood Residential Home,1323.04, 25-Nov-2014
347,Revenue,CCHD,Bed Purchasing - South,Permanent Residential,Collingwood Residential Home,14553.57, 25-Nov-2014
348,Revenue,CCHD,Bed Purchasing - South,Permanent Residential,Collingwood Residential Home,1280.20, 25-Nov-2014
349,Revenue,CCHD,Sexual Health,Other Small Contracts,Coniston Medical Practice,887.84, 25-Nov-2014
350,Revenue,CCHD,Bed and Breakfast,Bed & Breakfast,Connolly & Callaghan Limited,459.90, 19-Nov-2014
351,Revenue,CCHD,Bed and Breakfast,Bed & Breakfast,Connolly & Callaghan Limited,491.40, 19-Nov-2014
352,Revenue,CCHD,Bed and Breakfast,Bed & Breakfast,Connolly & Callaghan Limited,554.40, 19-Nov-2014
353,Revenue,CCHD,Bed and Breakfast,Bed & Breakfast,Connolly & Callaghan Limited,680.40, 19-Nov-2014
354,Revenue,CCHD,Bed and Breakfast,Bed & Breakfast,Connolly & Callaghan Limited,525.00, 19-Nov-2014
355,Revenue,CCHD,Bed and Breakfast,Bed & Breakfast,Connolly & Callaghan Limited,648.90, 19-Nov-2014
356,Revenue,CCHD,Bed and Breakfast,Bed & Breakfast,Connolly & Callaghan Limited,585.90, 19-Nov-2014
357,Revenue,CCHD,Bed and Breakfast,Bed & Breakfast,Connolly & Callaghan Limited,522.90, 19-Nov-2014
358,Revenue,CCHD,Bed and Breakfast,Bed & Breakfast,Connolly & Callaghan Limited,448.00, 19-Nov-2014
359,Revenue,CCHD,Bed and Breakfast,Bed & Breakfast,Connolly & Callaghan Limited,522.90, 18-Nov-2014
360,Revenue,CCHD,Bed and Breakfast,Bed & Breakfast,Connolly & Callaghan Limited,522.90, 19-Nov-2014
361,Revenue,CCHD,Bed and Breakfast,Bed & Breakfast,Connolly & Callaghan Limited,617.40, 19-Nov-2014
362,Revenue,CCHD,Bed and Breakfast,Bed & Breakfast,Connolly & Callaghan Limited,490.00, 19-Nov-2014
363,Revenue,CCHD,Bed and Breakfast,Bed & Breakfast,Connolly & Callaghan Limited,630.00, 19-Nov-2014
364,Revenue,CCHD,Bed and Breakfast,Bed & Breakfast,Connolly & Callaghan Limited,459.90, 19-Nov-2014
365,Revenue,CCHD,Bed Purchasing - Southmead Hospital,Permanent Residential,Coombs Wood House,965.00, 25-Nov-2014
366,Revenue,CCHD,Sexual Health,Other Small Contracts,Courtside Surgery,1517.60, 25-Nov-2014
367,Revenue,CCHD,Bed Purchasing - S28A - Over 65- North,Permanent Residential,Cream Ii Ltd  Longrun House,8039.76, 25-Nov-2014
368,Revenue,CCHD,Bed Purchasing - South,Permanent Residential,Cream Ii Ltd  Longrun House,49249.55, 25-Nov-2014
369,Revenue,CCHD,Bed purchasing -S28A  Under 65 - North,Permanent Residential,Creedy Court,9294.40, 25-Nov-2014
370,Revenue,CCHD,Bed Purchasing - S28A - Over 65- North,Permanent Residential,Creedy Court,7726.88, 25-Nov-2014
371,Revenue,CCHD,Bed Purchasing - North,Permanent Residential,Creedy Court,12580.08, 21-Nov-2014
372,Revenue,CCHD,Public Health Project Funding,Consultants Fees,D Harvey Consulting Limited,1925.00, 19-Nov-2014
373,Revenue,CCHD,Public Health Project Funding,Consultants Fees,D Harvey Consulting Limited,3721.10, 03-Nov-2014
374,Revenue,CCHD,Public Health Project Funding,Consultants Fees,D Harvey Consulting Limited,3192.80, 03-Nov-2014
375,Revenue,CCHD,Public Health Project Funding,Consultants Fees,D Harvey Consulting Limited,3126.05, 03-Nov-2014
376,Revenue,CCHD,Public Health Project Funding,Consultants Fees,D Harvey Consulting Limited,2275.00, 03-Nov-2014
377,Revenue,CCHD,Public Health Project Funding,Consultants Fees,D Harvey Consulting Limited,1963.25, 19-Nov-2014
378,Revenue,CCHD,Purchase of Non-Res Care - South,Day Care / Social Activities,Daneswood,1472.68, 05-Nov-2014
379,Revenue,CCHD,Purchase of Non-Res Care - South,Day Care / Social Activities,Daneswood,1472.68, 05-Nov-2014
380,Revenue,CCHD,Purchase of Non-Res Care - South,Day Care / Social Activities,Daneswood,1472.68, 05-Nov-2014
381,Revenue,CCHD,Bed Purchasing - South,Permanent Residential,Daneswood,11009.48, 25-Nov-2014
382,Revenue,CCHD,Bed Purchasing - North,Permanent Residential,Daneswood,9114.88, 25-Nov-2014
383,Revenue,CCHD,Bed Purchasing - Elderly S117- North,Permanent Nursing,Danshell Healthcare Group,57645.00, 25-Nov-2014
384,Revenue,CCHD,Learning Difficulties PSL,Other Supplies & Services,Individual,2016.44, 21-Nov-2014
385,Revenue,CCHD,Purchase of Non-Res Care - North,Day Care / Social Activities,Design 4 Life Ltd,1049.76, 05-Nov-2014
386,Revenue,CCHD,Purchase of Non-Res Care - North,Day Care / Social Activities,Design 4 Life Ltd,1837.08, 05-Nov-2014
387,Revenue,CCHD,Purchase of Non-Res Care - North,Day Care / Social Activities,Design 4 Life Ltd,1312.20, 24-Nov-2014
388,Revenue,CCHD,Purchase of Non-Res Care - North,Day Care / Social Activities,Design 4 Life Ltd,1705.86, 24-Nov-2014
389,Revenue,CCHD,Bed Purchasing - South,Permanent Residential,Devon & Cornwall Autistic Community Trus,8796.92, 25-Nov-2014
390,Revenue,CCHD,Home Care - Elderly - South,Other Small Contracts,Individual,474.32, 17-Nov-2014
391,Revenue,CCHD,Home Care - Elderly - North,Other Small Contracts,Individual,193.60, 17-Nov-2014
392,Revenue,CCHD,Supported Living - South,Private & Voluntary Home Care,Dimensions (UK) Ltd,7748.40, 28-Nov-2014
393,Revenue,CCHD,Bed Purchasing - South,Permanent Residential,Dimensions(Uk) Ltd,45175.35, 25-Nov-2014
394,Revenue,CCHD,Training - Adult Services,Training Expenses,Do The Right Thing Ltd,875.00, 05-Nov-2014
395,Revenue,CCHD,Training - Adult Services,Training Expenses,Do The Right Thing Ltd,1750.00, 28-Nov-2014
396,Revenue,CCHD,Cambrian Green Day Service,"Provisions (Food, etc)",Douglas Liddell,580.00, 03-Nov-2014
397,Revenue,CCHD,Cambrian Green Day Service,"Provisions (Food, etc)",Douglas Liddell,580.00, 13-Nov-2014
398,Revenue,CCHD,Cambrian Green Day Service,"Provisions (Food, etc)",Douglas Liddell,565.00, 27-Nov-2014
399,Revenue,CCHD,Sexual Health,Other Small Contracts,Individual,640.08, 24-Nov-2014
400,Revenue,CCHD,Social Lettings Agency,Other Supplies & Services,Individual,580.74, 10-Nov-2014
401,Revenue,CCHD,Sexual Health,Other Small Contracts,Dr P Taylor & Partners,1961.50, 25-Nov-2014
402,Revenue,CCHD,Bed Purchasing - South,Permanent Residential,Dudbridge House,8952.33, 25-Nov-2014
403,Revenue,CCHD,MH Purchasing - Younger,Permanent Residential,Dunraven House,1854.32, 25-Nov-2014
404,Revenue,CCHD,Bed and Breakfast,Bed & Breakfast,Individual,450.00, 04-Nov-2014
405,Revenue,CCHD,Bed and Breakfast,Bed & Breakfast,Individual,651.00, 04-Nov-2014
406,Revenue,CCHD,Bed and Breakfast,Bed & Breakfast,Individual,504.00, 04-Nov-2014
407,Revenue,CCHD,Bed and Breakfast,Bed & Breakfast,Individual,504.00, 04-Nov-2014
408,Revenue,CCHD,Bed and Breakfast,Bed & Breakfast,Individual,434.00, 04-Nov-2014
409,Revenue,CCHD,Bed and Breakfast,Bed & Breakfast,Individual,651.00, 17-Nov-2014
410,Revenue,CCHD,Bed and Breakfast,Bed & Breakfast,Individual,504.00, 17-Nov-2014
411,Revenue,CCHD,Bed and Breakfast,Bed & Breakfast,Individual,504.00, 17-Nov-2014
412,Revenue,CCHD,Bed and Breakfast,Bed & Breakfast,Individual,434.00, 17-Nov-2014
413,Revenue,CCHD,Bed and Breakfast,Bed & Breakfast,Individual,651.00, 21-Nov-2014
414,Revenue,CCHD,Bed and Breakfast,Bed & Breakfast,Individual,504.00, 21-Nov-2014
415,Revenue,CCHD,Bed and Breakfast,Bed & Breakfast,Individual,434.00, 21-Nov-2014
416,Revenue,CCHD,Bed and Breakfast,Bed & Breakfast,Individual,651.00, 26-Nov-2014
417,Revenue,CCHD,Bed and Breakfast,Bed & Breakfast,Individual,504.00, 26-Nov-2014
418,Revenue,CCHD,Bed and Breakfast,Bed & Breakfast,Individual,504.00, 26-Nov-2014
419,Revenue,CCHD,Bed and Breakfast,Bed & Breakfast,Individual,434.00, 26-Nov-2014
420,Revenue,CCHD,Bed Purchasing - North,Permanent Residential,East Court,2213.44, 25-Nov-2014
421,Revenue,CCHD,Home Care - Elderly - South,Day Care / Social Activities,Easton Community Centre,520.56, 25-Nov-2014
422,Revenue,CCHD,Home Care - Elderly - South,Day Care / Social Activities,Easton Community Centre,520.56, 25-Nov-2014
423,Revenue,CCHD,Home Care - Elderly - North,Day Care / Social Activities,Easton Community Centre,520.56, 25-Nov-2014
424,Revenue,CCHD,Home Care - Elderly - North,Day Care / Social Activities,Easton Community Centre,520.56, 25-Nov-2014
425,Revenue,CCHD,Home Care - Elderly - South,Supported Living,Eclipse Office Park,3592.96, 25-Nov-2014
426,Revenue,CCHD,Home Care - Elderly - North,Supported Living,Eclipse Office Park,4293.72, 25-Nov-2014
427,Revenue,CCHD,Supported Living (S28a) North,Private & Voluntary Home Care,Eclipse Office Park,4032.80, 25-Nov-2014
428,Revenue,CCHD,Home Care - Elderly - South,Supported Living,Eclipse Office Park,3604.68, 25-Nov-2014
429,Revenue,CCHD,Home Care - Elderly - South,Supported Living,Eclipse Office Park,2292.92, 25-Nov-2014
430,Revenue,CCHD,Supported Living (S28a) North,Private & Voluntary Home Care,Eclipse Office Park,4002.44, 25-Nov-2014
431,Revenue,CCHD,Supported Living (S28a) North,Private & Voluntary Home Care,Eclipse Office Park,4002.44, 25-Nov-2014
432,Revenue,CCHD,Supported Living (S28a) North,Private & Voluntary Home Care,Eclipse Office Park,4032.80, 25-Nov-2014
433,Revenue,CCHD,Supported Living (S28a) South,Supported Living,Eclipse Office Park,3839.88, 25-Nov-2014
434,Revenue,CCHD,Supported Living (S28a) North,Private & Voluntary Home Care,Eclipse Office Park,3564.60, 25-Nov-2014
435,Revenue,CCHD,Supported Living (S28a) North,Private & Voluntary Home Care,Eclipse Office Park,3564.60, 25-Nov-2014
436,Revenue,CCHD,Home Care - Elderly - South,Supported Living,Eclipse Office Park,2949.92, 25-Nov-2014
437,Revenue,CCHD,Supported Living (S28a) South,Supported Living,Eclipse Office Park,5447.00, 25-Nov-2014
438,Revenue,CCHD,Home Care - Elderly - South,Supported Living,Eclipse Office Park,2208.68, 25-Nov-2014
439,Revenue,CCHD,Supported Living (S28a) South,Supported Living,Eclipse Office Park,2208.68, 25-Nov-2014
440,Revenue,CCHD,Supported Living (S28a) North,Private & Voluntary Home Care,Eclipse Office Park,4303.72, 25-Nov-2014
441,Revenue,CCHD,Supported Living (S28a) North,Private & Voluntary Home Care,Eclipse Office Park,3576.60, 25-Nov-2014
442,Revenue,CCHD,Supported Living (S28a) South,Supported Living,Eclipse Office Park,2088.68, 25-Nov-2014
443,Revenue,CCHD,Supported Living (S28a) South,Supported Living,Eclipse Office Park,2208.68, 25-Nov-2014
444,Revenue,CCHD,Supported Living (S28a) South,Supported Living,Eclipse Office Park,2949.92, 25-Nov-2014
445,Revenue,CCHD,Home Care - Elderly - South,Day Care / Social Activities,Eclipse Office Park,735.12, 25-Nov-2014
446,Revenue,CCHD,Home Care - Elderly - North,Day Care / Social Activities,Eclipse Office Park,980.16, 25-Nov-2014
447,Revenue,CCHD,Home Care - Elderly - South,Day Care / Social Activities,Eclipse Office Park,612.60, 25-Nov-2014
448,Revenue,CCHD,Home Care - Elderly - South,Day Care / Social Activities,Eclipse Office Park,857.64, 25-Nov-2014
449,Revenue,CCHD,Home Care - Elderly - South,Day Care / Social Activities,Eclipse Office Park,735.12, 25-Nov-2014
450,Revenue,CCHD,Home Care - Elderly - South,Day Care / Social Activities,Eclipse Office Park,857.64, 25-Nov-2014
451,Revenue,CCHD,Home Care - Elderly - South,Day Care / Social Activities,Eclipse Office Park,1225.20, 25-Nov-2014
452,Revenue,CCHD,Home Care - Elderly - South,Day Care / Social Activities,Eclipse Office Park,735.12, 25-Nov-2014
453,Revenue,CCHD,Home Care - Elderly - South,Day Care / Social Activities,Eclipse Office Park,857.64, 25-Nov-2014
454,Revenue,CCHD,Home Care - Elderly - South,Day Care / Social Activities,Eclipse Office Park,980.16, 25-Nov-2014
455,Revenue,CCHD,Bed Purchasing - North,Permanent Residential,Eclipse Office Park,2653.24, 25-Nov-2014
456,Revenue,CCHD,Bed Purchasing - South,Permanent Residential,Eclipse Office Park,1429.36, 25-Nov-2014
457,Revenue,CCHD,Bed Purchasing - North,Permanent Residential,Eclipse Office Park,3435.28, 25-Nov-2014
458,Revenue,CCHD,Bed Purchasing - South,Permanent Residential,Eclipse Office Park,4867.92, 25-Nov-2014
459,Revenue,CCHD,Bed Purchasing - South,Permanent Residential,Eclipse Office Park,40201.73, 25-Nov-2014
460,Revenue,CCHD,Bed Purchasing - South,Permanent Residential,Eclipse Office Park,5442.48, 25-Nov-2014
461,Revenue,CCHD,Bed Purchasing - South,Permanent Nursing,Eclipse Office Park,2740.16, 25-Nov-2014
462,Revenue,CCHD,Bed Purchasing - South,Permanent Nursing,Eclipse Office Park,1281.68, 25-Nov-2014
463,Revenue,CCHD,Bed Purchasing - South,Permanent Residential,Eclipse Office Park,35394.60, 25-Nov-2014
464,Revenue,CCHD,Bed purchasing - Elderly S117 - South,Permanent Nursing,Eclipse Office Park,1992.00, 25-Nov-2014
465,Revenue,CCHD,South Glos Users in South Glos Homes,Permanent Nursing,Eclipse Office Park,26276.72, 25-Nov-2014
466,Revenue,CCHD,South Glos Users in South Glos Homes,Permanent Nursing,Eclipse Office Park,1248.40, 25-Nov-2014
467,Revenue,CCHD,Section 117 Placements MH Younger,Permanent Residential,Eclipse Office Park,1356.00, 25-Nov-2014
468,Revenue,CCHD,Bed purchasing - Elderly S117 - South,Permanent Nursing,Eclipse Office Park,1992.00, 25-Nov-2014
469,Revenue,CCHD,Bed Purchasing - South,Permanent Nursing,Eclipse Office Park,926.60, 25-Nov-2014
470,Revenue,CCHD,South Glos Users in South Glos Homes,Permanent Nursing,Eclipse Office Park,1710.87, 25-Nov-2014
471,Revenue,CCHD,Bed Purchasing - North,Permanent Nursing,Eclipse Office Park,1421.72, 25-Nov-2014
472,Revenue,CCHD,Bed Purchasing - North,Respite Planned - Nursing,Eclipse Office Park,1146.73, 25-Nov-2014
473,Revenue,CCHD,Bed Purchasing - South,Permanent Residential,Eclipse Office Park,4125.12, 25-Nov-2014
474,Revenue,CCHD,Bed Purchasing - South,Permanent Residential,Eclipse Office Park,35812.13, 25-Nov-2014
475,Revenue,CCHD,Bed purchasing -S28A  Under 65 - North,Permanent Nursing,Eclipse Office Park,5411.96, 25-Nov-2014
476,Revenue,CCHD,Bed purchasing -S28A  Under 65 - North,Permanent Residential,Eclipse Office Park,5334.12, 25-Nov-2014
477,Revenue,CCHD,Bed purchasing - S28A Under 65 - South,Permanent Residential,Eclipse Office Park,5527.88, 25-Nov-2014
478,Revenue,CCHD,Bed Purchasing - South,Permanent Residential,Eclipse Office Park,1302.92, 25-Nov-2014
479,Revenue,CCHD,Bed Purchasing - South,Permanent Residential,Eclipse Office Park,13974.49, 25-Nov-2014
480,Revenue,CCHD,Bed Purchasing - South,Permanent Residential,Eclipse Office Park,5018.44, 25-Nov-2014
481,Revenue,CCHD,Bed Purchasing - South,Permanent Residential,Eclipse Office Park,5534.96, 25-Nov-2014
482,Revenue,CCHD,Bed Purchasing - South,Permanent Residential,Eclipse Office Park,45492.19, 25-Nov-2014
483,Revenue,CCHD,Bed purchasing - S28A Under 65 - South,Permanent Nursing,Eclipse Office Park,7294.32, 25-Nov-2014
484,Revenue,CCHD,MH Purchasing - Younger,Permanent Residential,Eclipse Office Park,860.20, 25-Nov-2014
485,Revenue,CCHD,Bed Purchasing - South,Permanent Residential,Eclipse Office Park,5124.60, 25-Nov-2014
486,Revenue,CCHD,Bed Purchasing - South,Permanent Residential,Eclipse Office Park,43496.10, 25-Nov-2014
487,Revenue,CCHD,Bed Purchasing - South,Permanent Residential,Eclipse Office Park,3877.68, 25-Nov-2014
488,Revenue,CCHD,Bed Purchasing - South,Permanent Residential,Eclipse Office Park,33894.47, 25-Nov-2014
489,Revenue,CCHD,Bed Purchasing - North,Permanent Residential,Eclipse Office Park,4023.56, 25-Nov-2014
490,Revenue,CCHD,Bed purchasing -S28A  Under 65 - North,Permanent Residential,Eclipse Office Park,5258.04, 25-Nov-2014
491,Revenue,CCHD,Bed Purchasing - North,Permanent Residential,Eclipse Office Park,4634.84, 25-Nov-2014
492,Revenue,CCHD,Bed Purchasing - North,Permanent Residential,Eclipse Office Park,1655.30, 25-Nov-2014
493,Revenue,CCHD,Bed purchasing -S28A  Under 65 - North,Permanent Residential,Eclipse Office Park,7058.72, 25-Nov-2014
494,Revenue,CCHD,Bed Purchasing - South,Permanent Nursing,Eclipse Office Park,5801.32, 25-Nov-2014
495,Revenue,CCHD,Bed Purchasing - South,Permanent Nursing,Eclipse Office Park,47435.58, 25-Nov-2014
496,Revenue,CCHD,Bed Purchasing - Under 65s PWLD - South,Permanent Nursing,Eclipse Office Park,47216.98, 25-Nov-2014
497,Revenue,CCHD,Bed Purchasing - South,Permanent Residential,Eclipse Office Park,4515.52, 25-Nov-2014
498,Revenue,CCHD,Bed Purchasing - South,Permanent Residential,Eclipse Office Park,3210.16, 25-Nov-2014
499,Revenue,CCHD,Bed purchasing -S28A  Under 65 - North,Permanent Residential,Eclipse Office Park,6755.12, 25-Nov-2014
500,Revenue,CCHD,Bed purchasing - S28A Under 65 - South,Permanent Residential,Eclipse Office Park,4525.88, 25-Nov-2014
501,Revenue,CCHD,Bed Purchasing - S28A - Over 65- North,Permanent Residential,Eclipse Office Park,6604.52, 25-Nov-2014
502,Revenue,CCHD,Bed purchasing -S28A  Under 65 - North,Permanent Residential,Eclipse Office Park,7114.72, 25-Nov-2014
503,Revenue,CCHD,Bed purchasing -S28A  Under 65 - North,Permanent Residential,Eclipse Office Park,7058.72, 25-Nov-2014
504,Revenue,CCHD,Bed Purchasing - LD S28A- Over 65- South,Permanent Residential,Eclipse Office Park,4098.32, 25-Nov-2014
505,Revenue,CCHD,Bed purchasing - S28A Under 65 - South,Permanent Residential,Eclipse Office Park,4867.92, 25-Nov-2014
506,Revenue,CCHD,Bed purchasing - S28A Under 65 - South,Permanent Residential,Eclipse Office Park,4761.36, 25-Nov-2014
507,Revenue,CCHD,Bed purchasing - S28A Under 65 - South,Permanent Residential,Eclipse Office Park,3663.96, 25-Nov-2014
508,Revenue,CCHD,Bed Purchasing - LD S28A- Over 65- South,Permanent Residential,Eclipse Office Park,5091.12, 25-Nov-2014
509,Revenue,CCHD,Bed Purchasing - South,Permanent Residential,Eclipse Office Park,4919.32, 25-Nov-2014
510,Revenue,CCHD,Bed Purchasing - South,Permanent Residential,Eclipse Office Park,7735.89, 25-Nov-2014
511,Revenue,CCHD,Bed Purchasing - LD S28A- Over 65- South,Permanent Residential,Eclipse Office Park,5075.32, 25-Nov-2014
512,Revenue,CCHD,Bed Purchasing - LD S28A- Over 65- South,Permanent Residential,Eclipse Office Park,4353.28, 25-Nov-2014
513,Revenue,CCHD,Bed Purchasing - LD S28A- Over 65- South,Permanent Residential,Eclipse Office Park,5170.20, 25-Nov-2014
514,Revenue,CCHD,Bed Purchasing - S28A - Over 65- North,Permanent Residential,Eclipse Office Park,2875.08, 25-Nov-2014
515,Revenue,CCHD,Section 117 Placements MH Younger,Permanent Residential,Eclipse Office Park,1356.00, 25-Nov-2014
516,Revenue,CCHD,Bed Purchasing - South,Permanent Residential,Eclipse Office Park,860.20, 25-Nov-2014
517,Revenue,CCHD,Bed Purchasing - South,Permanent Residential,Eclipse Office Park,10509.00, 25-Nov-2014
518,Revenue,CCHD,Bed purchasing - S28A Under 65 - South,Permanent Residential,Eclipse Office Park,5415.92, 25-Nov-2014
519,Revenue,CCHD,Bed Purchasing - North,Permanent Residential,Eclipse Office Park,4307.44, 25-Nov-2014
520,Revenue,CCHD,Bed Purchasing - North,Permanent Nursing,Eclipse Office Park,55655.38, 25-Nov-2014
521,Revenue,CCHD,Bed Purchasing - North,Permanent Nursing,Eclipse Office Park,1104.48, 25-Nov-2014
522,Revenue,CCHD,Bed Purchasing - North,Permanent Nursing,Eclipse Office Park,15438.00, 25-Nov-2014
523,Revenue,CCHD,Bed Purchasing - South,Permanent Residential,Eclipse Office Park,4271.52, 25-Nov-2014
524,Revenue,CCHD,Bed Purchasing - South,Permanent Residential,Eclipse Office Park,35579.63, 25-Nov-2014
525,Revenue,CCHD,Bed purchasing -S28A  Under 65 - North,Permanent Residential,Eclipse Office Park,5675.56, 25-Nov-2014
526,Revenue,CCHD,Bed Purchasing - S28A - Over 65- North,Permanent Residential,Eclipse Office Park,3599.08, 25-Nov-2014
527,Revenue,CCHD,Bed Purchasing - Elderly S117- North,Permanent Residential,Eclipse Office Park,1756.00, 25-Nov-2014
528,Revenue,CCHD,MH Purchasing - Younger,Permanent Residential,Eclipse Office Park,1036.60, 25-Nov-2014
529,Revenue,CCHD,Bed Purchasing - S28A - Over 65- North,Permanent Residential,Eclipse Office Park,3214.56, 25-Nov-2014
530,Revenue,CCHD,Bed Purchasing - LD S28A- Over 65- South,Permanent Residential,Eclipse Office Park,3882.08, 25-Nov-2014
531,Revenue,CCHD,Bed purchasing - S28A Under 65 - South,Permanent Residential,Eclipse Office Park,5471.56, 25-Nov-2014
532,Revenue,CCHD,Bed purchasing - S28A Under 65 - South,Permanent Nursing,Eclipse Office Park,5364.24, 25-Nov-2014
533,Revenue,CCHD,Bed Purchasing - LD S28A- Over 65- South,Permanent Nursing,Eclipse Office Park,5225.52, 25-Nov-2014
534,Revenue,CCHD,Bed Purchasing - LD S28A- Over 65- South,Permanent Residential,Eclipse Office Park,4802.88, 25-Nov-2014
535,Revenue,CCHD,Bed Purchasing - LD S28A- Over 65- South,Permanent Residential,Eclipse Office Park,4524.76, 25-Nov-2014
536,Revenue,CCHD,Bed Purchasing - LD S28A- Over 65- South,Permanent Residential,Eclipse Office Park,4599.84, 25-Nov-2014
537,Revenue,CCHD,Bed purchasing - S28A Under 65 - South,Permanent Residential,Eclipse Office Park,6053.44, 25-Nov-2014
538,Revenue,CCHD,Bed Purchasing - LD S28A- Over 65- South,Permanent Residential,Eclipse Office Park,4667.16, 25-Nov-2014
539,Revenue,CCHD,Bed Purchasing - S28A - Over 65- North,Permanent Residential,Eclipse Office Park,4750.44, 25-Nov-2014
540,Revenue,CCHD,Bed Purchasing - South,Permanent Nursing,Eclipse Office Park,3284.32, 25-Nov-2014
541,Revenue,CCHD,Bed Purchasing - S28A - Over 65- North,Permanent Residential,Eclipse Office Park,4588.52, 25-Nov-2014
542,Revenue,CCHD,Bed Purchasing - S28A - Over 65- North,Permanent Residential,Eclipse Office Park,4759.28, 25-Nov-2014
543,Revenue,CCHD,Bed purchasing - S28A Under 65 - South,Permanent Residential,Eclipse Office Park,4756.28, 25-Nov-2014
544,Revenue,CCHD,Bed Purchasing - S28A - Over 65- North,Permanent Residential,Eclipse Office Park,4503.16, 25-Nov-2014
545,Revenue,CCHD,Bed purchasing -S28A  Under 65 - North,Permanent Residential,Eclipse Office Park,7058.72, 25-Nov-2014
546,Revenue,CCHD,Bed purchasing -S28A  Under 65 - North,Permanent Residential,Eclipse Office Park,3304.04, 25-Nov-2014
547,Revenue,CCHD,Bed Purchasing - S28A - Over 65- North,Permanent Residential,Eclipse Office Park,3133.72, 25-Nov-2014
548,Revenue,CCHD,Bed Purchasing - S28A - Over 65- North,Permanent Residential,Eclipse Office Park,3431.24, 25-Nov-2014
549,Revenue,CCHD,Bed Purchasing - LD S28A- Over 65- South,Permanent Residential,Eclipse Office Park,3086.04, 25-Nov-2014
550,Revenue,CCHD,Bed Purchasing - North,Permanent Residential,Eclipse Office Park,6773.16, 25-Nov-2014
551,Revenue,CCHD,Bed Purchasing - North,Permanent Residential,Eclipse Office Park,54967.34, 25-Nov-2014
552,Revenue,CCHD,Bed Purchasing - South,Permanent Residential,Eclipse Office Park,1318.68, 25-Nov-2014
553,Revenue,CCHD,MH Purchasing - Younger,Permanent Nursing,Eclipse Office Park,937.80, 25-Nov-2014
554,Revenue,CCHD,MH Purchasing - Younger,Permanent Nursing,Eclipse Office Park,952.20, 25-Nov-2014
555,Revenue,CCHD,Bed Purchasing - South,Permanent Residential,Eclipse Office Park,3254.24, 25-Nov-2014
556,Revenue,CCHD,Bed Purchasing - South,Permanent Residential,Eclipse Office Park,29062.81, 25-Nov-2014
557,Revenue,CCHD,Bed purchasing - S28A Under 65 - South,Permanent Residential,Eclipse Office Park,5919.12, 25-Nov-2014
558,Revenue,CCHD,Bed purchasing - S28A Under 65 - South,Permanent Residential,Eclipse Office Park,6010.16, 25-Nov-2014
559,Revenue,CCHD,Bed Purchasing - LD S28A- Over 65- South,Permanent Residential,Eclipse Office Park,4353.28, 25-Nov-2014
560,Revenue,CCHD,Bed Purchasing - South,Permanent Residential,Eclipse Office Park,5919.52, 25-Nov-2014
561,Revenue,CCHD,Bed Purchasing - LD S28A- Over 65- South,Permanent Nursing,Eclipse Office Park,4528.36, 25-Nov-2014
562,Revenue,CCHD,Bed Purchasing - LD S28A- Over 65- South,Permanent Nursing,Eclipse Office Park,5225.52, 25-Nov-2014
563,Revenue,CCHD,Bed Purchasing - LD S28A- Over 65- South,Permanent Residential,Eclipse Office Park,3540.96, 25-Nov-2014
564,Revenue,CCHD,Bed Purchasing - LD S28A- Over 65- South,Permanent Residential,Eclipse Office Park,4343.36, 25-Nov-2014
565,Revenue,CCHD,Bed Purchasing - LD S28A- Over 65- South,Permanent Residential,Eclipse Office Park,4832.92, 25-Nov-2014
566,Revenue,CCHD,Bed Purchasing - South,Permanent Residential,Eclipse Office Park,1224.16, 25-Nov-2014
567,Revenue,CCHD,Bed Purchasing - South,Permanent Residential,Eclipse Office Park,13609.00, 25-Nov-2014
568,Revenue,CCHD,Bed purchasing -S28A  Under 65 - North,Permanent Nursing,Eclipse Office Park,7675.92, 25-Nov-2014
569,Revenue,CCHD,Bed Purchasing - Southmead Hospital,Permanent Nursing,Eclipse Office Park,1348.48, 25-Nov-2014
570,Revenue,CCHD,Bed Purchasing - South,Permanent Residential,Eclipse Office Park,5257.00, 25-Nov-2014
571,Revenue,CCHD,Bed Purchasing - Elderly S117- North,Permanent Nursing,Eclipse Office Park,1992.00, 25-Nov-2014
572,Revenue,CCHD,Bed Purchasing - North,Permanent Nursing,Eclipse Office Park,836.44, 25-Nov-2014
573,Revenue,CCHD,Section 117 Placements MH Younger,Permanent Residential,Eclipse Office Park,1356.00, 25-Nov-2014
574,Revenue,CCHD,Bed Purchasing - South,Permanent Nursing,Eclipse Office Park,3389.36, 25-Nov-2014
575,Revenue,CCHD,Bed Purchasing - South,Permanent Residential,Eclipse Office Park,3389.48, 25-Nov-2014
576,Revenue,CCHD,Bed Purchasing - LD S28A- Over 65- South,Permanent Nursing,Eclipse Office Park,2981.68, 25-Nov-2014
577,Revenue,CCHD,Bed Purchasing - LD S28A- Over 65- South,Permanent Nursing,Eclipse Office Park,2767.44, 25-Nov-2014
578,Revenue,CCHD,Bed Purchasing - S28A - Over 65- North,Permanent Nursing,Eclipse Office Park,3692.72, 25-Nov-2014
579,Revenue,CCHD,Bed Purchasing - S28A - Over 65- North,Permanent Nursing,Eclipse Office Park,3684.72, 25-Nov-2014
580,Revenue,CCHD,MH Purchasing - Younger,Respite Planned - Residential,Eclipse Office Park,3734.48, 25-Nov-2014
581,Revenue,CCHD,Bed Purchasing - South,Respite Planned - Residential,Edgecumbe Lodge,2100.00, 25-Nov-2014
582,Revenue,CCHD,Bed Purchasing - Southmead Hospital,Permanent Residential,Edgecumbe Lodge,1260.20, 25-Nov-2014
583,Revenue,CCHD,Bed Purchasing - South,Permanent Residential,Edgecumbe Lodge,1056.36, 25-Nov-2014
584,Revenue,CCHD,Bed Purchasing - South,Permanent Residential,Edgecumbe Lodge,1427.00, 25-Nov-2014
585,Revenue,CCHD,Bed Purchasing - Southmead Hospital,Permanent Residential,Edgecumbe Lodge,1533.80, 25-Nov-2014
586,Revenue,CCHD,Bed Purchasing - South,Permanent Residential,Edgecumbe Lodge,1141.04, 25-Nov-2014
587,Revenue,CCHD,Bed Purchasing - North,Permanent Residential,Edgecumbe Lodge,1372.64, 25-Nov-2014
588,Revenue,CCHD,Bed Purchasing - Southmead Hospital,Permanent Residential,Edgemont House Ltd,1432.20, 25-Nov-2014
589,Revenue,CCHD,Bed Purchasing - South,Permanent Residential,Edgemont House Ltd,1472.92, 25-Nov-2014
590,Revenue,CCHD,Bed Purchasing - South,Permanent Residential,Edgemont House Ltd,1260.20, 25-Nov-2014
591,Revenue,CCHD,Bed Purchasing - South,Permanent Residential,Edgemont House Ltd,1260.20, 25-Nov-2014
592,Revenue,CCHD,Bed Purchasing - South,Permanent Residential,Edgemont House Ltd,1430.32, 25-Nov-2014
593,Revenue,CCHD,Bed Purchasing - South,Permanent Residential,Edgemont House Ltd,1293.48, 25-Nov-2014
594,Revenue,CCHD,South Glos Users in South Glos Homes,Permanent Nursing,Edgemont View Nursing Home,586.13, 25-Nov-2014
595,Revenue,CCHD,South Glos Users in South Glos Homes,Permanent Nursing,Edgemont View Nursing Home,1394.05, 25-Nov-2014
596,Revenue,CCHD,Bed Purchasing - North,Permanent Nursing,Edgemont View Nursing Home,1217.24, 25-Nov-2014
597,Revenue,CCHD,Bed Purchasing - South,Permanent Nursing,Edgemont View Nursing Home,1445.88, 25-Nov-2014
598,Revenue,CCHD,Bed Purchasing - Southmead Hospital,Permanent Nursing,Edgemont View Nursing Home,1275.80, 25-Nov-2014
599,Revenue,CCHD,Bed Purchasing - South,Permanent Nursing,Edgemont View Nursing Home,1320.36, 25-Nov-2014
600,Revenue,CCHD,Bed Purchasing - South,Permanent Nursing,Edgemont View Nursing Home,1634.80, 25-Nov-2014
601,Revenue,CCHD,Bed Purchasing - South,Permanent Nursing,Edgemont View Nursing Home,1196.68, 25-Nov-2014
602,Revenue,CCHD,Planning and Partnerships procurement,Other Supplies & Services,Eldercare,1418.14, 04-Nov-2014
603,Revenue,CCHD,Home Care - Elderly - South,Other Small Contracts,Elite Home Care Ltd,4321.93, 18-Nov-2014
604,Revenue,CCHD,Home Care - Elderly - North,Other Small Contracts,Elite Home Care Ltd,336.49, 18-Nov-2014
605,Revenue,CCHD,Sexual Health,Other Small Contracts,Emersons Green Medical Centre,557.48, 25-Nov-2014
606,Revenue,CCHD,Information Systems - Software,Computer Equipment - Purchase,Esteem Systems Plc,2428.00, 21-Nov-2014
607,Revenue,CCHD,Information Systems - Software,Computer Equipment - Purchase,Esteem Systems Plc,2400.00, 21-Nov-2014
608,Revenue,CCHD,Home Care - Elderly - South,Other Small Contracts,Everycare (Bristol) Ltd,2898.50, 07-Nov-2014
609,Revenue,CCHD,Home Care - Elderly - North,Other Small Contracts,Everycare (Bristol) Ltd,3110.31, 07-Nov-2014
610,Revenue,CCHD,Under 65s -MH  Home Care Purch,Other Small Contracts,Everycare (Bristol) Ltd,51.00, 07-Nov-2014
611,Revenue,CCHD,Home Care - Elderly - South,Other Small Contracts,Everycare (Bristol) Ltd,2830.50, 17-Nov-2014
612,Revenue,CCHD,Home Care - Elderly - North,Other Small Contracts,Everycare (Bristol) Ltd,2503.25, 17-Nov-2014
613,Revenue,CCHD,Under 65s -MH  Home Care Purch,Other Small Contracts,Everycare (Bristol) Ltd,51.00, 17-Nov-2014
614,Revenue,CCHD,Bed Purchasing - South,Permanent Nursing,Fairview Court,1880.16, 25-Nov-2014
615,Revenue,CCHD,Bed Purchasing - South,Permanent Nursing,Fairview Court,19574.33, 25-Nov-2014
616,Revenue,CCHD,Bed Purchasing - Southmead Hospital,Permanent Nursing,Fairview Court,1879.96, 25-Nov-2014
617,Revenue,CCHD,Bed Purchasing - Southmead Hospital,Permanent Nursing,Fairview Court,2359.76, 25-Nov-2014
618,Revenue,CCHD,Bed Purchasing - South,Permanent Nursing,Fairview Court,3792.47, 25-Nov-2014
619,Revenue,CCHD,Bed Purchasing - South,Permanent Residential,Fairview Court,8056.29, 25-Nov-2014
620,Revenue,CCHD,Bed Purchasing - South,Permanent Nursing,Fairview Court,1646.60, 25-Nov-2014
621,Revenue,CCHD,Bed Purchasing - South,Permanent Nursing,Fairview Court,1774.64, 25-Nov-2014
622,Revenue,CCHD,Bed Purchasing - South,Permanent Residential,Fairview Court,2687.76, 25-Nov-2014
623,Revenue,CCHD,Bed Purchasing - South,Permanent Nursing,Fairview Court,2001.48, 25-Nov-2014
624,Revenue,CCHD,Bed Purchasing - South,Permanent Nursing,Fairview Court,19353.92, 25-Nov-2014
625,Revenue,CCHD,Bed Purchasing - South,Permanent Nursing,Fairview Court,1858.80, 25-Nov-2014
626,Revenue,CCHD,Bed Purchasing - South,Permanent Nursing,Fairview Court,8122.41, 25-Nov-2014
627,Revenue,CCHD,Bed Purchasing - South,Permanent Nursing,Fairview Court,1864.16, 25-Nov-2014
628,Revenue,CCHD,Bed Purchasing - South,Permanent Nursing,Fairview Court,2739.96, 25-Nov-2014
629,Revenue,CCHD,Bed Purchasing - South,Permanent Nursing,Fairview Court,15123.66, 25-Nov-2014
630,Revenue,CCHD,Bed Purchasing - South,Permanent Nursing,Fairview Court,1951.44, 25-Nov-2014
631,Revenue,CCHD,Bed Purchasing - South,Permanent Nursing,Fairview Court,19574.33, 25-Nov-2014
632,Revenue,CCHD,Bed Purchasing - South,Permanent Nursing,Fairview Court,1713.92, 25-Nov-2014
633,Revenue,CCHD,Bed Purchasing - South,Permanent Nursing,Fairview Court Care Home,1163.96, 13-Nov-2014
634,Revenue,CCHD,Bed Purchasing - Elderly MH - South,Permanent Nursing,Fairview Court Care Home,1018.00, 13-Nov-2014
635,Revenue,CCHD,Bed Purchasing - South,Permanent Nursing,Fairview Court Care Home,2057.43, 13-Nov-2014
636,Revenue,CCHD,Bed Purchasing - Elderly MH - South,Permanent Nursing,Fairview Court Care Home,2063.67, 13-Nov-2014
637,Revenue,CCHD,Bed Purchasing - Frenchay Hospital,Permanent Nursing,Fairview Court Care Home,1571.88, 13-Nov-2014
638,Revenue,CCHD,Bed purchasing - Elderly S117 - South,Permanent Nursing,Fairview Court Care Home,2612.59, 13-Nov-2014
639,Revenue,CCHD,S75 CCG Interim Beds,Permanent Nursing,Fairview Court Care Home,9828.65, 14-Nov-2014
640,Revenue,CCHD,Bed Purchasing - South,Permanent Residential,Fairview House,872.32, 25-Nov-2014
641,Revenue,CCHD,Bed Purchasing - South,Permanent Residential,Fairview House,8873.04, 25-Nov-2014
642,Revenue,CCHD,Bed purchasing - Elderly S117 - South,Permanent Residential,Fairview House,1916.84, 25-Nov-2014
643,Revenue,CCHD,Bed Purchasing - Southmead Hospital,Permanent Residential,Fairview House,1023.16, 25-Nov-2014
644,Revenue,CCHD,Bed Purchasing - South,Permanent Residential,Fairview House,865.24, 25-Nov-2014
645,Revenue,CCHD,Bed Purchasing - South,Permanent Residential,Fairview House,1260.20, 25-Nov-2014
646,Revenue,CCHD,Bed Purchasing - South,Permanent Residential,Fairview House,1192.92, 25-Nov-2014
647,Revenue,CCHD,Bed Purchasing - South,Permanent Residential,Fairview House,1117.92, 25-Nov-2014
648,Revenue,CCHD,Bed Purchasing - South,Permanent Residential,Fairview House,13609.00, 25-Nov-2014
649,Revenue,CCHD,Bed Purchasing - Southmead Hospital,Permanent Residential,Fairview House,1260.20, 25-Nov-2014
650,Revenue,CCHD,Bed Purchasing - Southmead Hospital,Permanent Residential,Fairview House,1077.32, 25-Nov-2014
651,Revenue,CCHD,Bed Purchasing - South,Permanent Residential,Fairview House,1039.60, 25-Nov-2014
652,Revenue,CCHD,Bed Purchasing - South,Permanent Residential,Fairview House,13840.26, 25-Nov-2014
653,Revenue,CCHD,Bed Purchasing - Southmead Hospital,Permanent Residential,Faith House,1223.28, 25-Nov-2014
654,Revenue,CCHD,Bed Purchasing - North,Permanent Residential,Fernbank,7706.00, 25-Nov-2014
655,Revenue,CCHD,Home Care - Elderly - South,Other Small Contracts,Firstpoint Homecare Ltd,2069.76, 05-Nov-2014
656,Revenue,CCHD,Home Care - Elderly - North,Other Small Contracts,Firstpoint Homecare Ltd,1854.72, 05-Nov-2014
657,Revenue,CCHD,Under 65s -MH  Home Care Purch,Other Small Contracts,Firstpoint Homecare Ltd,42.24, 05-Nov-2014
658,Revenue,CCHD,Home care - Elderly MH - North,Other Small Contracts,Firstpoint Homecare Ltd,46.08, 05-Nov-2014
659,Revenue,CCHD,Bed Purchasing - South,Permanent Nursing,Four Seasons Health Care,1196.88, 25-Nov-2014
660,Revenue,CCHD,Bed Purchasing - Elderly S117- North,Permanent Residential,Four Seasons Health Care,2060.40, 25-Nov-2014
661,Revenue,CCHD,Bed Purchasing - Southmead Hospital,Permanent Residential,Four Seasons Health Care,17518.74, 25-Nov-2014
662,Revenue,CCHD,Freeways,Permanent Residential,Freeways Trust Limited,3611.80, 14-Nov-2014
663,Revenue,CCHD,Freeways,Permanent Residential,Freeways Trust Limited,2269.08, 14-Nov-2014
664,Revenue,CCHD,Freeways,Permanent Residential,Freeways Trust Limited,2346.88, 14-Nov-2014
665,Revenue,CCHD,Freeways,Permanent Residential,Freeways Trust Limited,2993.72, 14-Nov-2014
666,Revenue,CCHD,Freeways,Permanent Residential,Freeways Trust Limited,2346.88, 14-Nov-2014
667,Revenue,CCHD,Freeways,Permanent Residential,Freeways Trust Limited,3357.44, 14-Nov-2014
668,Revenue,CCHD,Freeways,Permanent Residential,Freeways Trust Limited,3242.64, 14-Nov-2014
669,Revenue,CCHD,Freeways,Permanent Residential,Freeways Trust Limited,3522.28, 14-Nov-2014
670,Revenue,CCHD,Freeways,Permanent Residential,Freeways Trust Limited,3023.20, 14-Nov-2014
671,Revenue,CCHD,Freeways,Permanent Residential,Freeways Trust Limited,2870.20, 14-Nov-2014
672,Revenue,CCHD,Freeways,Permanent Residential,Freeways Trust Limited,3211.48, 14-Nov-2014
673,Revenue,CCHD,Freeways,Permanent Residential,Freeways Trust Limited,3077.36, 14-Nov-2014
674,Revenue,CCHD,Freeways,Permanent Residential,Freeways Trust Limited,3573.72, 14-Nov-2014
675,Revenue,CCHD,Freeways,Permanent Residential,Freeways Trust Limited,2440.84, 14-Nov-2014
676,Revenue,CCHD,Freeways,Permanent Residential,Freeways Trust Limited,4851.04, 14-Nov-2014
677,Revenue,CCHD,Purchase of Non-Res Care - North,Day Care / Social Activities,Freeways Trust Limited,631.32, 06-Nov-2014
678,Revenue,CCHD,Purchase of Non-Res Care - North,Day Care / Social Activities,Freeways Trust Limited,631.32, 06-Nov-2014
679,Revenue,CCHD,Purchase of Non-Res Care - North,Day Care / Social Activities,Freeways Trust Limited,631.32, 06-Nov-2014
680,Revenue,CCHD,Purchase of Non-Res Care - North,Day Care / Social Activities,Freeways Trust Limited,562.32, 03-Nov-2014
681,Revenue,CCHD,Purchase of Non-Res Care - North,Day Care / Social Activities,Freeways Trust Limited,1124.64, 03-Nov-2014
682,Revenue,CCHD,Bed Purchasing - North,Permanent Residential,Freeways Trust Ltd,2860.04, 25-Nov-2014
683,Revenue,CCHD,Bed Purchasing - North,Permanent Residential,Freeways Trust Ltd,24640.66, 25-Nov-2014
684,Revenue,CCHD,Bed purchasing - S28A Under 65 - South,Permanent Residential,Freeways Trust Ltd,2924.48, 25-Nov-2014
685,Revenue,CCHD,Bed Purchasing - North,Permanent Residential,Freeways Trust Ltd,3129.84, 25-Nov-2014
686,Revenue,CCHD,Bed Purchasing - North,Permanent Residential,Freeways Trust Ltd,26731.61, 25-Nov-2014
687,Revenue,CCHD,Bed Purchasing - North,Permanent Residential,Freeways Trust Ltd,2286.96, 25-Nov-2014
688,Revenue,CCHD,Bed Purchasing - North,Permanent Residential,Freeways Trust Ltd,20199.29, 25-Nov-2014
689,Revenue,CCHD,Bed Purchasing - North,Permanent Residential,Freeways Trust Ltd,2731.36, 25-Nov-2014
690,Revenue,CCHD,Bed Purchasing - North,Permanent Residential,Freeways Trust Ltd,23643.39, 25-Nov-2014
691,Revenue,CCHD,Bed Purchasing - South,Permanent Residential,Freeways Trust Ltd,3338.76, 25-Nov-2014
692,Revenue,CCHD,Bed Purchasing - South,Permanent Residential,Freeways Trust Ltd,28350.74, 25-Nov-2014
693,Revenue,CCHD,Bed Purchasing - North,Permanent Residential,Freeways Trust Ltd,2266.40, 25-Nov-2014
694,Revenue,CCHD,Bed Purchasing - South,Permanent Residential,Freeways Trust Ltd,2397.48, 25-Nov-2014
695,Revenue,CCHD,Bed Purchasing - South,Permanent Residential,Freeways Trust Ltd,22558.70, 25-Nov-2014
696,Revenue,CCHD,Bed Purchasing - North,Permanent Residential,Freeways Trust Ltd,26374.75, 25-Nov-2014
697,Revenue,CCHD,Bed Purchasing - North,Permanent Residential,Freeways Trust Ltd,3155.72, 25-Nov-2014
698,Revenue,CCHD,18-25 Year Olds,Permanent Residential,Freeways Trust Ltd,29515.50, 25-Nov-2014
699,Revenue,CCHD,Bed Purchasing - North,Permanent Residential,Freeways Trust Ltd,3823.88, 25-Nov-2014
700,Revenue,CCHD,Bed Purchasing - South,Permanent Residential,Freeways Trust Ltd,7906.56, 25-Nov-2014
701,Revenue,CCHD,Bed Purchasing - South,Permanent Residential,Freeways Trust Ltd,63751.19, 25-Nov-2014
702,Revenue,CCHD,Bed Purchasing - Southmead Hospital,Permanent Nursing,Frenchay Park Nursing Home,1010.00, 25-Nov-2014
703,Revenue,CCHD,Bed Purchasing - South,Permanent Nursing,Frenchay Park Nursing Home,1328.20, 25-Nov-2014
704,Revenue,CCHD,Sexual Health,Other Small Contracts,Frome Valley Medical Centre,2302.18, 25-Nov-2014
705,Revenue,CCHD,Bed Purchasing - South,Permanent Nursing,Fshc  1St Floor,896.16, 25-Nov-2014
706,Revenue,CCHD,Bed Purchasing - Southmead Hospital,Permanent Residential,Fshc  1St Floor,894.12, 25-Nov-2014
707,Revenue,CCHD,Bed Purchasing - South,Permanent Nursing,Fshc  1St Floor,953.52, 25-Nov-2014
708,Revenue,CCHD,Bed Purchasing - Southmead Hospital,Permanent Residential,Fshc  1St Floor,3510.55, 25-Nov-2014
709,Revenue,CCHD,Bed Purchasing - Southmead Hospital,Permanent Nursing,Fshc  1St Floor,1352.20, 25-Nov-2014
710,Revenue,CCHD,Bed Purchasing - Southmead Hospital,Permanent Nursing,Fshc  1St Floor,1388.20, 25-Nov-2014
711,Revenue,CCHD,Bed Purchasing - Southmead Hospital,Permanent Nursing,Fshc  1St Floor,1267.72, 25-Nov-2014
712,Revenue,CCHD,Bed Purchasing - Southmead Hospital,Permanent Nursing,Fshc  1St Floor,1388.20, 25-Nov-2014
713,Revenue,CCHD,Bed Purchasing - Southmead Hospital,Permanent Nursing,Fshc  1St Floor,1325.80, 25-Nov-2014
714,Revenue,CCHD,Bed Purchasing - Southmead Hospital,Permanent Nursing,Fshc  1St Floor,1050.56, 25-Nov-2014
715,Revenue,CCHD,Bed Purchasing - South,Permanent Residential,Fshc  1St Floor,1216.24, 25-Nov-2014
716,Revenue,CCHD,Bed Purchasing - Southmead Hospital,Permanent Nursing,Fshc  1St Floor,1198.92, 25-Nov-2014
717,Revenue,CCHD,Bed Purchasing - South,Permanent Nursing,Fshc  1St Floor,1012.92, 25-Nov-2014
718,Revenue,CCHD,Bed Purchasing - Southmead Hospital,Permanent Nursing,Fshc  1St Floor,1388.20, 25-Nov-2014
719,Revenue,CCHD,Bed Purchasing - South,Permanent Nursing,Fshc  1St Floor,1115.96, 25-Nov-2014
720,Revenue,CCHD,Bed Purchasing - South,Permanent Nursing,Fshc  1St Floor,1226.68, 25-Nov-2014
721,Revenue,CCHD,Bed Purchasing - Southmead Hospital,Permanent Nursing,Fshc  1St Floor,1365.64, 25-Nov-2014
722,Revenue,CCHD,Bed Purchasing - South,Permanent Nursing,Fshc  1St Floor,1324.48, 25-Nov-2014
723,Revenue,CCHD,Bed Purchasing - Southmead Hospital,Permanent Nursing,Fshc  1St Floor,1388.20, 25-Nov-2014
724,Revenue,CCHD,Bed Purchasing - North,Permanent Nursing,Fshc  1St Floor,1388.20, 25-Nov-2014
725,Revenue,CCHD,Bed Purchasing - Southmead Hospital,Permanent Nursing,Fshc  1St Floor,1884.00, 25-Nov-2014
726,Revenue,CCHD,Bed Purchasing - North,Permanent Nursing,Fshc  1St Floor,1884.00, 25-Nov-2014
727,Revenue,CCHD,Bed Purchasing - Southmead Hospital,Permanent Nursing,Fshc  1St Floor,1204.12, 25-Nov-2014
728,Revenue,CCHD,Bed Purchasing - South,Permanent Nursing,Fshc  1St Floor,1388.20, 25-Nov-2014
729,Revenue,CCHD,Bed Purchasing - Southmead Hospital,Permanent Nursing,Fshc  1St Floor,1388.20, 25-Nov-2014
730,Revenue,CCHD,Bed Purchasing - South,Permanent Nursing,Fshc  1St Floor,1337.52, 25-Nov-2014
731,Revenue,CCHD,Bed Purchasing - South,Permanent Nursing,Fshc  1St Floor,1372.20, 25-Nov-2014
732,Revenue,CCHD,Bed Purchasing - Southmead Hospital,Permanent Nursing,Fshc  1St Floor,1096.60, 25-Nov-2014
733,Revenue,CCHD,Bed Purchasing - South,Permanent Residential,Fshc  1St Floor,1131.72, 25-Nov-2014
734,Revenue,CCHD,Bed Purchasing - South,Permanent Residential,Fshc  1St Floor,13609.00, 25-Nov-2014
735,Revenue,CCHD,Bed Purchasing - South,Permanent Nursing,Fshc  1St Floor,1352.20, 25-Nov-2014
736,Revenue,CCHD,Bed Purchasing - Southmead Hospital,Permanent Nursing,Fshc  1St Floor,1388.20, 25-Nov-2014
737,Revenue,CCHD,Bed Purchasing - South,Permanent Nursing,Fshc  1St Floor,1229.44, 25-Nov-2014
738,Revenue,CCHD,Bed Purchasing - South,Permanent Nursing,Fshc  1St Floor,14601.00, 25-Nov-2014
739,Revenue,CCHD,Bed Purchasing - South,Permanent Residential,Fshc  1St Floor,1808.57, 25-Nov-2014
740,Revenue,CCHD,Bed Purchasing - North,Permanent Nursing,Fshc  1St Floor,781.44, 25-Nov-2014
741,Revenue,CCHD,Bed Purchasing - South,Permanent Nursing,Fshc  1St Floor,993.48, 25-Nov-2014
742,Revenue,CCHD,Bed Purchasing - North,Permanent Residential,Fshc  1St Floor,928.35, 25-Nov-2014
743,Revenue,CCHD,Bed Purchasing - North,Permanent Nursing,Fshc  1St Floor,1137.44, 25-Nov-2014
744,Revenue,CCHD,Bed Purchasing - Southmead Hospital,Permanent Nursing,Fshc  1St Floor,944.48, 25-Nov-2014
745,Revenue,CCHD,Bed Purchasing - North,Permanent Nursing,Fshc  1St Floor,1290.68, 25-Nov-2014
746,Revenue,CCHD,Bed Purchasing - Southmead Hospital,Permanent Nursing,Fshc  1St Floor,1602.96, 25-Nov-2014
747,Revenue,CCHD,Bed Purchasing - Southmead Hospital,Permanent Residential,Fshc  1St Floor,1142.92, 25-Nov-2014
748,Revenue,CCHD,Bed Purchasing - Southmead Hospital,Permanent Residential,Fshc  1St Floor,13609.00, 25-Nov-2014
749,Revenue,CCHD,Bed Purchasing - North,Permanent Nursing,Fshc  1St Floor,1347.08, 25-Nov-2014
750,Revenue,CCHD,Bed Purchasing - North,Permanent Nursing,Fshc  1St Floor,1039.60, 25-Nov-2014
751,Revenue,CCHD,Bed Purchasing - North,Permanent Residential,Fshc  1St Floor,1077.00, 25-Nov-2014
752,Revenue,CCHD,Bed Purchasing - North,Permanent Residential,Fshc  1St Floor,1367.48, 25-Nov-2014
753,Revenue,CCHD,Bed Purchasing - Southmead Hospital,Permanent Residential,Fshc  1St Floor,1036.84, 25-Nov-2014
754,Revenue,CCHD,Bed Purchasing - Southmead Hospital,Permanent Nursing,Fshc  1St Floor,1104.08, 25-Nov-2014
755,Revenue,CCHD,Bed Purchasing - Southmead Hospital,Permanent Nursing,Fshc  1St Floor,1129.00, 25-Nov-2014
756,Revenue,CCHD,Bed Purchasing - Southmead Hospital,Permanent Nursing,Fshc  1St Floor,1289.20, 25-Nov-2014
757,Revenue,CCHD,Bed Purchasing - Southmead Hospital,Permanent Nursing,Fshc  1St Floor,1128.80, 25-Nov-2014
758,Revenue,CCHD,Bed Purchasing - Southmead Hospital,Permanent Nursing,Fshc  1St Floor,1588.20, 25-Nov-2014
759,Revenue,CCHD,Bed Purchasing - South,Permanent Residential,Fshc  1St Floor,1132.60, 25-Nov-2014
760,Revenue,CCHD,Bed Purchasing - Southmead Hospital,Permanent Nursing,Fshc  1St Floor,2060.00, 25-Nov-2014
761,Revenue,CCHD,Bed Purchasing - Southmead Hospital,Permanent Nursing,Fshc  1St Floor,15965.00, 25-Nov-2014
762,Revenue,CCHD,Bed Purchasing - Southmead Hospital,Permanent Nursing,Fshc  1St Floor,1375.60, 25-Nov-2014
763,Revenue,CCHD,Bed Purchasing - Southmead Hospital,Permanent Nursing,Fshc  1St Floor,1388.20, 25-Nov-2014
764,Revenue,CCHD,Bed Purchasing - North,Permanent Nursing,Fshc  1St Floor,574.28, 25-Nov-2014
765,Revenue,CCHD,Bed Purchasing - North,Permanent Nursing,Fshc  1St Floor,1489.72, 25-Nov-2014
766,Revenue,CCHD,Bed Purchasing - North,Permanent Nursing,Fshc  1St Floor,15965.00, 25-Nov-2014
767,Revenue,CCHD,Bed Purchasing - North,Permanent Nursing,Fshc  1St Floor,1289.20, 25-Nov-2014
768,Revenue,CCHD,Bed Purchasing - Southmead Hospital,Permanent Nursing,Fshc  1St Floor,1211.36, 25-Nov-2014
769,Revenue,CCHD,Bed Purchasing - Southmead Hospital,Permanent Residential,Fshc  1St Floor,621.36, 25-Nov-2014
770,Revenue,CCHD,Bed Purchasing - Southmead Hospital,Permanent Nursing,Fshc  1St Floor,1294.72, 25-Nov-2014
771,Revenue,CCHD,Bed Purchasing - Southmead Hospital,Permanent Nursing,Fshc  1St Floor,1372.56, 25-Nov-2014
772,Revenue,CCHD,Bed Purchasing - North,Permanent Nursing,Fshc  1St Floor,1312.76, 25-Nov-2014
773,Revenue,CCHD,Bed Purchasing - North,Permanent Residential,Fshc  1St Floor,779.72, 25-Nov-2014
774,Revenue,CCHD,Bed Purchasing - Southmead Hospital,Permanent Nursing,Fshc  1St Floor,1475.48, 25-Nov-2014
775,Revenue,CCHD,Bed Purchasing - Southmead Hospital,Permanent Nursing,Fshc  1St Floor,1564.20, 25-Nov-2014
776,Revenue,CCHD,Bed Purchasing - South,Permanent Nursing,Fshc  1St Floor,1338.84, 25-Nov-2014
777,Revenue,CCHD,Bed Purchasing - South,Permanent Nursing,Fshc  1St Floor,15965.00, 25-Nov-2014
778,Revenue,CCHD,Bed Purchasing - North,Permanent Nursing,Fshc  1St Floor,1471.32, 25-Nov-2014
779,Revenue,CCHD,Bed Purchasing - South,Permanent Nursing,Fshc  1St Floor,1309.96, 25-Nov-2014
780,Revenue,CCHD,Bed Purchasing - South,Permanent Nursing,Fshc  1St Floor,15965.00, 25-Nov-2014
781,Revenue,CCHD,Bed Purchasing - North,Permanent Residential,Fshc  1St Floor,1456.20, 25-Nov-2014
782,Revenue,CCHD,Bed Purchasing - North,Permanent Residential,Fshc  1St Floor,15128.00, 25-Nov-2014
783,Revenue,CCHD,Bed Purchasing - North,Permanent Nursing,Fshc  1St Floor,1552.64, 25-Nov-2014
784,Revenue,CCHD,Bed purchasing - Elderly S117 - South,Permanent Nursing,Fshc  1St Floor,1884.00, 25-Nov-2014
785,Revenue,CCHD,Bed Purchasing - North,Permanent Residential,Fshc  1St Floor,1263.96, 25-Nov-2014
786,Revenue,CCHD,Bed Purchasing - Southmead Hospital,Permanent Nursing,Fshc  1St Floor,1388.20, 25-Nov-2014
787,Revenue,CCHD,Bed Purchasing - Southmead Hospital,Permanent Nursing,Fshc  1St Floor,1338.62, 25-Nov-2014
788,Revenue,CCHD,Bed Purchasing - Southmead Hospital,Permanent Residential,Fshc  1St Floor,1260.20, 25-Nov-2014
789,Revenue,CCHD,Bed Purchasing - North,Permanent Residential,Fshc  1St Floor,1260.20, 25-Nov-2014
790,Revenue,CCHD,South Glos Users in South Glos Homes,Permanent Nursing,Fshc  1St Floor,3231.65, 25-Nov-2014
791,Revenue,CCHD,Bed Purchasing - South,Permanent Nursing,Fshc  1St Floor,1564.20, 25-Nov-2014
792,Revenue,CCHD,Bed Purchasing - North,Permanent Residential,Fshc  1St Floor,1401.92, 25-Nov-2014
793,Revenue,CCHD,South Glos Users in South Glos Homes,Permanent Nursing,Fshc  1St Floor,3532.64, 25-Nov-2014
794,Revenue,CCHD,Bed Purchasing - Southmead Hospital,Permanent Residential,Fshc  1St Floor,1484.20, 25-Nov-2014
795,Revenue,CCHD,South Glos Users in South Glos Homes,Permanent Nursing,Fshc  1St Floor,517.58, 25-Nov-2014
796,Revenue,CCHD,Bed Purchasing - North,Permanent Nursing,Fshc  1St Floor,1388.20, 25-Nov-2014
797,Revenue,CCHD,Bed Purchasing - North,Permanent Residential,Fshc  1St Floor,1260.20, 25-Nov-2014
798,Revenue,CCHD,Bed Purchasing - North,Permanent Nursing,Fshc  1St Floor,1153.32, 25-Nov-2014
799,Revenue,CCHD,Bed Purchasing - Southmead Hospital,Permanent Residential,Fshc  1St Floor,1260.20, 25-Nov-2014
800,Revenue,CCHD,Bed Purchasing - North,Permanent Nursing,Fshc  1St Floor,587.40, 25-Nov-2014
801,Revenue,CCHD,Bed Purchasing - North,Permanent Nursing,Fshc  1St Floor,738.40, 25-Nov-2014
802,Revenue,CCHD,Bed Purchasing - Southmead Hospital,Permanent Nursing,Fshc  1St Floor,1328.04, 25-Nov-2014
803,Revenue,CCHD,Bed Purchasing - North,Permanent Nursing,Fshc  1St Floor,903.52, 25-Nov-2014
804,Revenue,CCHD,Bed Purchasing - North,Permanent Nursing,Fshc  1St Floor,1017.20, 25-Nov-2014
805,Revenue,CCHD,Bed Purchasing - South,Permanent Nursing,Fshc  1St Floor,1365.00, 25-Nov-2014
806,Revenue,CCHD,Bed Purchasing - Southmead Hospital,Permanent Nursing,Fshc  1St Floor,1388.20, 25-Nov-2014
807,Revenue,CCHD,Bed Purchasing - Southmead Hospital,Permanent Nursing,Fshc  1St Floor,586.56, 25-Nov-2014
808,Revenue,CCHD,Bed Purchasing - North,Permanent Nursing,Fshc  1St Floor,1083.08, 25-Nov-2014
809,Revenue,CCHD,Bed Purchasing - Southmead Hospital,Permanent Nursing,Fshc  1St Floor,873.88, 25-Nov-2014
810,Revenue,CCHD,Bed Purchasing - North,Permanent Nursing,Fshc  1St Floor,911.36, 25-Nov-2014
811,Revenue,CCHD,Bed Purchasing - Southmead Hospital,Permanent Nursing,Fshc  1St Floor,1312.68, 25-Nov-2014
812,Revenue,CCHD,Bed Purchasing - North,Permanent Nursing,Fshc  1St Floor,1270.20, 25-Nov-2014
813,Revenue,CCHD,Bed Purchasing - South,Permanent Nursing,Fshc  1St Floor,1337.24, 25-Nov-2014
814,Revenue,CCHD,Bed Purchasing - Southmead Hospital,Permanent Nursing,Fshc  1St Floor,1009.29, 25-Nov-2014
815,Revenue,CCHD,Bed Purchasing - Southmead Hospital,Permanent Nursing,Fshc  1St Floor,1360.32, 25-Nov-2014
816,Revenue,CCHD,Bed Purchasing - Southmead Hospital,Permanent Nursing,Fshc  1St Floor,1822.56, 25-Nov-2014
817,Revenue,CCHD,Bed Purchasing - North,Permanent Residential,Fshc  1St Floor,3000.64, 25-Nov-2014
818,Revenue,CCHD,Bed Purchasing - North,Permanent Nursing,Fshc  1St Floor,1394.04, 25-Nov-2014
819,Revenue,CCHD,Bed Purchasing - Southmead Hospital,Permanent Residential,Fshc  1St Floor,1952.00, 25-Nov-2014
820,Revenue,CCHD,Bed Purchasing - Southmead Hospital,Permanent Residential,Fshc  1St Floor,766.86, 25-Nov-2014
821,Revenue,CCHD,Bed Purchasing - Southmead Hospital,Permanent Nursing,Fshc  1St Floor,1319.28, 25-Nov-2014
822,Revenue,CCHD,South Glos Users in South Glos Homes,Permanent Nursing,Fshc  1St Floor,22744.08, 25-Nov-2014
823,Revenue,CCHD,South Glos Users in South Glos Homes,Permanent Nursing,Fshc  1St Floor,1057.54, 25-Nov-2014
824,Revenue,CCHD,Bed Purchasing - South,Permanent Residential,Fshc  1St Floor,1952.00, 25-Nov-2014
825,Revenue,CCHD,Bed Purchasing - South,Permanent Residential,Fshc  1St Floor,15128.00, 25-Nov-2014
826,Revenue,CCHD,Bed Purchasing - Southmead Hospital,Permanent Nursing,Fshc  1St Floor,1381.00, 25-Nov-2014
827,Revenue,CCHD,Bed Purchasing - Southmead Hospital,Permanent Residential,Fshc  1St Floor,1484.20, 25-Nov-2014
828,Revenue,CCHD,Bed Purchasing - North,Permanent Residential,Fshc  1St Floor,1167.12, 25-Nov-2014
829,Revenue,CCHD,Bed Purchasing - North,Permanent Nursing,Fshc  1St Floor,1143.32, 25-Nov-2014
830,Revenue,CCHD,Bed Purchasing - South,Permanent Nursing,Fshc  1St Floor,1248.96, 25-Nov-2014
831,Revenue,CCHD,Bed Purchasing - South,Permanent Nursing,Fshc  1St Floor,14601.00, 25-Nov-2014
832,Revenue,CCHD,Bed Purchasing - South,Permanent Residential,Fshc  1St Floor,2161.14, 25-Nov-2014
833,Revenue,CCHD,Bed Purchasing - South,Permanent Residential,Fshc  1St Floor,1952.00, 25-Nov-2014
834,Revenue,CCHD,Bed Purchasing - North,Permanent Nursing,Fshc  1St Floor,1884.00, 25-Nov-2014
835,Revenue,CCHD,Bed Purchasing - Southmead Hospital,Permanent Nursing,Fshc  1St Floor,1203.24, 25-Nov-2014
836,Revenue,CCHD,Bed Purchasing - Southmead Hospital,Permanent Nursing,Fshc  1St Floor,1384.20, 25-Nov-2014
837,Revenue,CCHD,Bed Purchasing - South,Permanent Residential,Fshc  1St Floor,901.60, 25-Nov-2014
838,Revenue,CCHD,Bed Purchasing - South,Permanent Nursing,Fshc  1St Floor,1236.24, 25-Nov-2014
839,Revenue,CCHD,Bed Purchasing - South,Permanent Residential,Fshc  1St Floor,1260.20, 25-Nov-2014
840,Revenue,CCHD,Bed Purchasing - South,Permanent Residential,Fshc  1St Floor,13609.00, 25-Nov-2014
841,Revenue,CCHD,Bed Purchasing - Frenchay Hospital,Permanent Nursing,Fshc  1St Floor,1388.20, 25-Nov-2014
842,Revenue,CCHD,Bed Purchasing - North,Permanent Residential,Fshc  1St Floor,1201.28, 25-Nov-2014
843,Revenue,CCHD,Bed Purchasing - Southmead Hospital,Permanent Nursing,Fshc  1St Floor,728.56, 25-Nov-2014
844,Revenue,CCHD,Bed Purchasing - Southmead Hospital,Permanent Nursing,Fshc  1St Floor,14601.00, 25-Nov-2014
845,Revenue,CCHD,Bed Purchasing - Southmead Hospital,Permanent Nursing,Fshc  1St Floor,1388.20, 25-Nov-2014
846,Revenue,CCHD,Bed Purchasing - South,Respite Planned - Residential,Fshc  1St Floor,906.29, 25-Nov-2014
847,Revenue,CCHD,Bed Purchasing - Southmead Hospital,Permanent Nursing,Fshc  1St Floor,1308.28, 25-Nov-2014
848,Revenue,CCHD,Bed Purchasing - Southmead Hospital,Permanent Nursing,Fshc  1St Floor,997.48, 25-Nov-2014
849,Revenue,CCHD,Bed Purchasing - Southmead Hospital,Permanent Residential,Fshc  1St Floor,1475.64, 25-Nov-2014
850,Revenue,CCHD,Bed Purchasing - South,Permanent Nursing,Fshc  1St Floor,1227.24, 25-Nov-2014
851,Revenue,CCHD,Bed Purchasing - South,Permanent Nursing,Fshc  1St Floor,816.76, 25-Nov-2014
852,Revenue,CCHD,Bed purchasing - Elderly S117 - South,Permanent Nursing,Fshc  1St Floor,1884.00, 25-Nov-2014
853,Revenue,CCHD,Bed Purchasing - Southmead Hospital,Permanent Residential,Fshc  1St Floor,1122.08, 25-Nov-2014
854,Revenue,CCHD,Bed Purchasing - South,Permanent Nursing,Fshc  1St Floor,1385.40, 25-Nov-2014
855,Revenue,CCHD,Bed Purchasing - North,Permanent Nursing,Fshc  1St Floor,1327.84, 25-Nov-2014
856,Revenue,CCHD,Bed Purchasing - South,Permanent Residential,Fshc  1St Floor,1371.16, 25-Nov-2014
857,Revenue,CCHD,Bed Purchasing - Southmead Hospital,Permanent Nursing,Fshc  1St Floor,777.80, 25-Nov-2014
858,Revenue,CCHD,Bed Purchasing - North,Permanent Residential,Fshc  1St Floor,1216.92, 25-Nov-2014
859,Revenue,CCHD,Bed Purchasing - South,Permanent Nursing,Fshc  1St Floor,1193.88, 25-Nov-2014
860,Revenue,CCHD,Bed Purchasing - South,Permanent Nursing,Fshc  1St Floor,1304.72, 25-Nov-2014
861,Revenue,CCHD,Bed Purchasing - South,Permanent Nursing,Fshc  1St Floor,1668.40, 25-Nov-2014
862,Revenue,CCHD,Bed Purchasing - South,Permanent Nursing,Fshc  1St Floor,1132.32, 25-Nov-2014
863,Revenue,CCHD,Bed Purchasing - Southmead Hospital,Permanent Nursing,Fshc  1St Floor,12888.70, 25-Nov-2014
864,Revenue,CCHD,Bed Purchasing - Southmead Hospital,Permanent Nursing,Fshc  1St Floor,1224.08, 25-Nov-2014
865,Revenue,CCHD,Bed Purchasing - Southmead Hospital,Permanent Nursing,Fshc  1St Floor,7670.57, 25-Nov-2014
866,Revenue,CCHD,Bed Purchasing - Southmead Hospital,Permanent Nursing,Fshc  1St Floor,958.64, 25-Nov-2014
867,Revenue,CCHD,Bed Purchasing - Southmead Hospital,Permanent Nursing,Fshc  1St Floor,1549.00, 25-Nov-2014
868,Revenue,CCHD,Bed Purchasing - Southmead Hospital,Permanent Nursing,Fshc  1St Floor,1364.92, 25-Nov-2014
869,Revenue,CCHD,Bed Purchasing - Southmead Hospital,Permanent Nursing,Fshc  1St Floor,1388.20, 25-Nov-2014
870,Revenue,CCHD,Bed Purchasing - Southmead Hospital,Permanent Nursing,Fshc  1St Floor,881.80, 25-Nov-2014
871,Revenue,CCHD,Bed Purchasing - Southmead Hospital,Permanent Nursing,Fshc  1St Floor,1199.48, 25-Nov-2014
872,Revenue,CCHD,Bed Purchasing - South,Permanent Residential,Fshc  1St Floor,2704.20, 25-Nov-2014
873,Revenue,CCHD,Bed Purchasing - Southmead Hospital,Permanent Nursing,Fshc  1St Floor,5860.02, 25-Nov-2014
874,Revenue,CCHD,Bed Purchasing - North,Permanent Nursing,Fshc  1St Floor,1346.88, 25-Nov-2014
875,Revenue,CCHD,Bed Purchasing - North,Permanent Nursing,Fshc  1St Floor,843.72, 25-Nov-2014
876,Revenue,CCHD,Bed purchasing - Phys Dis - North,Permanent Nursing,Fshc  1St Floor,527.00, 25-Nov-2014
877,Revenue,CCHD,Bed Purchasing - North,Permanent Nursing,Fshc  1St Floor,14601.00, 25-Nov-2014
878,Revenue,CCHD,Bed Purchasing - North,Permanent Nursing,Fshc  1St Floor,1496.20, 25-Nov-2014
879,Revenue,CCHD,Bed Purchasing - North,Permanent Nursing,Fshc  1St Floor,1229.36, 25-Nov-2014
880,Revenue,CCHD,Bed Purchasing - Southmead Hospital,Permanent Nursing,Fshc  1St Floor,1344.20, 25-Nov-2014
881,Revenue,CCHD,Bed Purchasing - South,Permanent Nursing,Fshc  1St Floor,857.04, 25-Nov-2014
882,Revenue,CCHD,Bed Purchasing - North,Permanent Nursing,Fshc  1St Floor,1071.60, 25-Nov-2014
883,Revenue,CCHD,Bed Purchasing - Southmead Hospital,Permanent Nursing,Fshc  1St Floor,1496.20, 25-Nov-2014
884,Revenue,CCHD,Bed Purchasing - Southmead Hospital,Permanent Nursing,Fshc  1St Floor,1200.16, 25-Nov-2014
885,Revenue,CCHD,Bed Purchasing - Southmead Hospital,Permanent Nursing,Fshc  1St Floor,1496.20, 25-Nov-2014
886,Revenue,CCHD,Bed Purchasing - North,Permanent Nursing,Fshc  1St Floor,1368.56, 25-Nov-2014
887,Revenue,CCHD,Bed Purchasing - North,Permanent Nursing,Fshc  1St Floor,724.60, 25-Nov-2014
888,Revenue,CCHD,Bed Purchasing - Southmead Hospital,Permanent Residential,Fshc  1St Floor,1233.08, 25-Nov-2014
889,Revenue,CCHD,Bed Purchasing - Southmead Hospital,Permanent Nursing,Fshc  1St Floor,1263.24, 25-Nov-2014
890,Revenue,CCHD,Bed Purchasing - Southmead Hospital,Permanent Nursing,Fshc  1St Floor,1236.88, 25-Nov-2014
891,Revenue,CCHD,Bed Purchasing - Southmead Hospital,Permanent Nursing,Fshc  1St Floor,530.10, 25-Nov-2014
892,Revenue,CCHD,Bed Purchasing - Southmead Hospital,Permanent Nursing,Fshc  1St Floor,1467.24, 25-Nov-2014
893,Revenue,CCHD,Bed purchasing - Elderly S117 - South,Permanent Nursing,Fshc  1St Floor,1992.00, 25-Nov-2014
894,Revenue,CCHD,Bed Purchasing - North,Permanent Residential,Fshc  1St Floor,1125.72, 25-Nov-2014
895,Revenue,CCHD,Bed Purchasing - Southmead Hospital,Permanent Nursing,Fshc  1St Floor,950.68, 25-Nov-2014
896,Revenue,CCHD,Bed Purchasing - Elderly S117- North,Permanent Nursing,Fshc  1St Floor,1992.00, 25-Nov-2014
897,Revenue,CCHD,Bed Purchasing - North,Permanent Residential,Fshc  1St Floor,1432.20, 25-Nov-2014
898,Revenue,CCHD,Bed Purchasing - Southmead Hospital,Permanent Nursing,Fshc  1St Floor,1100.44, 25-Nov-2014
899,Revenue,CCHD,Bed Purchasing - North,Permanent Residential,Fshc  1St Floor,1043.24, 25-Nov-2014
900,Revenue,CCHD,Bed Purchasing - South,Permanent Residential,Fshc  1St Floor,1351.48, 25-Nov-2014
901,Revenue,CCHD,Bed Purchasing - Southmead Hospital,Permanent Residential,FSHC 1st Floor,806.60, 25-Nov-2014
902,Revenue,CCHD,Bed Purchasing - South,Permanent Residential,Gatchell House,16663.85, 25-Nov-2014
903,Revenue,CCHD,Alexandra Way,Prop.Serv. General Repairs,Individual,991.00, 26-Nov-2014
904,Revenue,CCHD,Training - Adult Services,Training Expenses,Gizware Systems Limited,500.00, 07-Nov-2014
905,Revenue,CCHD,Section 117 Placements MH Younger,Permanent Residential,Gladstone House,2762.16, 25-Nov-2014
906,Revenue,CCHD,Bed Purchasing - South,Permanent Residential,Individual,4615.60, 25-Nov-2014
907,Revenue,CCHD,Bed Purchasing - North,Permanent Residential,Glebe House Nursing Home,9567.60, 25-Nov-2014
908,Revenue,CCHD,Bed Purchasing - North,Permanent Residential,Glebe House Nursing Home,2147.60, 25-Nov-2014
909,Revenue,CCHD,Swift Dump Code,Permanent Residential,Glebe House Nursing Home,1463.40, 25-Nov-2014
910,Revenue,CCHD,Bed Purchasing - North,Permanent Nursing,Glebe House Nursing Home,1982.08, 25-Nov-2014
911,Revenue,CCHD,Bed Purchasing - Southmead Hospital,Permanent Residential,Glebe House Nursing Home,1346.16, 25-Nov-2014
912,Revenue,CCHD,Bed Purchasing - South,Permanent Residential,Glebe House Nursing Home,2044.08, 25-Nov-2014
913,Revenue,CCHD,Bed Purchasing - North,Permanent Residential,Glebe House Nursing Home,1869.44, 25-Nov-2014
914,Revenue,CCHD,Bed Purchasing - North,Permanent Nursing,Glebe House Nursing Home,1832.52, 25-Nov-2014
915,Revenue,CCHD,Bed Purchasing - North,Permanent Nursing,Glebe House Nursing Home,2166.72, 25-Nov-2014
916,Revenue,CCHD,Bed Purchasing - North,Permanent Nursing,Glebe House Nursing Home,2758.48, 25-Nov-2014
917,Revenue,CCHD,Bed Purchasing - North,Permanent Residential,Glebe House Nursing Home,2593.00, 25-Nov-2014
918,Revenue,CCHD,Bed Purchasing - South,Permanent Residential,Gordena Care Home,2113.64, 25-Nov-2014
919,Revenue,CCHD,Bed Purchasing - South,Permanent Residential,Gordena Care Home,4799.84, 25-Nov-2014
920,Revenue,CCHD,Bed Purchasing - South,Permanent Residential,Gordena Care Home,41041.21, 25-Nov-2014
921,Revenue,CCHD,Bed Purchasing - South,Permanent Residential,Gordena Care Home,3159.76, 25-Nov-2014
922,Revenue,CCHD,Bed Purchasing - South,Permanent Residential,Gordena Care Home,28330.59, 25-Nov-2014
923,Revenue,CCHD,Bed Purchasing - South,Permanent Residential,Gordena Care Home,2968.16, 25-Nov-2014
924,Revenue,CCHD,Bed Purchasing - South,Permanent Residential,Gordena Care Home,26845.69, 25-Nov-2014
925,Revenue,CCHD,Bed Purchasing - South,Permanent Residential,Gordena Care Home,1933.24, 25-Nov-2014
926,Revenue,CCHD,Bed Purchasing - South,Permanent Residential,Gordena Care Home,18825.06, 25-Nov-2014
927,Revenue,CCHD,Bed Purchasing - South,Permanent Residential,Gordena Care Limited,4217.76, 25-Nov-2014
928,Revenue,CCHD,Bed Purchasing - South,Permanent Residential,Gordena Care Limited,35184.69, 25-Nov-2014
929,Revenue,CCHD,Bed purchasing - S28A Under 65 - South,Permanent Residential,Gordena Care Limited,4116.00, 25-Nov-2014
930,Revenue,CCHD,Bed Purchasing - North,Permanent Residential,Gordena Care Limited,4218.96, 25-Nov-2014
931,Revenue,CCHD,S75 CCG Interim Beds,Permanent Nursing,Gracefields Nursing Home,41800.00, 25-Nov-2014
932,Revenue,CCHD,South Glos Users in South Glos Homes,Permanent Nursing,Gracefields Nursing Home,3532.64, 25-Nov-2014
933,Revenue,CCHD,Bed Purchasing - South,Permanent Nursing,Gracefields Nursing Home,1705.28, 25-Nov-2014
934,Revenue,CCHD,South Glos Users in South Glos Homes,Permanent Nursing,Gracefields Nursing Home,3532.64, 25-Nov-2014
935,Revenue,CCHD,Bed purchasing - Elderly S117 - South,Permanent Nursing,Gracefields Nursing Home,2395.80, 25-Nov-2014
936,Revenue,CCHD,Bed Purchasing - South,Permanent Nursing,Gracefields Nursing Home,1799.56, 25-Nov-2014
937,Revenue,CCHD,Bed Purchasing - South,Permanent Nursing,Gracefields Nursing Home,1542.48, 25-Nov-2014
938,Revenue,CCHD,South Glos Users in South Glos Homes,Permanent Nursing,Gracefields Nursing Home,3532.64, 25-Nov-2014
939,Revenue,CCHD,South Glos Users in South Glos Homes,Permanent Nursing,Gracefields Nursing Home,548.95, 25-Nov-2014
940,Revenue,CCHD,Bed Purchasing - Southmead Hospital,Permanent Nursing,Gracefields Nursing Home,2356.44, 25-Nov-2014
941,Revenue,CCHD,South Glos Users in South Glos Homes,Permanent Nursing,Gracefields Nursing Home,2043.54, 25-Nov-2014
942,Revenue,CCHD,South Glos Users in South Glos Homes,Permanent Nursing,Gracefields Nursing Home,3532.64, 25-Nov-2014
943,Revenue,CCHD,South Glos Users in South Glos Homes,Permanent Nursing,Gracefields Nursing Home,548.95, 25-Nov-2014
944,Revenue,CCHD,Bed Purchasing - South,Permanent Nursing,Gracefields Nursing Home,2419.42, 25-Nov-2014
945,Revenue,CCHD,Bed purchasing - Elderly S117 - South,Permanent Nursing,Gracefields Nursing Home,2356.44, 25-Nov-2014
946,Revenue,CCHD,South Glos Users in South Glos Homes,Permanent Nursing,Gracefields Nursing Home,2201.96, 25-Nov-2014
947,Revenue,CCHD,Bed Purchasing - South,Permanent Nursing,Gracefields Nursing Home,2227.80, 25-Nov-2014
948,Revenue,CCHD,Bed Purchasing - South,Respite Planned - Nursing,Gracefields Nursing Home,1478.22, 25-Nov-2014
949,Revenue,CCHD,South Glos Users in South Glos Homes,Permanent Nursing,Gracefields Nursing Home,601.97, 25-Nov-2014
950,Revenue,CCHD,Bed Purchasing - Southmead Hospital,Permanent Nursing,Gracefields Nursing Home,1576.80, 25-Nov-2014
951,Revenue,CCHD,Bed Purchasing - Southmead Hospital,Permanent Nursing,Gracefields Nursing Home,732.09, 25-Nov-2014
952,Revenue,CCHD,South Glos Users in South Glos Homes,Permanent Nursing,Gracefields Nursing Home,3532.64, 25-Nov-2014
953,Revenue,CCHD,South Glos Users in South Glos Homes,Permanent Nursing,Gracefields Nursing Home,548.95, 25-Nov-2014
954,Revenue,CCHD,Bed Purchasing - Southmead Hospital,Permanent Nursing,Gracefields Nursing Home,1860.64, 25-Nov-2014
955,Revenue,CCHD,Bed Purchasing - Southmead Hospital,Permanent Nursing,Gracefields Nursing Home,1727.73, 25-Nov-2014
956,Revenue,CCHD,South Glos Users in South Glos Homes,Permanent Nursing,Gracefields Nursing Home,3516.80, 25-Nov-2014
957,Revenue,CCHD,South Glos Users in South Glos Homes,Permanent Nursing,Gracefields Nursing Home,3500.96, 25-Nov-2014
958,Revenue,CCHD,South Glos Users in South Glos Homes,Permanent Nursing,Gracefields Nursing Home,3532.64, 25-Nov-2014
959,Revenue,CCHD,South Glos Users in South Glos Homes,Permanent Nursing,Gracefields Nursing Home,3532.64, 25-Nov-2014
960,Revenue,CCHD,South Glos Users in South Glos Homes,Permanent Nursing,Gracefields Nursing Home,564.63, 25-Nov-2014
961,Revenue,CCHD,South Glos Users in South Glos Homes,Permanent Nursing,Gracefields Nursing Home,1948.50, 25-Nov-2014
962,Revenue,CCHD,South Glos Users in South Glos Homes,Permanent Nursing,Gracefields Nursing Home,1599.98, 25-Nov-2014
963,Revenue,CCHD,Bed Purchasing - Southmead Hospital,Permanent Nursing,Gracefields Nursing Home,1860.64, 25-Nov-2014
964,Revenue,CCHD,Bed Purchasing - Southmead Hospital,Permanent Nursing,Gracefields Nursing Home,1661.28, 25-Nov-2014
965,Revenue,CCHD,Bed Purchasing - North,Permanent Residential,Greensleeves,1331.92, 25-Nov-2014
966,Revenue,CCHD,s256 - Additional Support Funding,Other Supplies & Services,Growing Support CIC,4333.75, 28-Nov-2014
967,Revenue,CCHD,Bed Purchasing - North,Permanent Residential,Gwendoline House,1138.52, 25-Nov-2014
968,Revenue,CCHD,Bed Purchasing - South,Permanent Residential,Gwendoline House,952.12, 25-Nov-2014
969,Revenue,CCHD,Bed Purchasing - South,Permanent Residential,Gwendoline House,1292.56, 25-Nov-2014
970,Revenue,CCHD,Bed Purchasing - South,Permanent Residential,Gwendoline House,13609.00, 25-Nov-2014
971,Revenue,CCHD,Bed Purchasing - South,Permanent Residential,Gwendoline House,1143.56, 25-Nov-2014
972,Revenue,CCHD,Bed Purchasing - South,Permanent Residential,Gwendoline House,2293.64, 25-Nov-2014
973,Revenue,CCHD,Bed Purchasing - Southmead Hospital,Permanent Residential,Gwendoline House,1620.20, 25-Nov-2014
974,Revenue,CCHD,Home Care - Elderly - South,Private & Voluntary Home Care,Hanover Housing Association,624.20, 25-Nov-2014
975,Revenue,CCHD,Bed Purchasing - South,Permanent Residential,Harefield Hall,1203.20, 25-Nov-2014
976,Revenue,CCHD,Bed Purchasing - South,Permanent Residential,Harefield Hall,1831.12, 25-Nov-2014
977,Revenue,CCHD,Bed Purchasing - South,Permanent Residential,Harefield Hall,1140.08, 25-Nov-2014
978,Revenue,CCHD,Bed Purchasing - South,Permanent Residential,Harefield Hall,1036.40, 25-Nov-2014
979,Revenue,CCHD,Bed Purchasing - South,Permanent Residential,Harefield Hall,16823.39, 25-Nov-2014
980,Revenue,CCHD,Bed Purchasing - South,Permanent Residential,Harefield Hall,1304.48, 25-Nov-2014
981,Revenue,CCHD,Swift Dump Code,Permanent Residential,Harefield Hall,11600.37, 25-Nov-2014
982,Revenue,CCHD,Bed Purchasing - South,Permanent Residential,Harefield Hall,973.75, 25-Nov-2014
983,Revenue,CCHD,Bed Purchasing - Southmead Hospital,Permanent Nursing,Hc-One Ltd,1634.80, 25-Nov-2014
984,Revenue,CCHD,Bed Purchasing - North,Permanent Nursing,Hc-One Ltd,1492.36, 25-Nov-2014
985,Revenue,CCHD,Bed Purchasing - North,Permanent Nursing,Hc-One Ltd,1533.56, 25-Nov-2014
986,Revenue,CCHD,Bed Purchasing - North,Permanent Residential,Hc-One Ltd,1006.84, 25-Nov-2014
987,Revenue,CCHD,Bed Purchasing - North,Permanent Nursing,Hc-One Ltd,1518.60, 25-Nov-2014
988,Revenue,CCHD,Bed Purchasing - South,Permanent Nursing,Hc-One Ltd,1955.92, 25-Nov-2014
989,Revenue,CCHD,Bed Purchasing - North,Permanent Nursing,Hc-One Ltd,1496.20, 25-Nov-2014
990,Revenue,CCHD,Bed Purchasing - North,Permanent Nursing,Hc-One Ltd,1496.20, 25-Nov-2014
991,Revenue,CCHD,Bed Purchasing - North,Permanent Nursing,Hc-One Ltd,15438.00, 25-Nov-2014
992,Revenue,CCHD,Bed Purchasing - North,Permanent Nursing,Hc-One Ltd,1239.28, 25-Nov-2014
993,Revenue,CCHD,Bed Purchasing - North,Permanent Nursing,Hc-One Ltd,15510.54, 25-Nov-2014
994,Revenue,CCHD,Bed Purchasing - South,Permanent Nursing,Hc-One Ltd,1152.48, 25-Nov-2014
995,Revenue,CCHD,Bed Purchasing - North,Permanent Nursing,Hc-One Ltd,1197.44, 25-Nov-2014
996,Revenue,CCHD,Bed Purchasing - North,Permanent Nursing,Hc-One Ltd,15611.60, 25-Nov-2014
997,Revenue,CCHD,Bed Purchasing - Elderly S117- North,Permanent Nursing,Hc-One Ltd,1976.56, 25-Nov-2014
998,Revenue,CCHD,Bed Purchasing - South,Permanent Residential,Heathwood Rest Home,1009.80, 25-Nov-2014
999,Revenue,CCHD,Bed Purchasing - Southmead Hospital,Permanent Residential,Heathwood Rest Home,1009.80, 25-Nov-2014
1000,Revenue,CCHD,Home Care - Elderly - South,Other Small Contracts,Helping Hands Homecare,617.78, 27-Nov-2014
1001,Revenue,CCHD,Home Care - Elderly - North,Day Care / Social Activities,Helping Hands Homecare,31.28, 27-Nov-2014
1002,Revenue,CCHD,Home Care - Elderly - North,Other Small Contracts,Helping Hands Homecare,1888.53, 27-Nov-2014
1003,Revenue,CCHD,Day Care - North,Day Care / Social Activities,Helping Hands Homecare,93.84, 27-Nov-2014
1004,Revenue,CCHD,Under 65s -MH  Home Care Purch,Other Small Contracts,Helping Hands Homecare,31.28, 27-Nov-2014
1005,Revenue,CCHD,Home care - Elderly MH - North,Other Small Contracts,Helping Hands Homecare,66.47, 27-Nov-2014
1006,Revenue,CCHD,Home Care - Elderly - South,Other Small Contracts,Helping Hands Homecare,637.33, 27-Nov-2014
1007,Revenue,CCHD,Home Care - Elderly - North,Day Care / Social Activities,Helping Hands Homecare,31.28, 27-Nov-2014
1008,Revenue,CCHD,Home Care - Elderly - North,Other Small Contracts,Helping Hands Homecare,2142.68, 27-Nov-2014
1009,Revenue,CCHD,Day Care - North,Day Care / Social Activities,Helping Hands Homecare,86.02, 27-Nov-2014
1010,Revenue,CCHD,Under 65s -MH  Home Care Purch,Other Small Contracts,Helping Hands Homecare,31.28, 27-Nov-2014
1011,Revenue,CCHD,Home care - Elderly MH - North,Other Small Contracts,Helping Hands Homecare,62.56, 27-Nov-2014
1012,Revenue,CCHD,S117 Placements PCT,Permanent Residential,Individual,18209.52, 25-Nov-2014
1013,Revenue,CCHD,Bed Purchasing - Southmead Hospital,Permanent Residential,High Border Lodge,1442.96, 25-Nov-2014
1014,Revenue,CCHD,Bed Purchasing - Southmead Hospital,Permanent Residential,Highfield House,1227.52, 25-Nov-2014
1015,Revenue,CCHD,Bed Purchasing - Southmead Hospital,Permanent Residential,Highgate Studios,1174.24, 25-Nov-2014
1016,Revenue,CCHD,Bed Purchasing - North,Permanent Residential,Holmleigh Care Homes Ltd,4059.84, 25-Nov-2014
1017,Revenue,CCHD,Bed Purchasing - South,Permanent Residential,Holmleigh Care Homes Ltd,47123.10, 25-Nov-2014
1018,Revenue,CCHD,Bed Purchasing - North,Permanent Residential,Home Farm Trust Ltd  5-6 Brook Office Pa,27431.05, 25-Nov-2014
1019,Revenue,CCHD,Bed Purchasing - South,Permanent Residential,Home Farm Trust Ltd  5-6 Brook Office Pa,50954.20, 25-Nov-2014
1020,Revenue,CCHD,Bed Purchasing - North,Permanent Residential,Home Farm Trust Ltd  5-6 Brook Office Pa,3442.72, 25-Nov-2014
1021,Revenue,CCHD,Bed Purchasing - North,Permanent Residential,Home Farm Trust Ltd  5-6 Brook Office Pa,28551.93, 25-Nov-2014
1022,Revenue,CCHD,Bed Purchasing - South,Permanent Residential,Home Farm Trust Ltd  5-6 Brook Office Pa,5550.52, 25-Nov-2014
1023,Revenue,CCHD,Bed Purchasing - South,Permanent Residential,Home Farm Trust Ltd  5-6 Brook Office Pa,45305.88, 25-Nov-2014
1024,Revenue,CCHD,18-25 Year Olds,Permanent Residential,Home From Home Care Ltd,81725.05, 25-Nov-2014
1025,Revenue,CCHD,Bed Purchasing - North,Permanent Residential,Homes Caring For Autism Ltd  Churchill H,89405.50, 25-Nov-2014
1026,Revenue,CCHD,18-25 Year Olds,Permanent Residential,Homes Caring For Autism Ltd  Churchill H,115985.85, 25-Nov-2014
1027,Revenue,CCHD,Bed Purchasing - Southmead Hospital,Permanent Nursing,Horfield Care Limited,1716.91, 21-Nov-2014
1028,Revenue,CCHD,Bed Purchasing - Southmead Hospital,Permanent Nursing,Horfield Care Limited,1470.15, 21-Nov-2014
1029,Revenue,CCHD,Bed Purchasing - Southmead Hospital,Permanent Nursing,Horfield Care Limited,2266.59, 21-Nov-2014
1030,Revenue,CCHD,Bed Purchasing - North,Permanent Nursing,Horfield Care Limited,1730.95, 21-Nov-2014
1031,Revenue,CCHD,Bed Purchasing - Southmead Hospital,Permanent Nursing,Horfield Care Limited,1912.97, 21-Nov-2014
1032,Revenue,CCHD,Bed Purchasing - North,Permanent Nursing,Horfield Care Limited,1189.60, 21-Nov-2014
1033,Revenue,CCHD,Bed Purchasing - South,Permanent Nursing,Horfield Care Limited,1357.09, 21-Nov-2014
1034,Revenue,CCHD,Bed Purchasing - Southmead Hospital,Permanent Nursing,Horfield Care Limited,2266.59, 21-Nov-2014
1035,Revenue,CCHD,Bed Purchasing - North,Respite Emergency - Nursing,Horfield Care Limited,1067.49, 21-Nov-2014
1036,Revenue,CCHD,Bed Purchasing - North,Respite Emergency - Nursing,Horfield Care Limited,1096.74, 21-Nov-2014
1037,Revenue,CCHD,Bed Purchasing - North,Permanent Nursing,Horfield Care Limited,1512.27, 21-Nov-2014
1038,Revenue,CCHD,Bed Purchasing - Southmead Hospital,Permanent Nursing,Horfield Care Limited,601.86, 21-Nov-2014
1039,Revenue,CCHD,Bed Purchasing - Southmead Hospital,Permanent Nursing,Horfield Care Limited,1717.67, 21-Nov-2014
1040,Revenue,CCHD,Bed Purchasing - Southmead Hospital,Permanent Nursing,Horfield Care Limited,1378.44, 21-Nov-2014
1041,Revenue,CCHD,Bed Purchasing - Southmead Hospital,Permanent Nursing,Horfield Care Limited,1662.26, 07-Nov-2014
1042,Revenue,CCHD,Bed Purchasing - Frenchay Hospital,Permanent Nursing,Horfield Care Limited,1661.53, 07-Nov-2014
1043,Revenue,CCHD,Bed Purchasing - Frenchay Hospital,Permanent Nursing,Horfield Care Limited,1422.73, 07-Nov-2014
1044,Revenue,CCHD,Bed Purchasing - Southmead Hospital,Permanent Nursing,Horfield Care Limited,1851.26, 07-Nov-2014
1045,Revenue,CCHD,Bed Purchasing - North,Permanent Nursing,Horfield Care Limited,1151.23, 07-Nov-2014
1046,Revenue,CCHD,Bed Purchasing - South,Permanent Nursing,Horfield Care Limited,1313.31, 07-Nov-2014
1047,Revenue,CCHD,Bed Purchasing - Southmead Hospital,Permanent Nursing,Horfield Care Limited,2193.47, 07-Nov-2014
1048,Revenue,CCHD,Bed Purchasing - North,Respite Emergency - Nursing,Horfield Care Limited,658.04, 07-Nov-2014
1049,Revenue,CCHD,Bed Purchasing - Southmead Hospital,Permanent Nursing,Horfield Care Limited,2193.47, 07-Nov-2014
1050,Revenue,CCHD,Bed Purchasing - North,Permanent Nursing,Horfield Care Limited,1675.11, 07-Nov-2014
1051,Revenue,CCHD,Bed Purchasing - Frenchay Hospital,Permanent Nursing,Horfield Care Limited,1333.97, 07-Nov-2014
1052,Revenue,CCHD,Home Care - Elderly - North,Private & Voluntary Home Care,Housing 21,37580.45, 10-Nov-2014
1053,Revenue,CCHD,Home Care - Elderly - South,Private & Voluntary Home Care,Housing 21,8973.62, 24-Nov-2014
1054,Revenue,CCHD,Home Care - Elderly - South,Private & Voluntary Home Care,Housing 21,8973.62, 24-Nov-2014
1055,Revenue,CCHD,Social Lettings Agency,Fees - General,Individual,11.60, 11-Nov-2014
1056,Revenue,CCHD,Social Lettings Agency,Other Supplies & Services,Individual,655.41, 11-Nov-2014
1057,Revenue,CCHD,Homeless - Private Sector Leasing,Other Supplies & Services,Individual,594.00, 14-Nov-2014
1058,Revenue,CCHD,Home Care - Elderly - South,Supported Living,Julia Simone- Supp. Ind.,1165.80, 25-Nov-2014
1059,Revenue,CCHD,Younger MH non-res purchasing,Supported Living,Julia Simone- Supp. Ind.,1165.80, 25-Nov-2014
1060,Revenue,CCHD,Younger MH non-res purchasing,Supported Living,Julia Simone- Supp. Ind.,1165.80, 25-Nov-2014
1061,Revenue,CCHD,Home Care - Elderly - North,Supported Living,Julia Simone- Supp. Ind.,1165.80, 25-Nov-2014
1062,Revenue,CCHD,Younger MH non-res purchasing,Supported Living,Julia Simone- Supp. Ind.,1165.80, 25-Nov-2014
1063,Revenue,CCHD,Younger MH non-res purchasing,Supported Living,Julia Simone- Supp. Ind.,1165.80, 25-Nov-2014
1064,Revenue,CCHD,Bed Purchasing - South,Permanent Residential,Julia Simone- Supp. Ind.,3960.52, 25-Nov-2014
1065,Revenue,CCHD,Bed Purchasing - South,Permanent Residential,Julia Simone- Supp. Ind.,33169.38, 25-Nov-2014
1066,Revenue,CCHD,Bed purchasing -S28A  Under 65 - North,Permanent Residential,Julia Simone- Supp. Ind.,3494.52, 25-Nov-2014
1067,Revenue,CCHD,Bed Purchasing - South,Permanent Residential,Karenza Ltd,1756.00, 25-Nov-2014
1068,Revenue,CCHD,Bed Purchasing - South,Permanent Residential,Kenver House Residential Home,1568.68, 25-Nov-2014
1069,Revenue,CCHD,Bed Purchasing - Southmead Hospital,Permanent Residential,Kenver House Residential Home,1119.36, 25-Nov-2014
1070,Revenue,CCHD,Bed Purchasing - Southmead Hospital,Permanent Residential,Kenver House Residential Home,1643.72, 25-Nov-2014
1071,Revenue,CCHD,Bed Purchasing - Southmead Hospital,Permanent Residential,Kenver House Residential Home,1671.08, 25-Nov-2014
1072,Revenue,CCHD,Bed Purchasing - South,Permanent Residential,Kenver House Residential Home,1527.68, 25-Nov-2014
1073,Revenue,CCHD,Bed Purchasing - South,Permanent Residential,Kenver House Residential Home,1136.68, 25-Nov-2014
1074,Revenue,CCHD,Bed Purchasing - South,Permanent Residential,Kenver House Residential Home,1370.92, 25-Nov-2014
1075,Revenue,CCHD,Bed Purchasing - South,Permanent Residential,Kenver House Residential Home,16816.26, 25-Nov-2014
1076,Revenue,CCHD,Bed Purchasing - South,Permanent Residential,Kenver House Residential Home,1691.08, 25-Nov-2014
1077,Revenue,CCHD,Bed Purchasing - South,Respite Planned - Residential,Kenver House Residential Home,1083.44, 25-Nov-2014
1078,Revenue,CCHD,Bed Purchasing - South,Permanent Residential,Kenver House Residential Home,2166.88, 25-Nov-2014
1079,Revenue,CCHD,Bed Purchasing - Southmead Hospital,Permanent Residential,Kenver House Residential Home,1671.00, 25-Nov-2014
1080,Revenue,CCHD,Bed Purchasing - South,Permanent Residential,Kenver House Residential Home,1414.64, 25-Nov-2014
1081,Revenue,CCHD,Bed Purchasing - North,Permanent Residential,Kenver House Residential Home,1659.44, 25-Nov-2014
1082,Revenue,CCHD,Bed Purchasing - Southmead Hospital,Permanent Residential,Kenver House Residential Home,1562.40, 25-Nov-2014
1083,Revenue,CCHD,Bed Purchasing - Southmead Hospital,Permanent Residential,Kenver House Residential Home,16793.32, 25-Nov-2014
1084,Revenue,CCHD,Bed Purchasing - North,Permanent Nursing,Kingfisher Lodge Care Centre,2514.24, 25-Nov-2014
1085,Revenue,CCHD,Sexual Health,Other Small Contracts,Kingswood Health Centre,1920.22, 25-Nov-2014
1086,Revenue,CCHD,Bed Purchasing - North,Permanent Residential,Kisimul Group,102762.00, 25-Nov-2014
1087,Revenue,CCHD,Research & Conferences,Other Supplies & Services,Leading Communities,2050.50, 10-Nov-2014
1088,Revenue,CCHD,Bed Purchasing - North,Permanent Nursing,Leonard Cheshire  National Account Centr,5036.48, 25-Nov-2014
1089,Revenue,CCHD,Bed Purchasing - North,Permanent Residential,Leonard Cheshire  National Account Centr,2910.92, 25-Nov-2014
1090,Revenue,CCHD,Bed Purchasing - South,Permanent Residential,Leonard Cheshire  National Account Centr,3003.72, 25-Nov-2014
1091,Revenue,CCHD,Bed Purchasing - South,Permanent Residential,Leonard Cheshire  National Account Centr,25754.18, 25-Nov-2014
1092,Revenue,CCHD,Bed Purchasing - North,Permanent Nursing,Leonard Cheshire  National Account Centr,3520.60, 25-Nov-2014
1093,Revenue,CCHD,Bed Purchasing - North,Permanent Nursing,Leonard Cheshire  National Account Centr,2764.56, 25-Nov-2014
1094,Revenue,CCHD,18-25 Year Olds,Permanent Residential,Leonard Cheshire  National Account Centr,3196.52, 25-Nov-2014
1095,Revenue,CCHD,18-25 Year Olds,Permanent Residential,Leonard Cheshire  National Account Centr,27851.33, 25-Nov-2014
1096,Revenue,CCHD,Bed Purchasing - North,Permanent Residential,Leonard Cheshire  National Account Centr,5959.48, 25-Nov-2014
1097,Revenue,CCHD,Bed Purchasing - North,Permanent Residential,Leonard Cheshire  National Account Centr,54607.15, 25-Nov-2014
1098,Revenue,CCHD,Bed Purchasing - South,Permanent Residential,Leonard Cheshire  National Account Centr,4492.08, 25-Nov-2014
1099,Revenue,CCHD,Bed Purchasing - North,Permanent Nursing,Leonard Cheshire  National Account Centr,2881.12, 25-Nov-2014
1100,Revenue,CCHD,Bed Purchasing - North,Permanent Nursing,Leonard Cheshire  National Account Centr,3869.32, 25-Nov-2014
1101,Revenue,CCHD,Bed Purchasing - North,Permanent Residential,Leonard Cheshire  National Account Centr,2932.64, 25-Nov-2014
1102,Revenue,CCHD,Bed Purchasing - North,Permanent Nursing,Leonard Cheshire  National Account Centr,3271.52, 25-Nov-2014
1103,Revenue,CCHD,Bed Purchasing - North,Permanent Nursing,Leonard Cheshire  National Account Centr,5603.08, 25-Nov-2014
1104,Revenue,CCHD,Bed Purchasing - South,Permanent Nursing,Leonard Cheshire  National Account Centr,2908.60, 25-Nov-2014
1105,Revenue,CCHD,Bed Purchasing - Southmead Hospital,Permanent Nursing,Leonard Cheshire  National Account Centr,3041.76, 25-Nov-2014
1106,Revenue,CCHD,South Glos Users in all other LA Homes,Permanent Nursing,Leonard Cheshire  National Account Centr,610.44, 25-Nov-2014
1107,Revenue,CCHD,Bed Purchasing - North,Permanent Nursing,Leonard Cheshire  National Account Centr,3358.64, 25-Nov-2014
1108,Revenue,CCHD,Bed Purchasing - North,Permanent Nursing,Leonard Cheshire  National Account Centr,4127.12, 25-Nov-2014
1109,Revenue,CCHD,Bed Purchasing - North,Permanent Nursing,Leonard Cheshire  National Account Centr,34460.53, 25-Nov-2014
1110,Revenue,CCHD,Bed Purchasing - South,Permanent Nursing,Leonard Cheshire  National Account Centr,4560.88, 25-Nov-2014
1111,Revenue,CCHD,Bed Purchasing - South,Respite Planned - Nursing,Leonard Cheshire  National Account Centr,939.91, 25-Nov-2014
1112,Revenue,CCHD,Woodleaze,Furniture & Fittings Loose,Let Us Furnish,1515.00, 07-Nov-2014
1113,Revenue,CCHD,Supported Living - North,Private & Voluntary Home Care,Lifeways Community Care (Gloucester) Ltd,8792.00, 17-Nov-2014
1114,Revenue,CCHD,Supported Living - North,Private & Voluntary Home Care,Lifeways Community Care (Gloucester) Ltd,11373.00, 10-Nov-2014
1115,Revenue,CCHD,Bed Purchasing - Southmead Hospital,Permanent Residential,Little Croft,1080.92, 25-Nov-2014
1116,Revenue,CCHD,Bed Purchasing - Southmead Hospital,Permanent Residential,Little Croft,1260.20, 25-Nov-2014
1117,Revenue,CCHD,Bed Purchasing - Southmead Hospital,Permanent Residential,Little Croft,1268.20, 25-Nov-2014
1118,Revenue,CCHD,Bed Purchasing - South,Permanent Residential,Little Croft,1570.60, 25-Nov-2014
1119,Revenue,CCHD,Bed Purchasing - South,Permanent Residential,Little Croft,1602.64, 25-Nov-2014
1120,Revenue,CCHD,Bed Purchasing - South,Permanent Residential,Little Croft,903.84, 25-Nov-2014
1121,Revenue,CCHD,Bed Purchasing - Southmead Hospital,Permanent Residential,Little Croft,1748.76, 25-Nov-2014
1122,Revenue,CCHD,Bed Purchasing - Southmead Hospital,Permanent Residential,Little Croft,5543.58, 25-Nov-2014
1123,Revenue,CCHD,Bed Purchasing - Southmead Hospital,Permanent Residential,Little Croft,1432.20, 25-Nov-2014
1124,Revenue,CCHD,Bed Purchasing - Southmead Hospital,Permanent Residential,Little Croft,1189.72, 25-Nov-2014
1125,Revenue,CCHD,Bed Purchasing - Southmead Hospital,Permanent Residential,Little Croft,619.24, 25-Nov-2014
1126,Revenue,CCHD,Bed Purchasing - South,Permanent Residential,Little Croft,5518.86, 25-Nov-2014
1127,Revenue,CCHD,Bed Purchasing - South,Permanent Residential,Little Croft,1050.36, 25-Nov-2014
1128,Revenue,CCHD,Bed Purchasing - South,Permanent Residential,Little Croft,2663.85, 25-Nov-2014
1129,Revenue,CCHD,Bed Purchasing - South,Permanent Residential,Little Croft,1405.08, 25-Nov-2014
1130,Revenue,CCHD,Bed Purchasing - Southmead Hospital,Permanent Residential,Little Croft,1260.20, 25-Nov-2014
1131,Revenue,CCHD,Bed Purchasing - North,Permanent Residential,Little Croft,1367.56, 25-Nov-2014
1132,Revenue,CCHD,Bed Purchasing - Southmead Hospital,Respite Planned - Residential,Little Croft,1993.36, 25-Nov-2014
1133,Revenue,CCHD,Bed Purchasing - Southmead Hospital,Respite Planned - Residential,Little Croft,5401.14, 25-Nov-2014
1134,Revenue,CCHD,Bed Purchasing - Southmead Hospital,Permanent Residential,Little Croft,1260.20, 25-Nov-2014
1135,Revenue,CCHD,Bed Purchasing - North,Permanent Residential,Littlecroft Residential Homes  Longcroft,59186.55, 25-Nov-2014
1136,Revenue,CCHD,NHS Health Checks & Tobacco Control,Drugs & Medical Supplies,Lloyds Pharmacy Limited,568.92, 04-Nov-2014
1137,Revenue,CCHD,Home Care - Elderly - North,One-off Planned Direct Payment,Lloyds TSB Commercial Finance Limited,229.10, 17-Nov-2014
1138,Revenue,CCHD,Home Care - Elderly - North,Other Small Contracts,Lloyds TSB Commercial Finance Limited,5992.15, 17-Nov-2014
1139,Revenue,CCHD,Home Care - Elderly - North,One-off Planned Direct Payment,Lloyds TSB Commercial Finance Limited,71.10, 17-Nov-2014
1140,Revenue,CCHD,Home Care - Elderly - North,Other Small Contracts,Lloyds TSB Commercial Finance Limited,5996.10, 17-Nov-2014
1141,Revenue,CCHD,Home Care - Elderly - North,Other Small Contracts,Lloyds TSB Commercial Finance Limited,5731.45, 24-Nov-2014
1142,Revenue,CCHD,Home Care - Elderly - North,Other Small Contracts,Lloyds TSB Commercial Finance Limited,5178.45, 24-Nov-2014
1143,Revenue,CCHD,Supported Living - South,Private & Voluntary Home Care,Lloyds TSB Commercial Finance Limited,9495.68, 20-Nov-2014
1144,Revenue,CCHD,Supported Living - South,Private & Voluntary Home Care,Lloyds TSB Commercial Finance Limited,3984.29, 20-Nov-2014
1145,Revenue,CCHD,Supported Living - South,Private & Voluntary Home Care,Lloyds TSB Commercial Finance Limited,3966.62, 20-Nov-2014
1146,Revenue,CCHD,Supported Living - South,Private & Voluntary Home Care,Lloyds TSB Commercial Finance Limited,3795.10, 20-Nov-2014
1147,Revenue,CCHD,Supported Living - South,Private & Voluntary Home Care,Lloyds TSB Commercial Finance Limited,9506.62, 20-Nov-2014
1148,Revenue,CCHD,Supported Living - South,Private & Voluntary Home Care,Lloyds TSB Commercial Finance Limited,3974.23, 20-Nov-2014
1149,Revenue,CCHD,Supported Living - South,Private & Voluntary Home Care,Lloyds TSB Commercial Finance Limited,7969.98, 20-Nov-2014
1150,Revenue,CCHD,Supported Living - South,Private & Voluntary Home Care,Lloyds TSB Commercial Finance Limited,3830.05, 20-Nov-2014
1151,Revenue,CCHD,Supported Living - North,Private & Voluntary Home Care,Lloyds TSB Commercial Finance Limited,9327.87, 05-Nov-2014
1152,Revenue,CCHD,Supported Living - North,Private & Voluntary Home Care,Lloyds TSB Commercial Finance Limited,9666.52, 20-Nov-2014
1153,Revenue,CCHD,Supported Living - South,Private & Voluntary Home Care,Lloyds TSB Commercial Finance Limited,4104.69, 20-Nov-2014
1154,Revenue,CCHD,Supported Living - South,Private & Voluntary Home Care,Lloyds TSB Commercial Finance Limited,3750.81, 20-Nov-2014
1155,Revenue,CCHD,Supported Living - South,Private & Voluntary Home Care,Lloyds TSB Commercial Finance Limited,3322.79, 20-Nov-2014
1156,Revenue,CCHD,Supported Living - South,Private & Voluntary Home Care,Lloyds TSB Commercial Finance Limited,6106.63, 20-Nov-2014
1157,Revenue,CCHD,Supported Living - South,Private & Voluntary Home Care,Lloyds TSB Commercial Finance Limited,3618.61, 20-Nov-2014
1158,Revenue,CCHD,Supported Living - South,Private & Voluntary Home Care,Lloyds TSB Commercial Finance Limited,3773.77, 20-Nov-2014
1159,Revenue,CCHD,Supported Living - North,Private & Voluntary Home Care,Lloyds TSB Commercial Finance Limited,8023.55, 05-Nov-2014
1160,Revenue,CCHD,Supported Living - North,Private & Voluntary Home Care,Lloyds TSB Commercial Finance Limited,8291.00, 20-Nov-2014
1161,Revenue,CCHD,Supported Living - South,Private & Voluntary Home Care,Lloyds TSB Commercial Finance Limited,3561.13, 05-Nov-2014
1162,Revenue,CCHD,Supported Living - South,Private & Voluntary Home Care,Lloyds TSB Commercial Finance Limited,564.20, 20-Nov-2014
1163,Revenue,CCHD,Home Care - Elderly - North,Day Care / Social Activities,Lower Kilcott,1466.00, 25-Nov-2014
1164,Revenue,CCHD,Home Care - Elderly - North,Day Care / Social Activities,Lower Kilcott,560.64, 25-Nov-2014
1165,Revenue,CCHD,Bed Purchasing - Southmead Hospital,Permanent Nursing,Majestic 3 Limited,1000.20, 25-Nov-2014
1166,Revenue,CCHD,Purchase of Non-Res Care - North,Day Care / Social Activities,Make It Mentoring (MiM),2128.00, 03-Nov-2014
1167,Revenue,CCHD,Bed Purchasing - Southmead Hospital,Permanent Residential,Manor Cottage,1032.52, 25-Nov-2014
1168,Revenue,CCHD,Bed Purchasing - South,Permanent Residential,Manor Cottage,1456.60, 25-Nov-2014
1169,Revenue,CCHD,Bed Purchasing - Southmead Hospital,Permanent Residential,Manor Cottage,1260.20, 25-Nov-2014
1170,Revenue,CCHD,Bed Purchasing - North,Permanent Residential,Manton Hall Residential Home,1521.60, 25-Nov-2014
1171,Revenue,CCHD,Section 117 Placements MH Younger,Day Care / Social Activities,Maples Community Care Limited,798.00, 05-Nov-2014
1172,Revenue,CCHD,Section 117 Placements MH Younger,Day Care / Social Activities,Maples Community Care Limited,2597.00, 05-Nov-2014
1173,Revenue,CCHD,Section 117 Placements MH Younger,Day Care / Social Activities,Maples Community Care Limited,2597.00, 05-Nov-2014
1174,Revenue,CCHD,Supported Living - South,Private & Voluntary Home Care,Maples Community Care Limited,2889.60, 21-Nov-2014
1175,Revenue,CCHD,Section 117 Placements MH Younger,Day Care / Social Activities,Maples Community Care Limited,798.00, 21-Nov-2014
1176,Revenue,CCHD,Section 117 Placements MH Younger,Day Care / Social Activities,Maples Community Care Limited,2597.00, 21-Nov-2014
1177,Revenue,CCHD,MH Purchasing - Younger,Day Care / Social Activities,Maples Community Care Limited,2597.00, 21-Nov-2014
1178,Revenue,CCHD,Section 117 Placements MH Younger,Day Care / Social Activities,Maples Community Care Limited,2597.00, 21-Nov-2014
1179,Revenue,CCHD,Sexual Health,Other Supplies & Services,Individual,645.00, 11-Nov-2014
1180,Revenue,CCHD,Social Lettings Agency,Fees - General,Individual,11.60, 20-Nov-2014
1181,Revenue,CCHD,Social Lettings Agency,Other Supplies & Services,Individual,655.41, 20-Nov-2014
1182,Revenue,CCHD,Tenancy Start Up Scheme,Other Supplies & Services,Individual,631.24, 24-Nov-2014
1183,Revenue,CCHD,Bed Purchasing - South,Permanent Residential,Marsden Healthcare Limited,1263.20, 21-Nov-2014
1184,Revenue,CCHD,Bed Purchasing - South,Permanent Residential,Marsden Healthcare Limited,3247.80, 21-Nov-2014
1185,Revenue,CCHD,Bed Purchasing - South,Permanent Residential,Marsden Healthcare Limited,29012.90, 21-Nov-2014
1186,Revenue,CCHD,Bed Purchasing - South,Permanent Residential,Marsden Healthcare Limited,1525.64, 21-Nov-2014
1187,Revenue,CCHD,Bed Purchasing - South,Permanent Nursing,Meadow Care Home,1541.00, 25-Nov-2014
1188,Revenue,CCHD,Home Care - Elderly - South,Day Care / Social Activities,Mears Care,92.40, 24-Nov-2014
1189,Revenue,CCHD,Home Care - Elderly - South,Other Small Contracts,Mears Care,681.45, 24-Nov-2014
1190,Revenue,CCHD,Home Care - Elderly - North,Other Small Contracts,Mears Care,3780.70, 24-Nov-2014
1191,Revenue,CCHD,Day Care - North,Day Care / Social Activities,Mears Care,100.10, 24-Nov-2014
1192,Revenue,CCHD,Under 65s -MH  Home Care Purch,Other Small Contracts,Mears Care,115.50, 24-Nov-2014
1193,Revenue,CCHD,Home Care - Elderly - South,Day Care / Social Activities,Mears Care,92.40, 18-Nov-2014
1194,Revenue,CCHD,Home Care - Elderly - South,Other Small Contracts,Mears Care,619.85, 18-Nov-2014
1195,Revenue,CCHD,Home Care - Elderly - North,Other Small Contracts,Mears Care,3853.85, 18-Nov-2014
1196,Revenue,CCHD,Day Care - North,Day Care / Social Activities,Mears Care,107.80, 18-Nov-2014
1197,Revenue,CCHD,Under 65s -MH  Home Care Purch,Other Small Contracts,Mears Care,115.50, 18-Nov-2014
1198,Revenue,CCHD,Home Care - Elderly - South,Day Care / Social Activities,Mears Care,92.40, 18-Nov-2014
1199,Revenue,CCHD,Home Care - Elderly - South,Other Small Contracts,Mears Care,685.30, 18-Nov-2014
1200,Revenue,CCHD,Home Care - Elderly - North,Other Small Contracts,Mears Care,4046.35, 18-Nov-2014
1201,Revenue,CCHD,Day Care - North,Day Care / Social Activities,Mears Care,80.85, 18-Nov-2014
1202,Revenue,CCHD,Under 65s -MH  Home Care Purch,Other Small Contracts,Mears Care,115.50, 18-Nov-2014
1203,Revenue,CCHD,Home Care - Elderly - South,Private & Voluntary Home Care,Mears Care,49219.00, 28-Nov-2014
1204,Revenue,CCHD,Home Care - Elderly - South,Other Small Contracts,Medacs Home Care,325.50, 14-Nov-2014
1205,Revenue,CCHD,Home Care - Elderly - North,Other Small Contracts,Medacs Home Care,262.50, 14-Nov-2014
1206,Revenue,CCHD,Home care - Elderly MH - North,Other Small Contracts,Medacs Home Care,73.50, 14-Nov-2014
1207,Revenue,CCHD,Home Care - Elderly - South,Other Small Contracts,Medacs Home Care,248.50, 05-Nov-2014
1208,Revenue,CCHD,Home Care - Elderly - North,Other Small Contracts,Medacs Home Care,447.70, 05-Nov-2014
1209,Revenue,CCHD,Home care - Elderly MH - North,Other Small Contracts,Medacs Home Care,87.50, 05-Nov-2014
1210,Revenue,CCHD,Home Care - Elderly - South,Other Small Contracts,Medacs Home Care,255.50, 17-Nov-2014
1211,Revenue,CCHD,Home Care - Elderly - North,Other Small Contracts,Medacs Home Care,433.70, 17-Nov-2014
1212,Revenue,CCHD,Home care - Elderly MH - North,Other Small Contracts,Medacs Home Care,98.00, 17-Nov-2014
1213,Revenue,CCHD,Home Care - Elderly - South,Other Small Contracts,Medacs Home Care,259.00, 18-Nov-2014
1214,Revenue,CCHD,Home Care - Elderly - North,Other Small Contracts,Medacs Home Care,440.70, 18-Nov-2014
1215,Revenue,CCHD,Home care - Elderly MH - North,Other Small Contracts,Medacs Home Care,17.50, 18-Nov-2014
1216,Revenue,CCHD,NRS Contract,Daily Living Equipment,Medequip Assistive Technology Ltd,24876.21, 14-Nov-2014
1217,Revenue,CCHD,NRS Contract,Daily Living Equipment,Medequip Assistive Technology Ltd,107268.45, 14-Nov-2014
1218,Revenue,CCHD,Bed Purchasing - South,Permanent Residential,Mencap,22184.55, 25-Nov-2014
1219,Revenue,CCHD,Supported Living (S28a) South,Private & Voluntary Home Care,Mencap - PS Central & Cymru,3841.88, 14-Nov-2014
1220,Revenue,CCHD,Supported Living (S28a) South,Private & Voluntary Home Care,Mencap - PS Central & Cymru,3841.88, 18-Nov-2014
1221,Revenue,CCHD,User Involvement,Consultation Expenses,Mencap Employment,627.20, 20-Nov-2014
1222,Revenue,CCHD,Learning Difficulties Development Fund,Other Supplies & Services,Mencap Employment,1620.00, 25-Nov-2014
1223,Revenue,CCHD,Bed Purchasing - South,Permanent Nursing,Mendip Court,3169.04, 25-Nov-2014
1224,Revenue,CCHD,Breakthrough and Inclusion Work,Project Funding,Mentoring & Befriending Foundation,1300.00, 26-Nov-2014
1225,Revenue,CCHD,Home Care - Elderly - South,Other Small Contracts,MiHomecare,360.45, 11-Nov-2014
1226,Revenue,CCHD,Home Care - Elderly - North,Other Small Contracts,MiHomecare,396.90, 11-Nov-2014
1227,Revenue,CCHD,Home Care - Elderly - South,Other Small Contracts,MiHomecare,360.45, 13-Nov-2014
1228,Revenue,CCHD,Home Care - Elderly - North,Other Small Contracts,MiHomecare,344.25, 13-Nov-2014
1229,Revenue,CCHD,Home Care - Elderly - South,Other Small Contracts,MiHomecare,311.85, 13-Nov-2014
1230,Revenue,CCHD,Home Care - Elderly - North,Other Small Contracts,MiHomecare,388.80, 13-Nov-2014
1231,Revenue,CCHD,Bed Purchasing - Southmead Hospital,Permanent Residential,Milburn Finance,1055.44, 25-Nov-2014
1232,Revenue,CCHD,Home Care - Elderly - South,Other Small Contracts,Milestones Homecare & Dementia Service,1552.00, 07-Nov-2014
1233,Revenue,CCHD,Home Care - Elderly - North,Other Small Contracts,Milestones Homecare & Dementia Service,1746.00, 07-Nov-2014
1234,Revenue,CCHD,Home care - Elderly MH - North,Other Small Contracts,Milestones Homecare & Dementia Service,54.32, 07-Nov-2014
1235,Revenue,CCHD,Home Care - Elderly - South,Day Care / Social Activities,Milestones Homecare & Dementia Service,31.04, 07-Nov-2014
1236,Revenue,CCHD,Home Care - Elderly - South,Other Small Contracts,Milestones Homecare & Dementia Service,2009.84, 07-Nov-2014
1237,Revenue,CCHD,Home Care - Elderly - North,Other Small Contracts,Milestones Homecare & Dementia Service,1629.60, 07-Nov-2014
1238,Revenue,CCHD,Home care - Elderly MH - North,Other Small Contracts,Milestones Homecare & Dementia Service,54.32, 07-Nov-2014
1239,Revenue,CCHD,Home Care - Elderly - South,Day Care / Social Activities,Milestones Homecare & Dementia Service,31.04, 24-Nov-2014
1240,Revenue,CCHD,Home Care - Elderly - South,Other Small Contracts,Milestones Homecare & Dementia Service,1714.96, 24-Nov-2014
1241,Revenue,CCHD,Home Care - Elderly - North,Other Small Contracts,Milestones Homecare & Dementia Service,1571.40, 24-Nov-2014
1242,Revenue,CCHD,Home care - Elderly MH - North,Other Small Contracts,Milestones Homecare & Dementia Service,54.32, 24-Nov-2014
1243,Revenue,CCHD,Home Care - Elderly - South,Day Care / Social Activities,Milestones Homecare & Dementia Service,31.04, 27-Nov-2014
1244,Revenue,CCHD,Home Care - Elderly - South,Other Small Contracts,Milestones Homecare & Dementia Service,1955.52, 27-Nov-2014
1245,Revenue,CCHD,Home Care - Elderly - North,Other Small Contracts,Milestones Homecare & Dementia Service,1470.52, 27-Nov-2014
1246,Revenue,CCHD,Home care - Elderly MH - North,Other Small Contracts,Milestones Homecare & Dementia Service,54.32, 27-Nov-2014
1247,Revenue,CCHD,Home Care - Elderly - South,Day Care / Social Activities,Milestones Supported Living Services,2454.12, 12-Nov-2014
1248,Revenue,CCHD,Home Care - Elderly - South,Other Small Contracts,Milestones Supported Living Services,3492.71, 12-Nov-2014
1249,Revenue,CCHD,Home Care - Elderly - North,Day Care / Social Activities,Milestones Supported Living Services,970.42, 12-Nov-2014
1250,Revenue,CCHD,Home Care - Elderly - North,Other Small Contracts,Milestones Supported Living Services,48.12, 12-Nov-2014
1251,Revenue,CCHD,Day Care - South,Day Care / Social Activities,Milestones Supported Living Services,100.25, 12-Nov-2014
1252,Revenue,CCHD,Day Care - North,Day Care / Social Activities,Milestones Supported Living Services,197.27, 12-Nov-2014
1253,Revenue,CCHD,Younger MH non-res purchasing,Day Care / Social Activities,Milestones Supported Living Services,28.07, 12-Nov-2014
1254,Revenue,CCHD,Home care - Elderly MH - North,Other Small Contracts,Milestones Supported Living Services,44.11, 12-Nov-2014
1255,Revenue,CCHD,Home Care - Elderly - South,Day Care / Social Activities,Milestones Supported Living Services,2173.42, 12-Nov-2014
1256,Revenue,CCHD,Home Care - Elderly - South,Other Small Contracts,Milestones Supported Living Services,3171.91, 12-Nov-2014
1257,Revenue,CCHD,Home Care - Elderly - South,Supported Living,Milestones Supported Living Services,737.84, 12-Nov-2014
1258,Revenue,CCHD,Home Care - Elderly - North,Day Care / Social Activities,Milestones Supported Living Services,942.35, 12-Nov-2014
1259,Revenue,CCHD,Day Care - South,Day Care / Social Activities,Milestones Supported Living Services,64.16, 12-Nov-2014
1260,Revenue,CCHD,Day Care - North,Day Care / Social Activities,Milestones Supported Living Services,105.04, 12-Nov-2014
1261,Revenue,CCHD,Younger MH non-res purchasing,Day Care / Social Activities,Milestones Supported Living Services,24.06, 12-Nov-2014
1262,Revenue,CCHD,Home care - Elderly MH - North,Other Small Contracts,Milestones Supported Living Services,64.16, 12-Nov-2014
1263,Revenue,CCHD,Home Care - Elderly - South,Day Care / Social Activities,Milestones Supported Living Services,2630.56, 12-Nov-2014
1264,Revenue,CCHD,Home Care - Elderly - South,Other Small Contracts,Milestones Supported Living Services,3408.50, 12-Nov-2014
1265,Revenue,CCHD,Home Care - Elderly - South,Supported Living,Milestones Supported Living Services,673.68, 12-Nov-2014
1266,Revenue,CCHD,Home Care - Elderly - North,Day Care / Social Activities,Milestones Supported Living Services,1114.78, 12-Nov-2014
1267,Revenue,CCHD,Day Care - South,Day Care / Social Activities,Milestones Supported Living Services,96.24, 12-Nov-2014
1268,Revenue,CCHD,Day Care - North,Day Care / Social Activities,Milestones Supported Living Services,197.27, 12-Nov-2014
1269,Revenue,CCHD,Younger MH non-res purchasing,Day Care / Social Activities,Milestones Supported Living Services,32.08, 12-Nov-2014
1270,Revenue,CCHD,Home care - Elderly MH - North,Other Small Contracts,Milestones Supported Living Services,32.08, 12-Nov-2014
1271,Revenue,CCHD,Supported Living - North,Private & Voluntary Home Care,Milestones Trust,9030.61, 03-Nov-2014
1272,Revenue,CCHD,Supported Living - North,Private & Voluntary Home Care,Milestones Trust,4870.40, 03-Nov-2014
1273,Revenue,CCHD,Supported Living - North,Private & Voluntary Home Care,Milestones Trust,577.80, 04-Nov-2014
1274,Revenue,CCHD,Supported Living - North,Private & Voluntary Home Care,Milestones Trust,2147.54, 04-Nov-2014
1275,Revenue,CCHD,Supported Living - North,Private & Voluntary Home Care,Milestones Trust,1098.50, 04-Nov-2014
1276,Revenue,CCHD,Supported Living - North,Private & Voluntary Home Care,Milestones Trust,663.50, 04-Nov-2014
1277,Revenue,CCHD,Supported Living (S28a) North,Private & Voluntary Home Care,Milestones Trust,1637.43, 07-Nov-2014
1278,Revenue,CCHD,Elderly MH Day Care North,Day Care / Social Activities,Milestones Trust,791.73, 19-Nov-2014
1279,Revenue,CCHD,Supported Living (S28a) South,Private & Voluntary Home Care,Milestones Trust,1782.30, 28-Nov-2014
1280,Revenue,CCHD,Supported Living (S28a) South,Private & Voluntary Home Care,Milestones Trust,1782.30, 28-Nov-2014
1281,Revenue,CCHD,Supported Living (S28a) South,Private & Voluntary Home Care,Milestones Trust,1782.30, 28-Nov-2014
1282,Revenue,CCHD,Purchase of Non-Res Care - South,Day Care / Social Activities,Milestones Trust,2590.26, 27-Nov-2014
1283,Revenue,CCHD,Bed Purchasing - Southmead Hospital,Permanent Residential,Mostyn Lodge Residential Home,1133.48, 25-Nov-2014
1284,Revenue,CCHD,Bed Purchasing - North,Permanent Residential,Mostyn Lodge Residential Home,1234.64, 25-Nov-2014
1285,Revenue,CCHD,Supported Living - South,Private & Voluntary Home Care,Moving On,3461.26, 14-Nov-2014
1286,Revenue,CCHD,Supported Living - South,Private & Voluntary Home Care,Moving On,3419.95, 14-Nov-2014
1287,Revenue,CCHD,Supported Living - South,Private & Voluntary Home Care,Moving On,3334.40, 11-Nov-2014
1288,Revenue,CCHD,Supported Living - South,Private & Voluntary Home Care,Moving On,3419.95, 11-Nov-2014
1289,Revenue,CCHD,Supported Living - South,Private & Voluntary Home Care,Moving On,5531.60, 14-Nov-2014
1290,Revenue,CCHD,Supported Living - South,Private & Voluntary Home Care,Moving On,5506.82, 14-Nov-2014
1291,Revenue,CCHD,Supported Living - South,Private & Voluntary Home Care,Moving On,5333.45, 11-Nov-2014
1292,Revenue,CCHD,Supported Living - South,Private & Voluntary Home Care,Moving On,5506.82, 11-Nov-2014
1293,Revenue,CCHD,Day Care - South,Day Care / Social Activities,Moving On,1090.98, 14-Nov-2014
1294,Revenue,CCHD,Day Care - South,Day Care / Social Activities,Moving On,1124.04, 14-Nov-2014
1295,Revenue,CCHD,Day Care - South,Day Care / Social Activities,Moving On,1024.86, 14-Nov-2014
1296,Revenue,CCHD,Day Care - South,Day Care / Social Activities,Moving On,1090.98, 14-Nov-2014
1297,Revenue,CCHD,Social Lettings Agency,Fees - General,Individual,10.00, 07-Nov-2014
1298,Revenue,CCHD,Social Lettings Agency,Other Supplies & Services,Individual,565.00, 07-Nov-2014
1299,Revenue,CCHD,Social Lettings Agency,Fees - General,Individual,10.00, 18-Nov-2014
1300,Revenue,CCHD,Social Lettings Agency,Other Supplies & Services,Individual,565.00, 18-Nov-2014
1301,Revenue,CCHD,Social Lettings Agency,Fees - General,Individual,10.09, 06-Nov-2014
1302,Revenue,CCHD,Social Lettings Agency,Other Supplies & Services,Individual,570.66, 06-Nov-2014
1303,Revenue,CCHD,Social Lettings Agency,Fees - General,Individual,10.10, 14-Nov-2014
1304,Revenue,CCHD,Social Lettings Agency,Other Supplies & Services,Individual,570.64, 14-Nov-2014
1305,Revenue,CCHD,Social Lettings Agency,Fees - General,Individual,10.00, 21-Nov-2014
1306,Revenue,CCHD,Social Lettings Agency,Other Supplies & Services,Individual,565.00, 21-Nov-2014
1307,Revenue,CCHD,Social Lettings Agency,Fees - General,Individual,8.60, 21-Nov-2014
1308,Revenue,CCHD,Social Lettings Agency,Other Supplies & Services,Individual,582.00, 21-Nov-2014
1309,Revenue,CCHD,Homeless - Private Sector Leasing,Other Supplies & Services,Individual,565.00, 21-Nov-2014
1310,Revenue,CCHD,Tenancy Start Up Scheme,Other Supplies & Services,Individual,1500.00, 19-Nov-2014
1311,Revenue,CCHD,Social Lettings Agency,Fees - General,Individual,10.00, 07-Nov-2014
1312,Revenue,CCHD,Social Lettings Agency,Other Supplies & Services,Individual,565.00, 07-Nov-2014
1313,Revenue,CCHD,Social Lettings Agency,Fees - General,Individual,11.20, 20-Nov-2014
1314,Revenue,CCHD,Social Lettings Agency,Other Supplies & Services,Individual,632.81, 20-Nov-2014
1315,Revenue,CCHD,Social Lettings Agency,Fees - General,Individual,10.00, 07-Nov-2014
1316,Revenue,CCHD,Social Lettings Agency,Other Supplies & Services,Individual,565.00, 07-Nov-2014
1317,Revenue,CCHD,Social Lettings Agency,Fees - General,Individual,10.00, 28-Nov-2014
1318,Revenue,CCHD,Social Lettings Agency,Other Supplies & Services,Individual,565.00, 28-Nov-2014
1319,Revenue,CCHD,Social Lettings Agency,Fees - General,Individual,7.50, 05-Nov-2014
1320,Revenue,CCHD,Social Lettings Agency,Other Supplies & Services,Individual,587.25, 05-Nov-2014
1321,Revenue,CCHD,Home Care - Elderly - South,Other Small Contracts,Mrs B Kimber -  CM2000,11460.63, 05-Nov-2014
1322,Revenue,CCHD,Home Care - Elderly - North,Other Small Contracts,Mrs B Kimber -  CM2000,4459.35, 05-Nov-2014
1323,Revenue,CCHD,Day Care - South,Day Care / Social Activities,Mrs B Kimber -  CM2000,263.04, 05-Nov-2014
1324,Revenue,CCHD,Under 65s -MH  Home Care Purch,Other Small Contracts,Mrs B Kimber -  CM2000,65.76, 05-Nov-2014
1325,Revenue,CCHD,Elderly MH Day Care North,Day Care / Social Activities,Mrs B Kimber -  CM2000,98.64, 05-Nov-2014
1326,Revenue,CCHD,Home Care - Elderly - South,Day Care / Social Activities,Mrs B Kimber -  CM2000,443.88, 07-Nov-2014
1327,Revenue,CCHD,Home Care - Elderly - South,Other Small Contracts,Mrs B Kimber -  CM2000,10714.50, 07-Nov-2014
1328,Revenue,CCHD,Home Care - Elderly - North,Other Small Contracts,Mrs B Kimber -  CM2000,4253.85, 07-Nov-2014
1329,Revenue,CCHD,Day Care - South,Day Care / Social Activities,Mrs B Kimber -  CM2000,263.04, 07-Nov-2014
1330,Revenue,CCHD,Under 65s -MH  Home Care Purch,Other Small Contracts,Mrs B Kimber -  CM2000,65.76, 07-Nov-2014
1331,Revenue,CCHD,Elderly MH Day Care North,Day Care / Social Activities,Mrs B Kimber -  CM2000,49.32, 07-Nov-2014
1332,Revenue,CCHD,Home Care - Elderly - South,Other Small Contracts,Mrs B Kimber -  CM2000,11604.48, 18-Nov-2014
1333,Revenue,CCHD,Home Care - Elderly - North,Other Small Contracts,Mrs B Kimber -  CM2000,4081.23, 18-Nov-2014
1334,Revenue,CCHD,Day Care - South,Day Care / Social Activities,Mrs B Kimber -  CM2000,258.93, 18-Nov-2014
1335,Revenue,CCHD,Under 65s -MH  Home Care Purch,Other Small Contracts,Mrs B Kimber -  CM2000,65.76, 18-Nov-2014
1336,Revenue,CCHD,Elderly MH Day Care North,Day Care / Social Activities,Mrs B Kimber -  CM2000,49.32, 18-Nov-2014
1337,Revenue,CCHD,Social Lettings Agency,Fees - General,Individual,10.00, 17-Nov-2014
1338,Revenue,CCHD,Social Lettings Agency,Other Supplies & Services,Individual,565.00, 17-Nov-2014
1339,Revenue,CCHD,Tenancy Start Up Scheme,Other Supplies & Services,Individual,1550.00, 20-Nov-2014
1340,Revenue,CCHD,Social Lettings Agency,Fees - General,Individual,10.00, 24-Nov-2014
1341,Revenue,CCHD,Social Lettings Agency,Other Supplies & Services,Individual,565.00, 24-Nov-2014
1342,Revenue,CCHD,Supported Living - North,Permanent Residential,Individual,1019.12, 13-Nov-2014
1343,Revenue,CCHD,Social Lettings Agency,Fees - General,Individual,10.10, 20-Nov-2014
1344,Revenue,CCHD,Social Lettings Agency,Other Supplies & Services,Individual,570.64, 20-Nov-2014
1345,Revenue,CCHD,Social Lettings Agency,Fees - General,Individual,10.09, 12-Nov-2014
1346,Revenue,CCHD,Social Lettings Agency,Other Supplies & Services,Individual,570.66, 12-Nov-2014
1347,Revenue,CCHD,Supported Living - North,Permanent Residential,Individual,1041.16, 13-Nov-2014
1348,Revenue,CCHD,Social Lettings Agency,Fees - General,Individual,11.60, 14-Nov-2014
1349,Revenue,CCHD,Social Lettings Agency,Other Supplies & Services,Individual,655.41, 14-Nov-2014
1350,Revenue,CCHD,Social Lettings Agency,Fees - General,Individual,10.00, 07-Nov-2014
1351,Revenue,CCHD,Social Lettings Agency,Other Supplies & Services,Individual,565.00, 07-Nov-2014
1352,Revenue,CCHD,Social Lettings Agency,Fees - General,Individual,17.13, 11-Nov-2014
1353,Revenue,CCHD,Social Lettings Agency,Other Supplies & Services,Individual,977.68, 11-Nov-2014
1354,Revenue,CCHD,NHS Health Checks & Tobacco Control,Project Funding,Mystery Shoppers Ltd,649.70, 28-Nov-2014
1355,Revenue,CCHD,Day Care - South,Day Care / Social Activities,NAS Services Limited,534.80, 28-Nov-2014
1356,Revenue,CCHD,Day Care - South,Day Care / Social Activities,NAS Services Limited,668.50, 28-Nov-2014
1357,Revenue,CCHD,Younger MH non-res purchasing,Day Care / Social Activities,NAS Services Limited,764.00, 28-Nov-2014
1358,Revenue,CCHD,Newton House,Security Systems,National Security Group,97.27, 19-Nov-2014
1359,Revenue,CCHD,Home Care - Elderly - South,Other Small Contracts,Nestor T/A Allied Healthcare,3161.60, 05-Nov-2014
1360,Revenue,CCHD,Home Care - Elderly - North,Other Small Contracts,Nestor T/A Allied Healthcare,8319.08, 05-Nov-2014
1361,Revenue,CCHD,Day Care - North,Day Care / Social Activities,Nestor T/A Allied Healthcare,228.00, 05-Nov-2014
1362,Revenue,CCHD,Home care - Elderly MH - North,Other Small Contracts,Nestor T/A Allied Healthcare,53.20, 05-Nov-2014
1363,Revenue,CCHD,Home Care - Elderly - South,Other Small Contracts,Nestor T/A Allied Healthcare,3218.60, 05-Nov-2014
1364,Revenue,CCHD,Home Care - Elderly - North,Other Small Contracts,Nestor T/A Allied Healthcare,8458.30, 05-Nov-2014
1365,Revenue,CCHD,Day Care - North,Day Care / Social Activities,Nestor T/A Allied Healthcare,228.00, 05-Nov-2014
1366,Revenue,CCHD,Home care - Elderly MH - North,Other Small Contracts,Nestor T/A Allied Healthcare,38.00, 05-Nov-2014
1367,Revenue,CCHD,Home Care - Elderly - South,Other Small Contracts,Nestor T/A Allied Healthcare,3028.60, 12-Nov-2014
1368,Revenue,CCHD,Home Care - Elderly - North,Other Small Contracts,Nestor T/A Allied Healthcare,8473.31, 12-Nov-2014
1369,Revenue,CCHD,Day Care - North,Day Care / Social Activities,Nestor T/A Allied Healthcare,228.00, 12-Nov-2014
1370,Revenue,CCHD,Home care - Elderly MH - North,Other Small Contracts,Nestor T/A Allied Healthcare,53.20, 12-Nov-2014
1371,Revenue,CCHD,Home Care - Elderly - South,Other Small Contracts,Nestor T/A Allied Healthcare,2983.00, 17-Nov-2014
1372,Revenue,CCHD,Home Care - Elderly - North,Other Small Contracts,Nestor T/A Allied Healthcare,8483.81, 17-Nov-2014
1373,Revenue,CCHD,Day Care - North,Day Care / Social Activities,Nestor T/A Allied Healthcare,235.60, 17-Nov-2014
1374,Revenue,CCHD,Home care - Elderly MH - North,Other Small Contracts,Nestor T/A Allied Healthcare,45.60, 17-Nov-2014
1375,Revenue,CCHD,Home Care - Elderly - South,Other Small Contracts,Network Health & Social Care,1474.55, 05-Nov-2014
1376,Revenue,CCHD,Home Care - Elderly - North,Day Care / Social Activities,Network Health & Social Care,65.11, 05-Nov-2014
1377,Revenue,CCHD,Home Care - Elderly - North,Other Small Contracts,Network Health & Social Care,4527.06, 05-Nov-2014
1378,Revenue,CCHD,Home Care - Elderly - South,Other Small Contracts,Network Health & Social Care,1493.70, 05-Nov-2014
1379,Revenue,CCHD,Home Care - Elderly - North,Day Care / Social Activities,Network Health & Social Care,80.43, 05-Nov-2014
1380,Revenue,CCHD,Home Care - Elderly - North,Other Small Contracts,Network Health & Social Care,4136.40, 05-Nov-2014
1381,Revenue,CCHD,Home Care - Elderly - South,Other Small Contracts,Network Health & Social Care,2003.09, 05-Nov-2014
1382,Revenue,CCHD,Home Care - Elderly - North,Day Care / Social Activities,Network Health & Social Care,76.60, 05-Nov-2014
1383,Revenue,CCHD,Home Care - Elderly - North,Other Small Contracts,Network Health & Social Care,4281.94, 05-Nov-2014
1384,Revenue,CCHD,Social Lettings Agency,Fees - General,Individual,10.00, 04-Nov-2014
1385,Revenue,CCHD,Social Lettings Agency,Other Supplies & Services,Individual,565.00, 04-Nov-2014
1386,Revenue,CCHD,SLA Grants - Support Serv,Other Supplies & Services,NHS South Gloucestershire CCG,7697.00, 06-Nov-2014
1387,Revenue,CCHD,Mental Capacity Act - Advocacy,Other Supplies & Services,NHS South Gloucestershire CCG,48862.82, 12-Nov-2014
1388,Revenue,CCHD,Leadership and Business Support,Other Small Contracts,NHS South Gloucestershire CCG,180477.00, 25-Nov-2014
1389,Revenue,CCHD,"Strategy, Advice and Public Protection",Other Supplies & Services,North Somerset Council,573.68, 28-Nov-2014
1390,Revenue,CCHD,Sexual Health,Other Small Contracts,Northville Family Practice,681.36, 24-Nov-2014
1391,Revenue,CCHD,Bed Purchasing - South,Permanent Residential,Norwood   Broadway House,4972.40, 25-Nov-2014
1392,Revenue,CCHD,Bed Purchasing - Southmead Hospital,Permanent Residential,Notaro Homes Ltd  Queensmead Court,3000.00, 25-Nov-2014
1393,Revenue,CCHD,Bed Purchasing - South,Permanent Residential,Notaro Homes Ltd  Queensmead Court,1884.80, 25-Nov-2014
1394,Revenue,CCHD,Bed Purchasing - South,Permanent Residential,Notaro Homes Ltd  Queensmead Court,14607.20, 25-Nov-2014
1395,Revenue,CCHD,Bed Purchasing - Southmead Hospital,Permanent Residential,Notaro Homes Ltd  Queensmead Court,1389.00, 25-Nov-2014
1396,Revenue,CCHD,Bed Purchasing - North,Respite Planned - Residential,Notaro Homes Ltd  Queensmead Court,3000.00, 25-Nov-2014
1397,Revenue,CCHD,Bed Purchasing - South,Permanent Residential,Nova House Care Home,949.92, 25-Nov-2014
1398,Revenue,CCHD,Section 117 Placements MH Younger,Permanent Nursing,Oaklands,6088.80, 25-Nov-2014
1399,Revenue,CCHD,Bed purchasing -S28A  Under 65 - North,Permanent Residential,Orchard End Limited,7562.88, 25-Nov-2014
1400,Revenue,CCHD,Bed purchasing - Elderly S117 - South,Permanent Residential,Osbourne Court,3105.28, 25-Nov-2014
1401,Revenue,CCHD,Bed Purchasing - Southmead Hospital,Permanent Residential,Osbourne Court,2530.48, 25-Nov-2014
1402,Revenue,CCHD,Bed Purchasing - Southmead Hospital,Permanent Residential,Osbourne Court,970.20, 25-Nov-2014
1403,Revenue,CCHD,Bed Purchasing - North,Permanent Residential,Osbourne Court,1796.40, 25-Nov-2014
1404,Revenue,CCHD,Bed Purchasing - North,Permanent Residential,Osbourne Court,1045.36, 25-Nov-2014
1405,Revenue,CCHD,Bed Purchasing - North,Permanent Residential,Osbourne Court,804.16, 25-Nov-2014
1406,Revenue,CCHD,Bed Purchasing - Elderly S117- North,Permanent Residential,Osbourne Court,1928.00, 25-Nov-2014
1407,Revenue,CCHD,Bed Purchasing - North,Permanent Residential,Osbourne Court,2557.32, 25-Nov-2014
1408,Revenue,CCHD,Bed Purchasing - South,Permanent Residential,Osprey Court,70289.95, 25-Nov-2014
1409,Revenue,CCHD,Bed purchasing - S28A Under 65 - South,Permanent Residential,Osprey Court,6396.04, 25-Nov-2014
1410,Revenue,CCHD,Bed purchasing - Elderly S117 - South,Permanent Residential,Osprey Court,99124.90, 25-Nov-2014
1411,Revenue,CCHD,Bed purchasing - Elderly S117 - South,Permanent Residential,Osprey Court,75352.68, 25-Nov-2014
1412,Revenue,CCHD,Breakthrough and Inclusion Work,Other Supplies & Services,P3D,2866.70, 11-Nov-2014
1413,Revenue,CCHD,Bed Purchasing - Southmead Hospital,Permanent Nursing,Palm Court Nursing Home,1519.32, 25-Nov-2014
1414,Revenue,CCHD,Bed Purchasing - South,Permanent Residential,Park Farm House,1344.56, 25-Nov-2014
1415,Revenue,CCHD,Bed Purchasing - South,Permanent Residential,Park Farm House,17277.54, 25-Nov-2014
1416,Revenue,CCHD,Bed Purchasing - South,Permanent Residential,Park Farm House,1614.16, 25-Nov-2014
1417,Revenue,CCHD,Bed Purchasing - South,Permanent Residential,Park Farm House,16352.19, 25-Nov-2014
1418,Revenue,CCHD,Bed Purchasing - South,Permanent Residential,Park Hall,51778.45, 25-Nov-2014
1419,Revenue,CCHD,Bed Purchasing - North,Permanent Residential,Park Hall,48331.30, 25-Nov-2014
1420,Revenue,CCHD,Bed Purchasing - South,Permanent Residential,Park Hall,5014.44, 25-Nov-2014
1421,Revenue,CCHD,Bed Purchasing - South,Permanent Residential,Park Hall,26204.65, 25-Nov-2014
1422,Revenue,CCHD,Bed Purchasing - North,Permanent Residential,Park Hall,4967.68, 25-Nov-2014
1423,Revenue,CCHD,Bed purchasing - S28A Under 65 - South,Permanent Residential,Park Hall,4682.92, 25-Nov-2014
1424,Revenue,CCHD,Bed Purchasing - South,Permanent Residential,Park Hall,4990.40, 25-Nov-2014
1425,Revenue,CCHD,Bed Purchasing - South,Permanent Residential,Park Hall,41150.95, 25-Nov-2014
1426,Revenue,CCHD,Bed Purchasing - North,Permanent Residential,Park Hall,40164.55, 25-Nov-2014
1427,Revenue,CCHD,Bed Purchasing - South,Permanent Residential,Park Hall,10767.96, 25-Nov-2014
1428,Revenue,CCHD,Bed purchasing -S28A  Under 65 - North,Permanent Residential,Park Hall,5931.12, 25-Nov-2014
1429,Revenue,CCHD,Bed purchasing - S28A Under 65 - South,Permanent Residential,Park Hall,5670.16, 25-Nov-2014
1430,Revenue,CCHD,18-25 Year Olds,Permanent Residential,Park Hall,65649.65, 25-Nov-2014
1431,Revenue,CCHD,Bed Purchasing - North,Permanent Residential,Parker Meadows,2904.20, 25-Nov-2014
1432,Revenue,CCHD,Minor Adaptations Service,Operational Equipment,Patterson Medical Limited,1159.90, 12-Nov-2014
1433,Revenue,CCHD,Social Lettings Agency,Fees - General,Individual,10.00, 27-Nov-2014
1434,Revenue,CCHD,Social Lettings Agency,Other Supplies & Services,Individual,565.00, 27-Nov-2014
1435,Revenue,CCHD,Bed Purchasing - South,Permanent Residential,Penleigh House Care Home,4560.48, 25-Nov-2014
1436,Revenue,CCHD,Bed Purchasing - South,Permanent Residential,Penleigh House Care Home,37819.07, 25-Nov-2014
1437,Revenue,CCHD,Bed Purchasing - South,Permanent Residential,Penleigh House Care Home,6430.64, 25-Nov-2014
1438,Revenue,CCHD,Bed Purchasing - South,Permanent Residential,Penleigh House Care Home,52312.81, 25-Nov-2014
1439,Revenue,CCHD,Bed Purchasing - South,Permanent Residential,Penleigh House Care Home,4318.88, 25-Nov-2014
1440,Revenue,CCHD,Bed Purchasing - South,Permanent Residential,Penleigh House Care Home,37313.77, 25-Nov-2014
1441,Revenue,CCHD,Bed purchasing - S28A Under 65 - South,Permanent Residential,Penleigh House Care Home,5497.68, 25-Nov-2014
1442,Revenue,CCHD,Bed Purchasing - South,Permanent Residential,Penleigh House Care Home,4966.16, 25-Nov-2014
1443,Revenue,CCHD,Bed Purchasing - South,Permanent Residential,Penleigh House Care Home,40963.09, 25-Nov-2014
1444,Revenue,CCHD,Home Care - Elderly - North,Day Care / Social Activities,Premier Homecare Limited,77.52, 07-Nov-2014
1445,Revenue,CCHD,Home Care - Elderly - North,Other Small Contracts,Premier Homecare Limited,10442.40, 07-Nov-2014
1446,Revenue,CCHD,Day Care - North,Day Care / Social Activities,Premier Homecare Limited,13.68, 07-Nov-2014
1447,Revenue,CCHD,Home care - Elderly MH - North,Other Small Contracts,Premier Homecare Limited,127.68, 07-Nov-2014
1448,Revenue,CCHD,Elderly MH Day Care North,Day Care / Social Activities,Premier Homecare Limited,72.96, 07-Nov-2014
1449,Revenue,CCHD,Home Care - Elderly - North,Day Care / Social Activities,Premier Homecare Limited,136.80, 12-Nov-2014
1450,Revenue,CCHD,Home Care - Elderly - North,Other Small Contracts,Premier Homecare Limited,11474.67, 12-Nov-2014
1451,Revenue,CCHD,Home care - Elderly MH - North,Other Small Contracts,Premier Homecare Limited,127.68, 12-Nov-2014
1452,Revenue,CCHD,Elderly MH Day Care North,Day Care / Social Activities,Premier Homecare Limited,72.96, 12-Nov-2014
1453,Revenue,CCHD,Home Care - Elderly - North,Day Care / Social Activities,Premier Homecare Limited,132.24, 18-Nov-2014
1454,Revenue,CCHD,Home Care - Elderly - North,Other Small Contracts,Premier Homecare Limited,11447.31, 18-Nov-2014
1455,Revenue,CCHD,Home care - Elderly MH - North,Other Small Contracts,Premier Homecare Limited,127.68, 18-Nov-2014
1456,Revenue,CCHD,Elderly MH Day Care North,Day Care / Social Activities,Premier Homecare Limited,72.96, 18-Nov-2014
1457,Revenue,CCHD,Home Care - Elderly - South,Other Small Contracts,Prestige Nursing,534.36, 24-Nov-2014
1458,Revenue,CCHD,Home Care - Elderly - North,Other Small Contracts,Prestige Nursing,2024.83, 24-Nov-2014
1459,Revenue,CCHD,Day Care - South,Day Care / Social Activities,Prestige Nursing,122.64, 24-Nov-2014
1460,Revenue,CCHD,Home Care - Elderly - South,Other Small Contracts,Prestige Nursing,635.10, 24-Nov-2014
1461,Revenue,CCHD,Home Care - Elderly - North,Other Small Contracts,Prestige Nursing,475.98, 24-Nov-2014
1462,Revenue,CCHD,Day Care - South,Day Care / Social Activities,Prestige Nursing,122.64, 24-Nov-2014
1463,Revenue,CCHD,Alexandra Way,Agency Staff (Operational)/PCT Pay,Prestige Nursing,642.39, 06-Nov-2014
1464,Revenue,CCHD,Kingswood Centre - Maple Suite,Agency Staff (Operational)/PCT Pay,Prestige Nursing,1539.76, 10-Nov-2014
1465,Revenue,CCHD,Turnberries,Agency Staff (Operational)/PCT Pay,Prestige Nursing,728.16, 03-Nov-2014
1466,Revenue,CCHD,Turnberries,Agency Staff (Operational)/PCT Pay,Prestige Nursing,1028.47, 17-Nov-2014
1467,Revenue,CCHD,Section 117 Placements MH Younger,Permanent Residential,Proctor Care Home Limited,3519.20, 25-Nov-2014
1468,Revenue,CCHD,"Strategy, Advice and Public Protection",Other Supplies & Services,Public Health England,12066.27, 19-Nov-2014
1469,Revenue,CCHD,Bed Purchasing - North,Permanent Nursing,Ravenswood,4855.28, 25-Nov-2014
1470,Revenue,CCHD,Bed Purchasing - Elderly S117- North,Permanent Residential,Real Life Options,32215.68, 25-Nov-2014
1471,Revenue,CCHD,Bed Purchasing - Elderly S117- North,Permanent Residential,Real Life Options,31524.51, 25-Nov-2014
1472,Revenue,CCHD,Breakthrough and Inclusion Work,Other Supplies & Services,Redefine Mentoring Ltd,4735.00, 11-Nov-2014
1473,Revenue,CCHD,Bed Purchasing - Elderly S117- North,Permanent Nursing,Redholme Memory Care Limited,1991.84, 25-Nov-2014
1474,Revenue,CCHD,Bed Purchasing - South,Permanent Nursing,Regent House,2255.28, 25-Nov-2014
1475,Revenue,CCHD,Bed Purchasing - South,Permanent Nursing,Regent House,2391.04, 25-Nov-2014
1476,Revenue,CCHD,Bed Purchasing - South,Permanent Nursing,Regent House,1670.88, 25-Nov-2014
1477,Revenue,CCHD,South Glos Users in South Glos Homes,Permanent Nursing,Regent House,1257.81, 25-Nov-2014
1478,Revenue,CCHD,Bed Purchasing - South,Permanent Nursing,Regent House,1978.40, 25-Nov-2014
1479,Revenue,CCHD,Bed Purchasing - South,Permanent Nursing,Regent House,2008.44, 25-Nov-2014
1480,Revenue,CCHD,Bed Purchasing - South,Permanent Nursing,Regent House,20495.03, 25-Nov-2014
1481,Revenue,CCHD,Bed Purchasing - South,Permanent Nursing,Regent House,1726.76, 25-Nov-2014
1482,Revenue,CCHD,Bed Purchasing - South,Permanent Nursing,Regent House,1894.92, 25-Nov-2014
1483,Revenue,CCHD,Bed Purchasing - Southmead Hospital,Permanent Nursing,Regent House,1090.60, 25-Nov-2014
1484,Revenue,CCHD,Bed Purchasing - North,Permanent Nursing,Regent House,2004.36, 25-Nov-2014
1485,Revenue,CCHD,Bed Purchasing - South,Permanent Nursing,Regent House,1818.04, 25-Nov-2014
1486,Revenue,CCHD,Bed Purchasing - South,Permanent Nursing,Regent House,1675.68, 25-Nov-2014
1487,Revenue,CCHD,Bed Purchasing - North,Permanent Nursing,Regent House,2549.44, 25-Nov-2014
1488,Revenue,CCHD,Bed Purchasing - Southmead Hospital,Permanent Nursing,Regent House,1406.44, 25-Nov-2014
1489,Revenue,CCHD,Bed Purchasing - South,Permanent Nursing,Regent House,1668.12, 25-Nov-2014
1490,Revenue,CCHD,Bed Purchasing - North,Permanent Nursing,Regent House,2500.64, 25-Nov-2014
1491,Revenue,CCHD,Bed Purchasing - South,Permanent Nursing,Regent House,1197.60, 25-Nov-2014
1492,Revenue,CCHD,Bed Purchasing - South,Permanent Nursing,Regent House,16791.77, 25-Nov-2014
1493,Revenue,CCHD,Bed Purchasing - South,Permanent Nursing,Regent House,1280.24, 25-Nov-2014
1494,Revenue,CCHD,Bed Purchasing - South,Permanent Nursing,Regent House,1965.24, 25-Nov-2014
1495,Revenue,CCHD,Mental Health and Emotional Wellbeing,Grants to Voluntary Bodies,Rethink,3834.00, 19-Nov-2014
1496,Revenue,CCHD,Bed Purchasing - South,Permanent Residential,Ridgeway House,33118.55, 25-Nov-2014
1497,Revenue,CCHD,Bed Purchasing - South,Permanent Residential,Riverside House,34071.95, 25-Nov-2014
1498,Revenue,CCHD,Bed Purchasing - Southmead Hospital,Permanent Nursing,Riversway Nursing Home,892.60, 25-Nov-2014
1499,Revenue,CCHD,Bed Purchasing - Southmead Hospital,Permanent Nursing,Riversway Nursing Home,2685.28, 25-Nov-2014
1500,Revenue,CCHD,Bed Purchasing - South,Permanent Residential,Rockleaze,1426.80, 25-Nov-2014
1501,Revenue,CCHD,Bed Purchasing - South,Permanent Residential,Rockleaze,14900.15, 25-Nov-2014
1502,Revenue,CCHD,Bed Purchasing - LD S28A- Over 65- South,Permanent Residential,Rockleaze,2082.04, 25-Nov-2014
1503,Revenue,CCHD,Bed Purchasing - South,Permanent Residential,Rockleaze,2414.96, 25-Nov-2014
1504,Revenue,CCHD,Bed Purchasing - South,Permanent Residential,Rockleaze,22558.39, 25-Nov-2014
1505,Revenue,CCHD,Bed Purchasing - South,Permanent Residential,Rockleaze,1426.80, 25-Nov-2014
1506,Revenue,CCHD,Bed Purchasing - South,Permanent Residential,Rockleaze,14900.15, 25-Nov-2014
1507,Revenue,CCHD,Bed Purchasing - Southmead Hospital,Permanent Residential,Rodney House Residential Home,1432.20, 25-Nov-2014
1508,Revenue,CCHD,Bed Purchasing - South,Permanent Residential,Rosedale House,1517.92, 25-Nov-2014
1509,Revenue,CCHD,Bed Purchasing - South,Permanent Residential,Rosewood Lodge & Brook House,42460.40, 25-Nov-2014
1510,Revenue,CCHD,Bed Purchasing - South,Permanent Residential,Ross Healthcare,3938.45, 25-Nov-2014
1511,Revenue,CCHD,Bed Purchasing - South,Permanent Residential,Salters Hill Barn,20656.10, 25-Nov-2014
1512,Revenue,CCHD,Bed Purchasing - Southmead Hospital,Permanent Residential,Sanctuary Care Ltd,1284.20, 25-Nov-2014
1513,Revenue,CCHD,Woodleaze,"Provisions (Food, etc)",School Milk Services Limited,872.79, 28-Nov-2014
1514,Revenue,CCHD,Bed Purchasing - South,Permanent Residential,Scope   Accounts Dept,29365.50, 25-Nov-2014
1515,Revenue,CCHD,Supported Living - North,Private & Voluntary Home Care,SeeAbility,3350.16, 10-Nov-2014
1516,Revenue,CCHD,Supported Living - North,Private & Voluntary Home Care,SeeAbility,3538.70, 04-Nov-2014
1517,Revenue,CCHD,Day Care - North,Day Care / Social Activities,SeeAbility,1879.29, 28-Nov-2014
1518,Revenue,CCHD,Supported Living - North,Private & Voluntary Home Care,SeeAbility,1298.49, 05-Nov-2014
1519,Revenue,CCHD,Supported Living - North,Private & Voluntary Home Care,SeeAbility,8665.46, 10-Nov-2014
1520,Revenue,CCHD,Supported Living - North,Private & Voluntary Home Care,SeeAbility,1234.20, 10-Nov-2014
1521,Revenue,CCHD,Supported Living - North,Private & Voluntary Home Care,SeeAbility,5750.38, 28-Nov-2014
1522,Revenue,CCHD,Supported Living - North,Private & Voluntary Home Care,SeeAbility,661.69, 28-Nov-2014
1523,Revenue,CCHD,Supported Living - North,Private & Voluntary Home Care,SeeAbility,1341.77, 28-Nov-2014
1524,Revenue,CCHD,Supported Living - North,Private & Voluntary Home Care,SeeAbility,7510.06, 25-Nov-2014
1525,Revenue,CCHD,Supported Living - North,Private & Voluntary Home Care,SeeAbility,1598.34, 28-Nov-2014
1526,Revenue,CCHD,Supported Living (S28a) South,Private & Voluntary Home Care,Selborne Care Ltd,3376.08, 28-Nov-2014
1527,Revenue,CCHD,Purchase of Non-Res Care - North,Day Care / Social Activities,Selborne Care Ltd,1985.94, 05-Nov-2014
1528,Revenue,CCHD,Purchase of Non-Res Care - North,Day Care / Social Activities,Selborne Care Ltd,685.86, 05-Nov-2014
1529,Revenue,CCHD,Purchase of Non-Res Care - North,Day Care / Social Activities,Selborne Care Ltd,887.84, 05-Nov-2014
1530,Revenue,CCHD,Supported Living - South,Private & Voluntary Home Care,Selborne Care Ltd,2680.04, 06-Nov-2014
1531,Revenue,CCHD,Supported Living - South,Private & Voluntary Home Care,Selborne Care Ltd,653.20, 06-Nov-2014
1532,Revenue,CCHD,Purchase of Non-Res Care - North,Day Care / Social Activities,Selborne Care Ltd,2008.34, 06-Nov-2014
1533,Revenue,CCHD,Supported Living - South,Private & Voluntary Home Care,Selborne Care Ltd,5205.08, 06-Nov-2014
1534,Revenue,CCHD,Purchase of Non-Res Care - North,Day Care / Social Activities,Selborne Care Ltd,914.48, 06-Nov-2014
1535,Revenue,CCHD,Supported Living - South,Private & Voluntary Home Care,Selborne Care Ltd,1175.50, 06-Nov-2014
1536,Revenue,CCHD,Purchase of Non-Res Care - North,Day Care / Social Activities,Selborne Care Ltd,886.80, 10-Nov-2014
1537,Revenue,CCHD,Supported Living - South,Private & Voluntary Home Care,Selborne Care Ltd,522.56, 06-Nov-2014
1538,Revenue,CCHD,Supported Living - South,Private & Voluntary Home Care,Selborne Care Ltd,4685.22, 06-Nov-2014
1539,Revenue,CCHD,Purchase of Non-Res Care - North,Day Care / Social Activities,Selborne Care Ltd,817.72, 06-Nov-2014
1540,Revenue,CCHD,Supported Living - South,Private & Voluntary Home Care,Selborne Care Ltd,562.84, 06-Nov-2014
1541,Revenue,CCHD,Supported Living - South,Private & Voluntary Home Care,Selborne Care Ltd,2019.68, 06-Nov-2014
1542,Revenue,CCHD,Purchase of Non-Res Care - North,Day Care / Social Activities,Selborne Care Ltd,670.48, 06-Nov-2014
1543,Revenue,CCHD,Supported Living (S28a) South,Private & Voluntary Home Care,Selborne Care Ltd,3376.08, 07-Nov-2014
1544,Revenue,CCHD,Bed Purchasing - South,Permanent Residential,Sense,8384.60, 25-Nov-2014
1545,Revenue,CCHD,Hospital Promoting Independence Team,Care Management/Assessment Staff Pay,Seven Resourcing Ltd,966.88, 04-Nov-2014
1546,Revenue,CCHD,Hospital Promoting Independence Team,Care Management/Assessment Staff Pay,Seven Resourcing Ltd,1202.50, 05-Nov-2014
1547,Revenue,CCHD,Hospital Promoting Independence Team,Care Management/Assessment Staff Pay,Seven Resourcing Ltd,1202.50, 18-Nov-2014
1548,Revenue,CCHD,Hospital Promoting Independence Team,Care Management/Assessment Staff Pay,Seven Resourcing Ltd,1202.50, 25-Nov-2014
1549,Revenue,CCHD,Bed Purchasing - South,Permanent Residential,Shaldon House (Positive Care Ltd),21960.90, 25-Nov-2014
1550,Revenue,CCHD,Bed purchasing - Elderly S117 - South,Permanent Nursing,Shaw Healthcare Ltd,2677.88, 25-Nov-2014
1551,Revenue,CCHD,Bed Purchasing - South,Permanent Nursing,Shaw Healthcare Ltd,2085.32, 25-Nov-2014
1552,Revenue,CCHD,Bed purchasing - S28A Under 65 - South,Permanent Residential,Shaw Healthcare Ltd,9968.40, 25-Nov-2014
1553,Revenue,CCHD,Bed purchasing - S28A Under 65 - South,Permanent Residential,Shaw Healthcare Ltd,9792.00, 25-Nov-2014
1554,Revenue,CCHD,Bed Purchasing - South,Permanent Residential,Shaw Healthcare Ltd,9905.52, 25-Nov-2014
1555,Revenue,CCHD,Bed Purchasing - South,Permanent Residential,Shaw Healthcare Ltd,79243.13, 25-Nov-2014
1556,Revenue,CCHD,Bed Purchasing - South,Permanent Residential,Shaw Healthcare Ltd,38518.00, 25-Nov-2014
1557,Revenue,CCHD,Bed Purchasing - S28A - Over 65- North,Permanent Residential,Shaw Healthcare Ltd,4299.04, 25-Nov-2014
1558,Revenue,CCHD,Bed Purchasing - S28A - Over 65- North,Permanent Residential,Shaw Healthcare Ltd,4270.44, 25-Nov-2014
1559,Revenue,CCHD,Bed Purchasing - LD S28A- Over 65- South,Permanent Residential,Shaw Healthcare Ltd,4831.08, 25-Nov-2014
1560,Revenue,CCHD,Bed Purchasing - LD S28A- Over 65- South,Permanent Residential,Shaw Healthcare Ltd,4384.44, 25-Nov-2014
1561,Revenue,CCHD,Bed Purchasing - S28A - Over 65- North,Permanent Residential,Shaw Healthcare Ltd,8704.56, 25-Nov-2014
1562,Revenue,CCHD,Bed Purchasing - North,Permanent Residential,Shaw Healthcare Ltd,4146.08, 25-Nov-2014
1563,Revenue,CCHD,Bed Purchasing - Southmead Hospital,Permanent Residential,Shaw Healthcare Ltd,1134.52, 25-Nov-2014
1564,Revenue,CCHD,Day Care - North,Day Care / Social Activities,Silva Care Limited,1058.77, 06-Nov-2014
1565,Revenue,CCHD,Social Lettings Agency,Fees - General,Individual,18.31, 11-Nov-2014
1566,Revenue,CCHD,Social Lettings Agency,Other Supplies & Services,Individual,622.41, 11-Nov-2014
1567,Revenue,CCHD,Social Lettings Agency,Other Supplies & Services,Individual,640.72, 06-Nov-2014
1568,Revenue,CCHD,18-25 Year Olds,Permanent Residential,Small House Homes Limited,160706.40, 25-Nov-2014
1569,Revenue,CCHD,Home Care - Elderly - North,Supported Living,Smile Ind Living Support Limited,3028.12, 25-Nov-2014
1570,Revenue,CCHD,Home Care - Elderly - North,Supported Living,Smile Ind Living Support Limited,3028.12, 25-Nov-2014
1571,Revenue,CCHD,Home Care - Elderly - North,Supported Living,Smile Ind Living Support Limited,3028.12, 25-Nov-2014
1572,Revenue,CCHD,Home Care - Elderly - South,Day Care / Social Activities,Smile Independent Living Support Limited,272.58, 20-Nov-2014
1573,Revenue,CCHD,Home Care - Elderly - South,Other Small Contracts,Smile Independent Living Support Limited,545.16, 20-Nov-2014
1574,Revenue,CCHD,Home Care - Elderly - South,Supported Living,Smile Independent Living Support Limited,415.80, 20-Nov-2014
1575,Revenue,CCHD,Home Care - Elderly - North,Day Care / Social Activities,Smile Independent Living Support Limited,286.44, 20-Nov-2014
1576,Revenue,CCHD,Home Care - Elderly - North,Other Small Contracts,Smile Independent Living Support Limited,559.02, 20-Nov-2014
1577,Revenue,CCHD,Home Care - Elderly - North,Supported Living,Smile Independent Living Support Limited,1057.98, 20-Nov-2014
1578,Revenue,CCHD,Purchase of Non-Res Care - North,Day Care / Social Activities,Smile Independent Living Support Limited,1008.00, 20-Nov-2014
1579,Revenue,CCHD,Purchase of Non-Res Care - North,Day Care / Social Activities,Smile Independent Living Support Limited,506.40, 17-Nov-2014
1580,Revenue,CCHD,Purchase of Non-Res Care - North,Day Care / Social Activities,Smile Independent Living Support Limited,623.08, 20-Nov-2014
1581,Revenue,CCHD,Supported Living - North,Private & Voluntary Home Care,Smile Independent Living Support Limited,721.97, 17-Nov-2014
1582,Revenue,CCHD,Purchase of Non-Res Care - South,Day Care / Social Activities,Smile Independent Living Support Limited,838.21, 14-Nov-2014
1583,Revenue,CCHD,Purchase of Non-Res Care - South,Day Care / Social Activities,Smile Independent Living Support Limited,912.70, 14-Nov-2014
1584,Revenue,CCHD,Purchase of Non-Res Care - North,Day Care / Social Activities,Smile Independent Living Support Limited,1283.45, 17-Nov-2014
1585,Revenue,CCHD,Purchase of Non-Res Care - North,Day Care / Social Activities,Smile Independent Living Support Limited,600.58, 17-Nov-2014
1586,Revenue,CCHD,Purchase of Non-Res Care - North,Day Care / Social Activities,Smile Independent Living Support Limited,1479.24, 17-Nov-2014
1587,Revenue,CCHD,Purchase of Non-Res Care - North,Day Care / Social Activities,Smile Independent Living Support Limited,788.46, 20-Nov-2014
1588,Revenue,CCHD,Purchase of Non-Res Care - North,Day Care / Social Activities,Smile Independent Living Support Limited,1210.93, 20-Nov-2014
1589,Revenue,CCHD,Minor Adaptations Service,Premises Maintenance by Contractor,SSE Contracting Limited,251.80, 19-Nov-2014
1590,Revenue,CCHD,Minor Adaptations Service,Premises Maintenance by Contractor,SSE Contracting Limited,231.68, 19-Nov-2014
1591,Revenue,CCHD,Bed Purchasing - South,Permanent Residential,St Brigas,2086.44, 25-Nov-2014
1592,Revenue,CCHD,Bed Purchasing - South,Permanent Residential,St Brigas,18645.26, 25-Nov-2014
1593,Revenue,CCHD,Bed Purchasing - South,Permanent Residential,St Brigas,3016.52, 25-Nov-2014
1594,Revenue,CCHD,Bed Purchasing - South,Permanent Residential,St Brigas,25853.38, 25-Nov-2014
1595,Revenue,CCHD,Bed Purchasing - South,Permanent Residential,St Brigas,2033.44, 25-Nov-2014
1596,Revenue,CCHD,Bed Purchasing - South,Permanent Residential,St Brigas,18234.51, 25-Nov-2014
1597,Revenue,CCHD,Bed Purchasing - South,Permanent Nursing,St George Nursing Home,1223.04, 25-Nov-2014
1598,Revenue,CCHD,Bed Purchasing - Southmead Hospital,Permanent Nursing,St George Nursing Home,1320.20, 25-Nov-2014
1599,Revenue,CCHD,Bed Purchasing - South,Permanent Nursing,St George Nursing Home,1320.20, 25-Nov-2014
1600,Revenue,CCHD,Bed Purchasing - Southmead Hospital,Permanent Nursing,St George Nursing Home,1320.20, 25-Nov-2014
1601,Revenue,CCHD,Bed Purchasing - Southmead Hospital,Permanent Nursing,St George Nursing Home,1332.20, 25-Nov-2014
1602,Revenue,CCHD,Bed Purchasing - Southmead Hospital,Permanent Nursing,St George Nursing Home,750.60, 25-Nov-2014
1603,Revenue,CCHD,Bed Purchasing - South,Permanent Nursing,St George Nursing Home,1169.26, 25-Nov-2014
1604,Revenue,CCHD,Bed Purchasing - Southmead Hospital,Permanent Nursing,St George Nursing Home,1320.20, 25-Nov-2014
1605,Revenue,CCHD,Bed Purchasing - Southmead Hospital,Permanent Nursing,St George Nursing Home,1095.80, 25-Nov-2014
1606,Revenue,CCHD,Bed Purchasing - Southmead Hospital,Permanent Nursing,St George Nursing Home,1320.20, 25-Nov-2014
1607,Revenue,CCHD,Bed Purchasing - North,Permanent Residential,St George Nursing Home,841.64, 25-Nov-2014
1608,Revenue,CCHD,18-25 Year Olds,Permanent Nursing,St Roses School,37950.40, 21-Nov-2014
1609,Revenue,CCHD,18-25 Year Olds,Respite Planned - Residential,St Roses School,1355.00, 25-Nov-2014
1610,Revenue,CCHD,18-25 Year Olds,Respite Planned - Residential,St Roses School,2578.62, 25-Nov-2014
1611,Revenue,CCHD,Bed Purchasing - Southmead Hospital,Permanent Nursing,St Teresa`S Nursing Home,1320.20, 25-Nov-2014
1612,Revenue,CCHD,Bed Purchasing - Southmead Hospital,Permanent Nursing,St Teresa`S Nursing Home,852.60, 25-Nov-2014
1613,Revenue,CCHD,Bed Purchasing - South,Permanent Nursing,Stanley House,7376.44, 25-Nov-2014
1614,Revenue,CCHD,MH Purchasing - Younger,Permanent Nursing,Stanley House,4375.16, 25-Nov-2014
1615,Revenue,CCHD,Bed Purchasing - South,Permanent Residential,Stepping Stones Re-Sett. Unit,7596.04, 10-Nov-2014
1616,Revenue,CCHD,Bed Purchasing - South,Permanent Residential,Stepping Stones Re-Sett. Unit,7596.04, 25-Nov-2014
1617,Revenue,CCHD,Performance Management Support,Consultants Fees,Stickman IT Solutions Ltd,454.00, 17-Nov-2014
1618,Revenue,CCHD,Sexual Health,Other Small Contracts,Stoke Gifford Medical Centre,2002.78, 25-Nov-2014
1619,Revenue,CCHD,Bed Purchasing - Southmead Hospital,Permanent Residential,Stonebow House,1322.56, 25-Nov-2014
1620,Revenue,CCHD,Supported Living - South,Private & Voluntary Home Care,Supported Independence Ltd,520.75, 14-Nov-2014
1621,Revenue,CCHD,Day Care - North,Day Care / Social Activities,Supported Independence Ltd,3637.11, 28-Nov-2014
1622,Revenue,CCHD,Supported Living - South,Private & Voluntary Home Care,Supported Independence Ltd,1296.09, 14-Nov-2014
1623,Revenue,CCHD,Supported Living - South,Private & Voluntary Home Care,Supported Independence Ltd,1000.00, 18-Nov-2014
1624,Revenue,CCHD,Younger MH non-res purchasing,Day Care / Social Activities,Supported Independence Ltd,3161.58, 14-Nov-2014
1625,Revenue,CCHD,Supported Living - North,Private & Voluntary Home Care,Supported Independence Ltd,860.86, 03-Nov-2014
1626,Revenue,CCHD,Supported Living - North,Private & Voluntary Home Care,Supported Independence Ltd,1081.08, 04-Nov-2014
1627,Revenue,CCHD,Supported Living - North,Private & Voluntary Home Care,Supported Independence Ltd,860.86, 05-Nov-2014
1628,Revenue,CCHD,Supported Living - South,Private & Voluntary Home Care,Supported Independence Ltd,1651.65, 05-Nov-2014
1629,Revenue,CCHD,Supported Living - South,Private & Voluntary Home Care,Supported Independence Ltd,2393.20, 28-Nov-2014
1630,Revenue,CCHD,Supported Living - South,Private & Voluntary Home Care,Supported Independent Living Schemes,642.96, 18-Nov-2014
1631,Revenue,CCHD,Supported Living - South,Private & Voluntary Home Care,Supporting Options,1309.73, 05-Nov-2014
1632,Revenue,CCHD,Supported Living - South,Private & Voluntary Home Care,Supporting Options,1293.46, 20-Nov-2014
1633,Revenue,CCHD,Day Care - South,Day Care / Social Activities,Supporting Options,2285.93, 20-Nov-2014
1634,Revenue,CCHD,Bed Purchasing - Southmead Hospital,Permanent Nursing,Sutherland House,1403.76, 25-Nov-2014
1635,Revenue,CCHD,Training - Adult Services,Training Expenses,SWEI CIC,588.00, 17-Nov-2014
1636,Revenue,CCHD,Bed Purchasing - Elderly S117- North,Permanent Residential,Templemore Care Home,2232.56, 25-Nov-2014
1637,Revenue,CCHD,NHS Health Checks & Tobacco Control,Drugs & Medical Supplies,Tesco,744.10, 04-Nov-2014
1638,Revenue,CCHD,18-25 Year Olds,Permanent Residential,The Ann Coleman Centre,56070.75, 25-Nov-2014
1639,Revenue,CCHD,Bed Purchasing - North,Permanent Residential,The Beeches,1531.82, 25-Nov-2014
1640,Revenue,CCHD,Bed Purchasing - South,Respite Planned - Residential,The Beeches,1120.00, 25-Nov-2014
1641,Revenue,CCHD,Bed Purchasing - Southmead Hospital,Permanent Residential,The Beeches,1777.36, 25-Nov-2014
1642,Revenue,CCHD,Bed Purchasing - Southmead Hospital,Permanent Residential,The Beeches,1532.40, 25-Nov-2014
1643,Revenue,CCHD,Purchase of Non-Res Care - North,Day Care / Social Activities,The Brandon Trust,9631.54, 10-Nov-2014
1644,Revenue,CCHD,Bed purchasing - S28A Under 65 - South,Permanent Residential,The Brandon Trust,28412.74, 13-Nov-2014
1645,Revenue,CCHD,Supported Living - North,Private & Voluntary Home Care,The Brandon Trust,8848.64, 11-Nov-2014
1646,Revenue,CCHD,Supported Living - South,Private & Voluntary Home Care,The Brandon Trust,1192.80, 14-Nov-2014
1647,Revenue,CCHD,Supported Living - South,Private & Voluntary Home Care,The Brandon Trust,512.54, 14-Nov-2014
1648,Revenue,CCHD,Supported Living - South,Private & Voluntary Home Care,The Brandon Trust,1292.28, 14-Nov-2014
1649,Revenue,CCHD,Purchase of Non-Res Care - South,Day Care / Social Activities,The Brandon Trust,121.78, 17-Nov-2014
1650,Revenue,CCHD,Purchase of Non-Res Care - South,Day Care / Social Activities,The Brandon Trust,875.58, 17-Nov-2014
1651,Revenue,CCHD,Purchase of Non-Res Care - South,Day Care / Social Activities,The Brandon Trust,544.68, 17-Nov-2014
1652,Revenue,CCHD,Purchase of Non-Res Care - South,Day Care / Social Activities,The Brandon Trust,3299.50, 17-Nov-2014
1653,Revenue,CCHD,Purchase of Non-Res Care - South,Day Care / Social Activities,The Brandon Trust,5680.69, 17-Nov-2014
1654,Revenue,CCHD,Purchase of Non-Res Care - South,Day Care / Social Activities,The Brandon Trust,2979.16, 17-Nov-2014
1655,Revenue,CCHD,Purchase of Non-Res Care - South,Day Care / Social Activities,The Brandon Trust,234.92, 17-Nov-2014
1656,Revenue,CCHD,Purchase of Non-Res Care - South,Day Care / Social Activities,The Brandon Trust,587.29, 17-Nov-2014
1657,Revenue,CCHD,Supported Living - South,Private & Voluntary Home Care,The Brandon Trust,683.80, 26-Nov-2014
1658,Revenue,CCHD,Supported Living - South,Private & Voluntary Home Care,The Brandon Trust,1467.54, 26-Nov-2014
1659,Revenue,CCHD,Purchase of Non-Res Care - South,Day Care / Social Activities,The Brandon Trust,1167.60, 26-Nov-2014
1660,Revenue,CCHD,Purchase of Non-Res Care - South,Day Care / Social Activities,The Brandon Trust,240.00, 26-Nov-2014
1661,Revenue,CCHD,Purchase of Non-Res Care - South,Day Care / Social Activities,The Brandon Trust,5891.20, 26-Nov-2014
1662,Revenue,CCHD,Purchase of Non-Res Care - South,Day Care / Social Activities,The Brandon Trust,883.68, 26-Nov-2014
1663,Revenue,CCHD,Purchase of Non-Res Care - South,Day Care / Social Activities,The Brandon Trust,604.90, 26-Nov-2014
1664,Revenue,CCHD,Purchase of Non-Res Care - South,Day Care / Social Activities,The Brandon Trust,3576.80, 26-Nov-2014
1665,Revenue,CCHD,Purchase of Non-Res Care - South,Day Care / Social Activities,The Brandon Trust,2924.56, 26-Nov-2014
1666,Revenue,CCHD,Purchase of Non-Res Care - South,Day Care / Social Activities,The Brandon Trust,252.48, 26-Nov-2014
1667,Revenue,CCHD,Purchase of Non-Res Care - South,Day Care / Social Activities,The Brandon Trust,515.48, 26-Nov-2014
1668,Revenue,CCHD,Purchase of Non-Res Care - South,Day Care / Social Activities,The Camphill Village Trust,735.00, 10-Nov-2014
1669,Revenue,CCHD,Purchase of Non-Res Care - South,Day Care / Social Activities,The Camphill Village Trust,734.92, 13-Nov-2014
1670,Revenue,CCHD,Bed Purchasing - North,Permanent Residential,The Cidermill,1432.20, 25-Nov-2014
1671,Revenue,CCHD,Bed Purchasing - Southmead Hospital,Permanent Nursing,The Cidermill,11693.20, 25-Nov-2014
1672,Revenue,CCHD,Bed Purchasing - Southmead Hospital,Permanent Nursing,The Cidermill,1320.20, 25-Nov-2014
1673,Revenue,CCHD,Bed Purchasing - North,Respite Planned - Nursing,The Cidermill,982.00, 25-Nov-2014
1674,Revenue,CCHD,Bed Purchasing - North,Permanent Residential,The Cidermill,994.60, 25-Nov-2014
1675,Revenue,CCHD,Bed Purchasing - North,Permanent Nursing,The Cidermill,1219.08, 25-Nov-2014
1676,Revenue,CCHD,Bed Purchasing - Southmead Hospital,Permanent Residential,The Cidermill,972.28, 25-Nov-2014
1677,Revenue,CCHD,Home Care - Elderly - North,Day Care / Social Activities,The Cottage,653.76, 25-Nov-2014
1678,Revenue,CCHD,Home Care - Elderly - North,Day Care / Social Activities,The Cottage,534.96, 25-Nov-2014
1679,Revenue,CCHD,18-25 Year Olds,Permanent Residential,The David Lewis Centre,54663.90, 25-Nov-2014
1680,Revenue,CCHD,Bed Purchasing - South,Permanent Residential,The Gables Residential Home,1295.12, 25-Nov-2014
1681,Revenue,CCHD,Bed Purchasing - Southmead Hospital,Permanent Residential,The Gables Residential Home,1377.76, 25-Nov-2014
1682,Revenue,CCHD,Bed purchasing - Elderly S117 - South,Permanent Residential,The Gables Residential Home,2246.88, 25-Nov-2014
1683,Revenue,CCHD,Bed Purchasing - Southmead Hospital,Permanent Residential,The Gables Residential Home,978.60, 25-Nov-2014
1684,Revenue,CCHD,Bed Purchasing - South,Permanent Residential,The Gables Residential Home,1007.32, 25-Nov-2014
1685,Revenue,CCHD,Bed Purchasing - South,Permanent Residential,The Garden House,745.16, 25-Nov-2014
1686,Revenue,CCHD,Bed Purchasing - North,Permanent Residential,The Garden House,1167.80, 25-Nov-2014
1687,Revenue,CCHD,Bed Purchasing - North,Permanent Residential,The Garden House,1904.20, 25-Nov-2014
1688,Revenue,CCHD,Bed Purchasing - Southmead Hospital,Permanent Residential,The Garden House,1237.76, 25-Nov-2014
1689,Revenue,CCHD,Bed Purchasing - South,Permanent Residential,The Garden House,1939.72, 25-Nov-2014
1690,Revenue,CCHD,Bed Purchasing - South,Permanent Residential,The Garden House,3797.54, 25-Nov-2014
1691,Revenue,CCHD,Bed Purchasing - South,Permanent Residential,The Garden House,1512.28, 25-Nov-2014
1692,Revenue,CCHD,Bed Purchasing - North,Permanent Residential,The Garden House,2800.00, 25-Nov-2014
1693,Revenue,CCHD,Bed Purchasing - South,Permanent Residential,The Garden House,1372.29, 25-Nov-2014
1694,Revenue,CCHD,Bed Purchasing - North,Permanent Residential,The Garden House,1263.96, 25-Nov-2014
1695,Revenue,CCHD,Bed Purchasing - North,Respite Planned - Residential,The Garden House,782.86, 25-Nov-2014
1696,Revenue,CCHD,Bed Purchasing - North,Permanent Residential,The Garden House,1998.00, 25-Nov-2014
1697,Revenue,CCHD,Bed Purchasing - South,Permanent Residential,The Garden House,16164.08, 25-Nov-2014
1698,Revenue,CCHD,Bed Purchasing - North,Permanent Residential,The Garden House,1324.84, 25-Nov-2014
1699,Revenue,CCHD,Bed Purchasing - Southmead Hospital,Permanent Residential,The Grove,1980.32, 25-Nov-2014
1700,Revenue,CCHD,Bed Purchasing - Southmead Hospital,Permanent Residential,The Grove,2130.52, 25-Nov-2014
1701,Revenue,CCHD,Bed Purchasing - Southmead Hospital,Permanent Residential,The Grove,1597.89, 25-Nov-2014
1702,Revenue,CCHD,Swift Dump Code,Permanent Residential,The Grove,12338.63, 25-Nov-2014
1703,Revenue,CCHD,Bed Purchasing - South,Permanent Residential,The Grove,1701.88, 25-Nov-2014
1704,Revenue,CCHD,Bed Purchasing - Elderly S117- North,Permanent Residential,The Grove,2125.20, 25-Nov-2014
1705,Revenue,CCHD,Bed purchasing - Elderly S117 - South,Permanent Residential,The Grove,2356.44, 25-Nov-2014
1706,Revenue,CCHD,Bed Purchasing - North,Permanent Residential,The Grove,1672.20, 25-Nov-2014
1707,Revenue,CCHD,Bed Purchasing - South,Permanent Residential,The Grove,1645.08, 25-Nov-2014
1708,Revenue,CCHD,Bed Purchasing - South,Permanent Residential,The Grove,17762.07, 25-Nov-2014
1709,Revenue,CCHD,Bed Purchasing - Southmead Hospital,Permanent Residential,The Grove,1460.20, 25-Nov-2014
1710,Revenue,CCHD,Bed purchasing - Elderly S117 - South,Permanent Residential,The Grove,2356.44, 25-Nov-2014
1711,Revenue,CCHD,Bed Purchasing - North,Permanent Residential,The Grove,2144.20, 25-Nov-2014
1712,Revenue,CCHD,Bed Purchasing - North,Permanent Residential,The Grove,1134.28, 25-Nov-2014
1713,Revenue,CCHD,Bed Purchasing - North,Permanent Residential,The Grove,1269.96, 25-Nov-2014
1714,Revenue,CCHD,Bed Purchasing - Southmead Hospital,Respite Planned - Residential,The Grove,4000.00, 25-Nov-2014
1715,Revenue,CCHD,Bed Purchasing - Southmead Hospital,Respite Planned - Residential,The Grove,2100.00, 25-Nov-2014
1716,Revenue,CCHD,Home Care - Elderly - North,Supported Living,The Hatch Camphill Community,2016.80, 25-Nov-2014
1717,Revenue,CCHD,Home Care - Elderly - North,Supported Living,The Hatch Camphill Community,2139.52, 25-Nov-2014
1718,Revenue,CCHD,Home Care - Elderly - North,Supported Living,The Hatch Camphill Community,1211.84, 25-Nov-2014
1719,Revenue,CCHD,Home Care - Elderly - North,Supported Living,The Hatch Camphill Community,2297.60, 25-Nov-2014
1720,Revenue,CCHD,Home Care - Elderly - North,Supported Living,The Hatch Camphill Community,2285.12, 25-Nov-2014
1721,Revenue,CCHD,Home Care - Elderly - North,Supported Living,The Hatch Camphill Community,2256.00, 25-Nov-2014
1722,Revenue,CCHD,Home Care - Elderly - North,Supported Living,The Hatch Camphill Community,1795.92, 25-Nov-2014
1723,Revenue,CCHD,Home Care - Elderly - North,Supported Living,The Hatch Camphill Community,2056.32, 25-Nov-2014
1724,Revenue,CCHD,Home Care - Elderly - North,Supported Living,The Hatch Camphill Community,1873.28, 25-Nov-2014
1725,Revenue,CCHD,Home Care - Elderly - North,Supported Living,The Hatch Camphill Community,1698.56, 25-Nov-2014
1726,Revenue,CCHD,Home Care - Elderly - North,Supported Living,The Hatch Camphill Community,2058.40, 25-Nov-2014
1727,Revenue,CCHD,Home Care - Elderly - North,Supported Living,The Hatch Camphill Community,1259.28, 25-Nov-2014
1728,Revenue,CCHD,Home Care - Elderly - North,Supported Living,The Hatch Camphill Community,1840.00, 25-Nov-2014
1729,Revenue,CCHD,Home Care - Elderly - North,Supported Living,The Hatch Camphill Community,1566.28, 25-Nov-2014
1730,Revenue,CCHD,Home Care - Elderly - North,Supported Living,The Hatch Camphill Community,1648.64, 25-Nov-2014
1731,Revenue,CCHD,Home Care - Elderly - North,Supported Living,The Hatch Camphill Community,1274.24, 25-Nov-2014
1732,Revenue,CCHD,Home Care - Elderly - North,Supported Living,The Hatch Camphill Community,2056.32, 25-Nov-2014
1733,Revenue,CCHD,Home Care - Elderly - North,Supported Living,The Hatch Camphill Community,2023.04, 25-Nov-2014
1734,Revenue,CCHD,Bed Purchasing - North,Permanent Nursing,The Heathers,912.64, 25-Nov-2014
1735,Revenue,CCHD,Bed Purchasing - Southmead Hospital,Permanent Nursing,The Heathers,1336.20, 25-Nov-2014
1736,Revenue,CCHD,Bed Purchasing - Southmead Hospital,Permanent Nursing,The Heathers,1097.12, 25-Nov-2014
1737,Revenue,CCHD,Bed Purchasing - North,Permanent Residential,The Heathers,1432.20, 25-Nov-2014
1738,Revenue,CCHD,Bed Purchasing - Southmead Hospital,Permanent Nursing,The Heathers,1778.16, 25-Nov-2014
1739,Revenue,CCHD,Bed Purchasing - Southmead Hospital,Permanent Nursing,The Heathers,16171.65, 25-Nov-2014
1740,Revenue,CCHD,Bed Purchasing - North,Permanent Nursing,The Heathers,1357.88, 25-Nov-2014
1741,Revenue,CCHD,Bed Purchasing - Southmead Hospital,Permanent Nursing,The Heathers,1320.20, 25-Nov-2014
1742,Revenue,CCHD,Bed Purchasing - North,Permanent Nursing,The Heathers,1816.00, 25-Nov-2014
1743,Revenue,CCHD,Bed Purchasing - North,Permanent Residential,The Hollies,16254.60, 25-Nov-2014
1744,Revenue,CCHD,Bed Purchasing - North,Permanent Nursing,The Hollies Nursing Home,1800.80, 25-Nov-2014
1745,Revenue,CCHD,Home Care - Elderly - South,Day Care / Social Activities,The Manor House,1471.40, 25-Nov-2014
1746,Revenue,CCHD,Home Care - Elderly - South,Day Care / Social Activities,The Manor House,1411.28, 25-Nov-2014
1747,Revenue,CCHD,Home Care - Elderly - South,Day Care / Social Activities,The Manor House,1381.24, 25-Nov-2014
1748,Revenue,CCHD,Home Care - Elderly - South,Day Care / Social Activities,The Manor House,1381.24, 25-Nov-2014
1749,Revenue,CCHD,Home Care - Elderly - South,Supported Living,The Manor House,1381.24, 25-Nov-2014
1750,Revenue,CCHD,Home Care - Elderly - North,Day Care / Social Activities,The Manor House,1381.24, 25-Nov-2014
1751,Revenue,CCHD,Home Care - Elderly - North,Day Care / Social Activities,The Manor House,1685.24, 25-Nov-2014
1752,Revenue,CCHD,Home Care - Elderly - North,Day Care / Social Activities,The Manor House,2390.96, 25-Nov-2014
1753,Revenue,CCHD,Bed Purchasing - South,Permanent Residential,The Manor House,3260.60, 25-Nov-2014
1754,Revenue,CCHD,Bed Purchasing - South,Respite Planned - Residential,The Manor House,8822.14, 25-Nov-2014
1755,Revenue,CCHD,Bed Purchasing - South,Permanent Residential,The Manor House,3096.96, 25-Nov-2014
1756,Revenue,CCHD,Bed Purchasing - South,Respite Planned - Residential,The Manor House,2682.37, 25-Nov-2014
1757,Revenue,CCHD,Bed Purchasing - South,Respite Planned - Residential,The Manor House,670.60, 25-Nov-2014
1758,Revenue,CCHD,Bed Purchasing - North,Respite Planned - Residential,The Manor House,584.94, 25-Nov-2014
1759,Revenue,CCHD,Bed Purchasing - South,Respite Planned - Residential,The Manor House,669.06, 25-Nov-2014
1760,Revenue,CCHD,Bed Purchasing - South,Permanent Residential,The Manor House,4967.04, 25-Nov-2014
1761,Revenue,CCHD,Bed Purchasing - South,Permanent Residential,The Manor House,40969.91, 25-Nov-2014
1762,Revenue,CCHD,Bed Purchasing - South,Permanent Residential,The Manor House,4773.36, 25-Nov-2014
1763,Revenue,CCHD,Bed Purchasing - South,Permanent Residential,The Manor House,33648.59, 25-Nov-2014
1764,Revenue,CCHD,Bed Purchasing - South,Permanent Residential,The Manor House,3297.77, 25-Nov-2014
1765,Revenue,CCHD,Bed Purchasing - South,Permanent Residential,The Manor House,2721.48, 25-Nov-2014
1766,Revenue,CCHD,Bed Purchasing - South,Permanent Residential,The Manor House,23808.62, 25-Nov-2014
1767,Revenue,CCHD,Bed Purchasing - North,Permanent Residential,The Manor House,3423.08, 25-Nov-2014
1768,Revenue,CCHD,Bed Purchasing - North,Permanent Residential,The Manor House,4011.16, 25-Nov-2014
1769,Revenue,CCHD,Bed Purchasing - South,Permanent Residential,The Manor House,4709.92, 25-Nov-2014
1770,Revenue,CCHD,Bed Purchasing - South,Permanent Residential,The Manor House,3385.04, 25-Nov-2014
1771,Revenue,CCHD,Bed Purchasing - South,Permanent Residential,The Manor House,6082.84, 25-Nov-2014
1772,Revenue,CCHD,Bed purchasing - S28A Under 65 - South,Permanent Residential,The Manor House,4908.76, 25-Nov-2014
1773,Revenue,CCHD,Bed Purchasing - South,Permanent Residential,The Manor House,3376.80, 25-Nov-2014
1774,Revenue,CCHD,Bed Purchasing - South,Permanent Residential,The Manor House,28645.55, 25-Nov-2014
1775,Revenue,CCHD,Bed Purchasing - South,Permanent Residential,The Manor House,3435.28, 25-Nov-2014
1776,Revenue,CCHD,Bed Purchasing - South,Permanent Residential,The Manor House,30476.72, 25-Nov-2014
1777,Revenue,CCHD,Bed Purchasing - South,Permanent Residential,The Manor House,2233.68, 25-Nov-2014
1778,Revenue,CCHD,Bed Purchasing - South,Permanent Residential,The Manor House,26159.66, 25-Nov-2014
1779,Revenue,CCHD,Bed Purchasing - South,Permanent Residential,The Manor House,5258.32, 25-Nov-2014
1780,Revenue,CCHD,Bed Purchasing - South,Permanent Residential,The Manor House,43227.33, 25-Nov-2014
1781,Revenue,CCHD,Bed Purchasing - South,Permanent Residential,The Manor House,3266.48, 25-Nov-2014
1782,Revenue,CCHD,Bed Purchasing - South,Permanent Residential,The Manor House,27790.57, 25-Nov-2014
1783,Revenue,CCHD,Bed Purchasing - South,Permanent Residential,The Manor House,2935.96, 25-Nov-2014
1784,Revenue,CCHD,Bed Purchasing - South,Permanent Residential,The Manor House,25229.04, 25-Nov-2014
1785,Revenue,CCHD,Bed Purchasing - South,Permanent Residential,The Manor House,4490.72, 25-Nov-2014
1786,Revenue,CCHD,Bed Purchasing - South,Permanent Residential,The Manor House,4368.44, 25-Nov-2014
1787,Revenue,CCHD,Bed Purchasing - South,Permanent Residential,The Manor House,36330.76, 25-Nov-2014
1788,Revenue,CCHD,Bed Purchasing - South,Permanent Residential,The Manor House,3275.00, 25-Nov-2014
1789,Revenue,CCHD,Bed Purchasing - South,Permanent Residential,The Manor House,27856.60, 25-Nov-2014
1790,Revenue,CCHD,Bed Purchasing - North,Respite Planned - Residential,The Manor House,538.20, 25-Nov-2014
1791,Revenue,CCHD,Bed Purchasing - North,Respite Planned - Residential,The Manor House,1614.60, 25-Nov-2014
1792,Revenue,CCHD,Bed Purchasing - South,Permanent Residential,The Manor House,2714.88, 25-Nov-2014
1793,Revenue,CCHD,Bed Purchasing - South,Permanent Residential,The Manor House,3259.32, 25-Nov-2014
1794,Revenue,CCHD,Bed Purchasing - South,Permanent Residential,The Manor House,27735.08, 25-Nov-2014
1795,Revenue,CCHD,Bed Purchasing - South,Respite Planned - Residential,The Manor House,535.26, 25-Nov-2014
1796,Revenue,CCHD,Bed Purchasing - South,Respite Planned - Residential,The Manor House,535.24, 25-Nov-2014
1797,Revenue,CCHD,Bed Purchasing - South,Permanent Residential,The Manor House,4770.76, 25-Nov-2014
1798,Revenue,CCHD,Bed Purchasing - South,Permanent Residential,The Manor House,39448.74, 25-Nov-2014
1799,Revenue,CCHD,Home Care - Elderly - North,Day Care / Social Activities,The Old School House,568.32, 25-Nov-2014
1800,Revenue,CCHD,Home Care - Elderly - South,Day Care / Social Activities,The Old School House,568.32, 25-Nov-2014
1801,Revenue,CCHD,Home Care - Elderly - North,Day Care / Social Activities,The Old School House,568.32, 25-Nov-2014
1802,Revenue,CCHD,Home Care - Elderly - North,Day Care / Social Activities,The Old School House,852.48, 25-Nov-2014
1803,Revenue,CCHD,Sexual Health,Other Small Contracts,The Orchard Medical Centre,970.42, 25-Nov-2014
1804,Revenue,CCHD,Sexual Health,Other Small Contracts,The Park Medical Practice,856.86, 25-Nov-2014
1805,Revenue,CCHD,Bed Purchasing - North,Permanent Residential,The Thomas Moore Project,1961.36, 25-Nov-2014
1806,Revenue,CCHD,Bed Purchasing - South,Permanent Residential,The Worthies,5026.57, 25-Nov-2014
1807,Revenue,CCHD,Bed Purchasing - South,Permanent Residential,The Worthies,818.64, 25-Nov-2014
1808,Revenue,CCHD,Bed Purchasing - North,Permanent Residential,The Worthies,1040.80, 25-Nov-2014
1809,Revenue,CCHD,Bed Purchasing - Southmead Hospital,Permanent Residential,The Worthies,1212.08, 25-Nov-2014
1810,Revenue,CCHD,Bed Purchasing - Southmead Hospital,Permanent Residential,The Worthies,1452.12, 25-Nov-2014
1811,Revenue,CCHD,Sexual Health,Other Small Contracts,Three Shires Medical Practice,547.16, 25-Nov-2014
1812,Revenue,CCHD,Learning Difficulties PSL,Rent,Individual,650.00, 21-Nov-2014
1813,Revenue,CCHD,Learning Difficulties PSL,Rent,Individual,750.00, 21-Nov-2014
1814,Revenue,CCHD,Learning Difficulties PSL,Rent,Individual,488.00, 21-Nov-2014
1815,Revenue,CCHD,Bed Purchasing - Southmead Hospital,Permanent Residential,Tollington Lodge Rest Home,742.29, 25-Nov-2014
1816,Revenue,CCHD,Bed and Breakfast,Bed & Breakfast,Top Drawer Properties Limited,528.00, 04-Nov-2014
1817,Revenue,CCHD,Bed and Breakfast,Bed & Breakfast,Top Drawer Properties Limited,700.00, 03-Nov-2014
1818,Revenue,CCHD,Bed and Breakfast,Bed & Breakfast,Top Drawer Properties Limited,616.00, 04-Nov-2014
1819,Revenue,CCHD,Bed and Breakfast,Bed & Breakfast,Top Drawer Properties Limited,700.00, 03-Nov-2014
1820,Revenue,CCHD,Bed and Breakfast,Bed & Breakfast,Top Drawer Properties Limited,490.00, 03-Nov-2014
1821,Revenue,CCHD,Bed and Breakfast,Bed & Breakfast,Top Drawer Properties Limited,616.00, 04-Nov-2014
1822,Revenue,CCHD,Bed and Breakfast,Bed & Breakfast,Top Drawer Properties Limited,700.00, 03-Nov-2014
1823,Revenue,CCHD,Bed Purchasing - North,Permanent Residential,Tracs Group Ltd,55716.85, 25-Nov-2014
1824,Revenue,CCHD,Bed Purchasing - North,Permanent Residential,Tracs Group Ltd,4642.12, 25-Nov-2014
1825,Revenue,CCHD,Bed Purchasing - South,Permanent Residential,Tracs Group Ltd,60838.55, 25-Nov-2014
1826,Revenue,CCHD,Training - Adult Services,Training Expenses,Individual,530.00, 07-Nov-2014
1827,Revenue,CCHD,Minor Adaptations Service,Premises Maintenance by Contractor,TVM Cheltenham Limited,468.08, 03-Nov-2014
1828,Revenue,CCHD,Minor Adaptations Service,Premises Maintenance by Contractor,TVM Cheltenham Limited,694.20, 03-Nov-2014
1829,Revenue,CCHD,Minor Adaptations Service,Premises Maintenance by Contractor,TVM Cheltenham Limited,504.07, 03-Nov-2014
1830,Revenue,CCHD,Minor Adaptations Service,Daily Living Equipment,TVM Cheltenham Limited,1175.00, 27-Nov-2014
1831,Revenue,CCHD,Minor Adaptations Service,Daily Living Equipment,TVM Cheltenham Limited,1470.00, 27-Nov-2014
1832,Revenue,CCHD,Minor Adaptations Service,Daily Living Equipment,TVM Cheltenham Limited,2940.00, 27-Nov-2014
1833,Revenue,CCHD,Minor Adaptations Service,Premises Maintenance by Contractor,TVM Cheltenham Limited,667.32, 28-Nov-2014
1834,Revenue,CCHD,Minor Adaptations Service,Premises Maintenance by Contractor,TVM Cheltenham Limited,1485.00, 28-Nov-2014
1835,Revenue,CCHD,Minor Adaptations Service,Premises Maintenance by Contractor,TVM Cheltenham Limited,507.64, 28-Nov-2014
